Department Family,Entity,Date,Expense Type,Expense Area,Supplier,Transaction Number,Amount,VAT Registration Number
Department of Health,East Sussex Hospitals NHS Trust,01/05/2013,SR EPSOM & ST HELIER TRUST,Integrated Care,EPSOM AND ST HELIER UNIV HOSP NHS TRUST,0000136538,1039.06,
Department of Health,East Sussex Hospitals NHS Trust,01/05/2013,YEAR END NRVS JV GENERAL CRS,NHS Creditors,EPSOM AND ST HELIER UNIV HOSP NHS TRUST,0000136539,588.47,
Department of Health,East Sussex Hospitals NHS Trust,01/05/2013,AGENCY SPECIALIST REG,Integrated Care,INTERACT MEDICAL,0000279286,2182.44,
Department of Health,East Sussex Hospitals NHS Trust,01/05/2013,AGENCY STAFF GRADE,Planned Care,INTERACT MEDICAL,0000279287,3045.49,
Department of Health,East Sussex Hospitals NHS Trust,01/05/2013,AGENCY SHO,Urgent Care,INTERACT MEDICAL,0000280150,1153.96,
Department of Health,East Sussex Hospitals NHS Trust,01/05/2013,AGENCY SPECIALIST REG,Planned Care,INTERACT MEDICAL,0000280681,3789.64,
Department of Health,East Sussex Hospitals NHS Trust,01/05/2013,AGENCY SPECIALIST REG,Planned Care,INTERACT MEDICAL,0000280682,3669.71,
Department of Health,East Sussex Hospitals NHS Trust,01/05/2013,AGENCY SPECIALIST REG,Planned Care,INTERACT MEDICAL,0000280683,3597.76,
Department of Health,East Sussex Hospitals NHS Trust,01/05/2013,AGENCY SPECIALIST REG,Planned Care,INTERACT MEDICAL,0000281011,1590.18,
Department of Health,East Sussex Hospitals NHS Trust,01/05/2013,AGENCY STAFF GRADE,Planned Care,INTERACT MEDICAL,0000281071,748.32,
Department of Health,East Sussex Hospitals NHS Trust,01/05/2013,AGENCY SPECIALIST REG,Planned Care,INTERACT MEDICAL,0000281227,1730.50,
Department of Health,East Sussex Hospitals NHS Trust,01/05/2013,AGENCY SPECIALIST REG,Planned Care,INTERACT MEDICAL,0000281228,1636.96,
Department of Health,East Sussex Hospitals NHS Trust,01/05/2013,AGENCY SPECIALIST REG,Planned Care,INTERACT MEDICAL,0000281229,1496.64,
Department of Health,East Sussex Hospitals NHS Trust,01/05/2013,AGENCY SPECIALIST REG,Planned Care,INTERACT MEDICAL,0000281230,1683.72,
Department of Health,East Sussex Hospitals NHS Trust,01/05/2013,AGENCY SPECIALIST REG,Planned Care,INTERACT MEDICAL,0000281231,841.86,
Department of Health,East Sussex Hospitals NHS Trust,01/05/2013,AGENCY SPECIALIST REG,Planned Care,INTERACT MEDICAL,0000281232,1590.18
Department of Health,East Sussex Hospitals NHS Trust,01/05/2013,AGENCY SPECIALIST REG,Planned Care,INTERACT MEDICAL,0000281684,3961.60
Department of Health,East Sussex Hospitals NHS Trust,01/05/2013,AGENCY SPECIALIST REG,Planned Care,INTERACT MEDICAL,0000282124,4077.47
Department of Health,East Sussex Hospitals NHS Trust,01/05/2013,AGENCY SPECIALIST REG,Planned Care,INTERACT MEDICAL,0000282674,4053.47
Department of Health,East Sussex Hospitals NHS Trust,01/05/2013,AGENCY SPECIALIST REG,Planned Care,INTERACT MEDICAL,0000282675,2398.50
Department of Health,East Sussex Hospitals NHS Trust,01/05/2013,AGENCY SPECIALIST REG,Planned Care,INTERACT MEDICAL,0000282676,4053.47
Department of Health,East Sussex Hospitals NHS Trust,01/05/2013,AGENCY STAFF GRADE,Planned Care,INTERACT MEDICAL,0000283467,4676.40
Department of Health,East Sussex Hospitals NHS Trust,01/05/2013,LOCUM STAFF GRADE,Planned Care,INTERACT MEDICAL,0000283468,944.42
Department of Health,East Sussex Hospitals NHS Trust,01/05/2013,AGENCY STAFF GRADE,Planned Care,INTERACT MEDICAL,0000283488,1072.03
Department of Health,East Sussex Hospitals NHS Trust,01/05/2013,AGENCY SPECIALIST REG,Planned Care,INTERACT MEDICAL,0000283691,2889.91
Department of Health,East Sussex Hospitals NHS Trust,01/05/2013,AGENCY NURSE - QUALIFIED,Urgent Care,THORNBURY NURSING SERVICES,0000285108,700.76
Department of Health,East Sussex Hospitals NHS Trust,01/05/2013,AGENCY NURSE - QUALIFIED,Urgent Care,THORNBURY NURSING SERVICES,0000285109,529.59
Department of Health,East Sussex Hospitals NHS Trust,01/05/2013,AGENCY NURSE - QUALIFIED,Urgent Care,THORNBURY NURSING SERVICES,0000285240,708.78
Department of Health,East Sussex Hospitals NHS Trust,01/05/2013,AGENCY NURSE - QUALIFIED,Urgent Care,THORNBURY NURSING SERVICES,0000285241,689.48
Department of Health,East Sussex Hospitals NHS Trust,01/05/2013,AGENCY NURSE - QUALIFIED,Urgent Care,THORNBURY NURSING SERVICES,0000285242,642.27
Department of Health,East Sussex Hospitals NHS Trust,01/05/2013,AGENCY NURSE - QUALIFIED,Urgent Care,THORNBURY NURSING SERVICES,0000285243,642.27
Department of Health,East Sussex Hospitals NHS Trust,01/05/2013,AGENCY NURSE - QUALIFIED,Urgent Care,THORNBURY NURSING SERVICES,0000285244,642.27
Department of Health,East Sussex Hospitals NHS Trust,01/05/2013,AGENCY NURSE - QUALIFIED,Urgent Care,THORNBURY NURSING SERVICES,0000285728,675.47
Department of Health,East Sussex Hospitals NHS Trust,01/05/2013,AGENCY NURSE - QUALIFIED,Urgent Care,THORNBURY NURSING SERVICES,0000285729,591.07
Department of Health,East Sussex Hospitals NHS Trust,01/05/2013,AGENCY NURSE - QUALIFIED,Urgent Care,THORNBURY NURSING SERVICES,0000285730,681.68
Department of Health,East Sussex Hospitals NHS Trust,01/05/2013,AGENCY NURSE - QUALIFIED,Urgent Care,THORNBURY NURSING SERVICES,0000285731,614.58
Department of Health,East Sussex Hospitals NHS Trust,01/05/2013,AGENCY NURSE - QUALIFIED,Urgent Care,THORNBURY NURSING SERVICES,0000285732,595.95
Department of Health,East Sussex Hospitals NHS Trust,01/05/2013,AGENCY SPECIALIST REG,Planned Care,MEDACS HEALTHCARE SERVICES LTD,0000285766,2607.40
Department of Health,East Sussex Hospitals NHS Trust,01/05/2013,PROF & TECH BANK STAFF,Integrated Care,ATLANTIS MEDICAL LTD,0000285798,1473.75
Department of Health,East Sussex Hospitals NHS Trust,01/05/2013,AGENCY ANCILLARY,Commercial,INTERWORK RECRUITMENT CONSULTANTS LTD,0000285963,942.40
Department of Health,East Sussex Hospitals NHS Trust,01/05/2013,AGENCY NURSE - UNQUALIFIED,Urgent Care,MAYFAIR,0000286148,1096.82
Department of Health,East Sussex Hospitals NHS Trust,01/05/2013,AGENCY NURSE - QUALIFIED,Urgent Care,THORNBURY NURSING SERVICES,0000286222,593.64
Department of Health,East Sussex Hospitals NHS Trust,01/05/2013,AGENCY NURSE - QUALIFIED,Urgent Care,THORNBURY NURSING SERVICES,0000286223,612.16
Department of Health,East Sussex Hospitals NHS Trust,01/05/2013,AGENCY NURSE - QUALIFIED,Urgent Care,THORNBURY NURSING SERVICES,0000286224,661.07
Department of Health,East Sussex Hospitals NHS Trust,01/05/2013,AGENCY RADIOGRAPHY STAFF,Integrated Care,RIG MEDICAL RECRUIT LTD,0000286248,1083.60
Department of Health,East Sussex Hospitals NHS Trust,01/05/2013,AGENCY DIETICIAN,Integrated Care,MAXXIMA LTD 2,0000286525,1206.00
Department of Health,East Sussex Hospitals NHS Trust,01/05/2013,AGENCY SPECIALIST REG,Urgent Care,RIG LOCUMS LIMITED,0000286540,5151.60
Department of Health,East Sussex Hospitals NHS Trust,01/05/2013,AGENCY MLSO,Integrated Care,ATLANTIS MEDICAL LTD,0000286570,632.73
Department of Health,East Sussex Hospitals NHS Trust,01/05/2013,AGENCY STAFF GRADE,Urgent Care,TOTAL ASSIST RECRUITMENT LTD,0000286583,2430.00
Department of Health,East Sussex Hospitals NHS Trust,01/05/2013,AGENCY STAFF GRADE,Urgent Care,TOTAL ASSIST RECRUITMENT LTD,0000286584,786.60
Department of Health,East Sussex Hospitals NHS Trust,01/05/2013,AGENCY STAFF GRADE,Urgent Care,TOTAL ASSIST RECRUITMENT LTD,0000286585,2224.42
Department of Health,East Sussex Hospitals NHS Trust,01/05/2013,AGENCY NURSE - QUALIFIED,Urgent Care,THORNBURY NURSING SERVICES,0000286590,613.95
Department of Health,East Sussex Hospitals NHS Trust,01/05/2013,AGENCY NURSE - QUALIFIED,Urgent Care,THORNBURY NURSING SERVICES,0000286591,613.95
Department of Health,East Sussex Hospitals NHS Trust,01/05/2013,AGENCY NURSE - QUALIFIED,Urgent Care,THORNBURY NURSING SERVICES,0000286592,666.59
Department of Health,East Sussex Hospitals NHS Trust,01/05/2013,AGENCY NURSE - QUALIFIED,Urgent Care,THORNBURY NURSING SERVICES,0000286593,666.59
Department of Health,East Sussex Hospitals NHS Trust,01/05/2013,AGENCY NURSE - QUALIFIED,Urgent Care,THORNBURY NURSING SERVICES,0000286594,688.70
Department of Health,East Sussex Hospitals NHS Trust,01/05/2013,AGENCY NURSE - QUALIFIED,Urgent Care,THORNBURY NURSING SERVICES,0000286595,510.87
Department of Health,East Sussex Hospitals NHS Trust,01/05/2013,AGENCY CONSULTANT,Urgent Care,MEDACS HEALTHCARE SERVICES LTD,0000286601,5796.49
Department of Health,East Sussex Hospitals NHS Trust,01/05/2013,AGENCY PHYSIOTHERAPY STAFF,Integrated Care,RIG MEDICAL RECRUIT LTD,0000286609,708.17
Department of Health,East Sussex Hospitals NHS Trust,01/05/2013,AGENCY NURSE - QUALIFIED,Urgent Care,THORNBURY NURSING SERVICES,0000286695,774.99
Department of Health,East Sussex Hospitals NHS Trust,01/05/2013,AGENCY NURSE - QUALIFIED,Urgent Care,THORNBURY NURSING SERVICES,0000286696,540.65
Department of Health,East Sussex Hospitals NHS Trust,01/05/2013,AGENCY NURSE - QUALIFIED,Urgent Care,THORNBURY NURSING SERVICES,0000286697,550.51
Department of Health,East Sussex Hospitals NHS Trust,01/05/2013,AGENCY NURSE - QUALIFIED,Urgent Care,THORNBURY NURSING SERVICES,0000286698,540.65
Department of Health,East Sussex Hospitals NHS Trust,01/05/2013,AGENCY NURSE - QUALIFIED,Urgent Care,THORNBURY NURSING SERVICES,0000286699,540.65
Department of Health,East Sussex Hospitals NHS Trust,01/05/2013,AGENCY NURSE - QUALIFIED,Urgent Care,THORNBURY NURSING SERVICES,0000286700,540.65
Department of Health,East Sussex Hospitals NHS Trust,01/05/2013,AGENCY MLSO,Integrated Care,ATLANTIS MEDICAL LTD,0000286715,1699.73
Department of Health,East Sussex Hospitals NHS Trust,01/05/2013,AGENCY ANCILLARY,Commercial,NINE-TO-FIVE,0000286718,1303.81
Department of Health,East Sussex Hospitals NHS Trust,01/05/2013,AGENCY SPEECH THERAPIST,Integrated Care,SUGARMAN GROUP LTD,0000286733,877.50
Department of Health,East Sussex Hospitals NHS Trust,01/05/2013,AGENCY NURSE - UNQUALIFIED,Urgent Care,MAYFAIR,0000286794,475.61
Department of Health,East Sussex Hospitals NHS Trust,01/05/2013,AGENCY NURSE - UNQUALIFIED,Urgent Care,MAYFAIR,0000286795,626.28
Department of Health,East Sussex Hospitals NHS Trust,01/05/2013,AGENCY NURSE - UNQUALIFIED,Urgent Care,MAYFAIR,0000286796,1132.13
Department of Health,East Sussex Hospitals NHS Trust,01/05/2013,AGENCY NURSE - QUALIFIED,Urgent Care,MAYFAIR,0000286797,461.46
Department of Health,East Sussex Hospitals NHS Trust,01/05/2013,AGENCY OCC THERAPY STAFF,Integrated Care,SANCTUARY PERSONNEL LTD,0000286863,1714.96
Department of Health,East Sussex Hospitals NHS Trust,01/05/2013,AGENCY RADIOGRAPHY STAFF,Integrated Care,RIG MEDICAL RECRUIT LTD,0000286874,784.14
Department of Health,East Sussex Hospitals NHS Trust,01/05/2013,AGENCY RADIOGRAPHY STAFF,Integrated Care,RIG MEDICAL RECRUIT LTD,0000286882,1806.84
Department of Health,East Sussex Hospitals NHS Trust,01/05/2013,LOCUM SPECIALTY DOCTOR,Integrated Care,INTERACT MEDICAL,0000286946,1049.26
Department of Health,East Sussex Hospitals NHS Trust,01/05/2013,AGENCY SPECIALIST REG,Planned Care,MEDACS HEALTHCARE SERVICES LTD,0000286977,3448.04
Department of Health,East Sussex Hospitals NHS Trust,01/05/2013,AGENCY STAFF GRADE,Urgent Care,TOTAL ASSIST RECRUITMENT LTD,0000287004,3037.50
Department of Health,East Sussex Hospitals NHS Trust,01/05/2013,AGENCY NURSE - QUALIFIED,Urgent Care,THORNBURY NURSING SERVICES,0000287007,522.05
Department of Health,East Sussex Hospitals NHS Trust,01/05/2013,AGENCY NURSE - QUALIFIED,Urgent Care,THORNBURY NURSING SERVICES,0000287009,545.37
Department of Health,East Sussex Hospitals NHS Trust,01/05/2013,AGENCY SPECIALIST REG,Urgent Care,THE ACCIDENT & EMERGENCY AGENCY LTD,0000287016,1716.00
Department of Health,East Sussex Hospitals NHS Trust,01/05/2013,AGENCY SPECIALIST REG,Urgent Care,THE ACCIDENT & EMERGENCY AGENCY LTD,0000287017,2652.00
Department of Health,East Sussex Hospitals NHS Trust,01/05/2013,AGENCY MLSO,Integrated Care,ATLANTIS MEDICAL LTD,0000287021,2133.99
Department of Health,East Sussex Hospitals NHS Trust,01/05/2013,AGENCY SHO,Urgent Care,THE ACCIDENT & EMERGENCY AGENCY LTD,0000287022,2150.74
Department of Health,East Sussex Hospitals NHS Trust,01/05/2013,AGENCY SPECIALIST REG,Urgent Care,TOTAL ASSIST RECRUITMENT LTD,0000287038,3282.74
Department of Health,East Sussex Hospitals NHS Trust,01/05/2013,AGENCY NURSE - UNQUALIFIED,Urgent Care,MAYFAIR,0000287039,458.20
Department of Health,East Sussex Hospitals NHS Trust,01/05/2013,AGENCY NURSE - QUALIFIED,Urgent Care,MAYFAIR,0000287043,760.08
Department of Health,East Sussex Hospitals NHS Trust,01/05/2013,AGENCY NURSE - UNQUALIFIED,Urgent Care,MAYFAIR,0000287044,470.54
Department of Health,East Sussex Hospitals NHS Trust,01/05/2013,AGENCY NURSE - UNQUALIFIED,Urgent Care,MAYFAIR,0000287045,426.60
Department of Health,East Sussex Hospitals NHS Trust,01/05/2013,AGENCY SPECIALIST REG,Planned Care,MEDACS HEALTHCARE SERVICES LTD,0000287058,2514.26
Department of Health,East Sussex Hospitals NHS Trust,01/05/2013,AGENCY RADIOGRAPHY STAFF,Integrated Care,RIG MEDICAL RECRUIT LTD,0000287062,1036.14
Department of Health,East Sussex Hospitals NHS Trust,01/05/2013,AGENCY NURSE - QUALIFIED,Urgent Care,THORNBURY NURSING SERVICES,0000287081,645.81
Department of Health,East Sussex Hospitals NHS Trust,01/05/2013,AGENCY NURSE - QUALIFIED,Urgent Care,THORNBURY NURSING SERVICES,0000287082,591.04
Department of Health,East Sussex Hospitals NHS Trust,01/05/2013,AGENCY NURSE - QUALIFIED,Urgent Care,THORNBURY NURSING SERVICES,0000287083,597.15
Department of Health,East Sussex Hospitals NHS Trust,01/05/2013,AGENCY NURSE - QUALIFIED,Urgent Care,THORNBURY NURSING SERVICES,0000287084,597.15
Department of Health,East Sussex Hospitals NHS Trust,01/05/2013,AGENCY NURSE - QUALIFIED,Urgent Care,THORNBURY NURSING SERVICES,0000287085,601.46
Department of Health,East Sussex Hospitals NHS Trust,01/05/2013,AGENCY NURSE - QUALIFIED,Urgent Care,THORNBURY NURSING SERVICES,0000287086,624.29
Department of Health,East Sussex Hospitals NHS Trust,01/05/2013,AGENCY NURSE - QUALIFIED,Urgent Care,THORNBURY NURSING SERVICES,0000287087,624.29
Department of Health,East Sussex Hospitals NHS Trust,01/05/2013,AGENCY NURSE - QUALIFIED,Urgent Care,THORNBURY NURSING SERVICES,0000287088,624.29
Department of Health,East Sussex Hospitals NHS Trust,01/05/2013,AGENCY NURSE - QUALIFIED,Urgent Care,THORNBURY NURSING SERVICES,0000287089,624.29
Department of Health,East Sussex Hospitals NHS Trust,01/05/2013,AGENCY RADIOGRAPHY STAFF,Integrated Care,RIG MEDICAL RECRUIT LTD,0000287094,1003.80
Department of Health,East Sussex Hospitals NHS Trust,01/05/2013,AGENCY RADIOGRAPHY STAFF,Integrated Care,RIG MEDICAL RECRUIT LTD,0000287095,1003.80
Department of Health,East Sussex Hospitals NHS Trust,01/05/2013,AGENCY RADIOGRAPHY STAFF,Integrated Care,RIG MEDICAL RECRUIT LTD,0000287096,808.92
Department of Health,East Sussex Hospitals NHS Trust,01/05/2013,AGENCY MLSO,Integrated Care,ATLANTIS MEDICAL LTD,0000287150,1575.94
Department of Health,East Sussex Hospitals NHS Trust,01/05/2013,AGENCY PHYSIOTHERAPY STAFF,Integrated Care,RIG MEDICAL RECRUIT LTD,0000287168,559.08
Department of Health,East Sussex Hospitals NHS Trust,01/05/2013,AGENCY MLSO,Integrated Care,ATLANTIS MEDICAL LTD,0000287194,1192.76
Department of Health,East Sussex Hospitals NHS Trust,01/05/2013,ENGINEERING MATERIALS,Commercial,J F L SPEAR,0000287337,490.00
Department of Health,East Sussex Hospitals NHS Trust,01/05/2013,FUEL,Commercial,VALERO ENERGY LTD,0000287338,23982.24
Department of Health,East Sussex Hospitals NHS Trust,01/05/2013,SERVICES PROVIDED TO NON NHS,Corporate Services,THE ACCIDENT & EMERGENCY AGENCY LTD,0000287403,-1768.80
Department of Health,East Sussex Hospitals NHS Trust,01/05/2013,AGENCY SPECIALIST REG,Urgent Care,THE ACCIDENT & EMERGENCY AGENCY LTD,0000287548,1716.00
Department of Health,East Sussex Hospitals NHS Trust,01/05/2013,AGENCY ADMIN & CLERICAL,Urgent Care,JOSEPHINE SAMMONS LTD,0000287611,428.88
Department of Health,East Sussex Hospitals NHS Trust,01/05/2013,AGENCY ADMIN & CLERICAL,Urgent Care,JOSEPHINE SAMMONS LTD,0000287613,464.13
Department of Health,East Sussex Hospitals NHS Trust,01/05/2013,AGENCY SHO,Urgent Care,MEDACS HEALTHCARE SERVICES LTD,0000287654,1706.53
Department of Health,East Sussex Hospitals NHS Trust,01/05/2013,AGENCY ADMIN & CLERICAL,Urgent Care,JOSEPHINE SAMMONS LTD,0000287687,428.88
Department of Health,East Sussex Hospitals NHS Trust,01/05/2013,AGENCY ADMIN & CLERICAL,Urgent Care,GRAFTERS RECRUITMENT CONSULTANTS LTD,0000287700,557.55
Department of Health,East Sussex Hospitals NHS Trust,01/05/2013,AGENCY ADMIN & CLERICAL,Urgent Care,GRAFTERS RECRUITMENT CONSULTANTS LTD,0000287701,557.56
Department of Health,East Sussex Hospitals NHS Trust,01/05/2013,AGENCY - GENERAL GRADES,Commercial,INTERWORK RECRUITMENT CONSULTANTS LTD,0000287728,2517.04
Department of Health,East Sussex Hospitals NHS Trust,01/05/2013,AGENCY ANCILLARY,Commercial,INTERWORK RECRUITMENT CONSULTANTS LTD,0000287729,718.54
Department of Health,East Sussex Hospitals NHS Trust,01/05/2013,AGENCY SPECIALIST REG,Urgent Care,MEDACS HEALTHCARE SERVICES LTD,0000287809,3418.40
Department of Health,East Sussex Hospitals NHS Trust,01/05/2013,AGENCY SHO,Urgent Care,MEDACS HEALTHCARE SERVICES LTD,0000287810,2567.35
Department of Health,East Sussex Hospitals NHS Trust,01/05/2013,AGENCY SHO,Urgent Care,MEDACS HEALTHCARE SERVICES LTD,0000287811,2204.90
Department of Health,East Sussex Hospitals NHS Trust,01/05/2013,AGENCY SHO,Urgent Care,MEDACS HEALTHCARE SERVICES LTD,0000287812,2522.03
Department of Health,East Sussex Hospitals NHS Trust,01/05/2013,AGENCY SPECIALIST REG,Urgent Care,MEDACS HEALTHCARE SERVICES LTD,0000287817,3372.36
Department of Health,East Sussex Hospitals NHS Trust,01/05/2013,AGENCY SPECIALIST REG,Urgent Care,MEDACS HEALTHCARE SERVICES LTD,0000287818,3693.06
Department of Health,East Sussex Hospitals NHS Trust,01/05/2013,AGENCY SPECIALIST REG,Urgent Care,MEDACS HEALTHCARE SERVICES LTD,0000287819,2081.70
Department of Health,East Sussex Hospitals NHS Trust,01/05/2013,AGENCY SPECIALIST REG,Urgent Care,MEDACS HEALTHCARE SERVICES LTD,0000287822,5170.28
Department of Health,East Sussex Hospitals NHS Trust,01/05/2013,AGENCY SPECIALIST REG,Urgent Care,MEDACS HEALTHCARE SERVICES LTD,0000287823,3205.82
Department of Health,East Sussex Hospitals NHS Trust,01/05/2013,AGENCY CONSULTANT,Urgent Care,MEDACS HEALTHCARE SERVICES LTD,0000287824,4224.00
Department of Health,East Sussex Hospitals NHS Trust,01/05/2013,AGENCY CONSULTANT,Urgent Care,MEDACS HEALTHCARE SERVICES LTD,0000287825,2534.40
Department of Health,East Sussex Hospitals NHS Trust,01/05/2013,AGENCY SPECIALIST REG,Urgent Care,MEDACS HEALTHCARE SERVICES LTD,0000287826,2698.74
Department of Health,East Sussex Hospitals NHS Trust,01/05/2013,AGENCY SPECIALIST REG,Planned Care,MEDACS HEALTHCARE SERVICES LTD,0000287827,2395.78
Department of Health,East Sussex Hospitals NHS Trust,01/05/2013,AGENCY - GENERAL GRADES,Commercial,INTERWORK RECRUITMENT CONSULTANTS LTD,0000287829,4147.96
Department of Health,East Sussex Hospitals NHS Trust,01/05/2013,AGENCY ANCILLARY,Commercial,INTERWORK RECRUITMENT CONSULTANTS LTD,0000287830,7022.97
Department of Health,East Sussex Hospitals NHS Trust,01/05/2013,AGENCY SPECIALIST REG,Planned Care,MEDACS HEALTHCARE SERVICES LTD,0000287838,5462.63
Department of Health,East Sussex Hospitals NHS Trust,01/05/2013,AGENCY SPECIALIST REG,Planned Care,MEDACS HEALTHCARE SERVICES LTD,0000287858,3988.19
Department of Health,East Sussex Hospitals NHS Trust,01/05/2013,AGENCY SPECIALIST REG,Planned Care,MEDACS HEALTHCARE SERVICES LTD,0000287859,3190.55
Department of Health,East Sussex Hospitals NHS Trust,01/05/2013,AGENCY SPECIALIST REG,Planned Care,MEDACS HEALTHCARE SERVICES LTD,0000287861,2227.67
Department of Health,East Sussex Hospitals NHS Trust,01/05/2013,AGENCY - GENERAL GRADES,Commercial,INTERWORK RECRUITMENT CONSULTANTS LTD,0000287893,2947.61
Department of Health,East Sussex Hospitals NHS Trust,01/05/2013,AGENCY ANCILLARY,Commercial,INTERWORK RECRUITMENT CONSULTANTS LTD,0000287902,947.10
Department of Health,East Sussex Hospitals NHS Trust,01/05/2013,AGENCY ANCILLARY,Commercial,INTERWORK RECRUITMENT CONSULTANTS LTD,0000287903,8642.21
Department of Health,East Sussex Hospitals NHS Trust,01/05/2013,AGENCY ANCILLARY,Commercial,INTERWORK RECRUITMENT CONSULTANTS LTD,0000287908,697.63
Department of Health,East Sussex Hospitals NHS Trust,01/05/2013,AGENCY SPECIALIST REG,Integrated Care,SCARAMOUCHE LOCUM SERVICES LTD,0000288104,587.49
Department of Health,East Sussex Hospitals NHS Trust,01/05/2013,AGENCY ANCILLARY,Commercial,INTERWORK RECRUITMENT CONSULTANTS LTD,0000288110,7831.41
Department of Health,East Sussex Hospitals NHS Trust,01/05/2013,AGENCY ANCILLARY,Commercial,INTERWORK RECRUITMENT CONSULTANTS LTD,0000288155,807.05
Department of Health,East Sussex Hospitals NHS Trust,01/05/2013,AGENCY ANCILLARY,Commercial,INTERWORK RECRUITMENT CONSULTANTS LTD,0000288156,5957.45
Department of Health,East Sussex Hospitals NHS Trust,01/05/2013,COMPUTER MAINT - SOFTWARE,Integrated Care,ETHITEC TECHNOLOGY LTD,0000361150,16931.21
Department of Health,East Sussex Hospitals NHS Trust,01/05/2013,SC-CONQUEST UNIT WORKS,Commercial,STATIC SYSTEMS GROUP PLC,0000361190,750.60
Department of Health,East Sussex Hospitals NHS Trust,01/05/2013,SC-CONQUEST UNIT WORKS,Commercial,STATIC SYSTEMS GROUP PLC,0000361379,682.09
Department of Health,East Sussex Hospitals NHS Trust,01/05/2013,POSTAGE - MAINTENANCE STOCK,Commercial,FILTERTEC SYSTEMS LTD,0000361465,15.00
Department of Health,East Sussex Hospitals NHS Trust,01/05/2013,SC-CONQUEST UNIT WORKS,Commercial,FILTERTEC SYSTEMS LTD,0000361465,921.60
Department of Health,East Sussex Hospitals NHS Trust,01/05/2013,POSTAGE - MAINTENANCE STOCK,Commercial,FILTERTEC SYSTEMS LTD,0000361466,15.00
Department of Health,East Sussex Hospitals NHS Trust,01/05/2013,SC-CONQUEST UNIT WORKS,Commercial,FILTERTEC SYSTEMS LTD,0000361466,1515.60
Department of Health,East Sussex Hospitals NHS Trust,01/05/2013,ENGINEER CONTRACT - REPAIR,Commercial,COLSAN INSTRUMENT SERVICES,0000361495,4587.38
Department of Health,East Sussex Hospitals NHS Trust,01/05/2013,CAPITAL EXPENDITURE,Other Central,BOOKER & BEST LIMITED,0000361547,22043.21
Department of Health,East Sussex Hospitals NHS Trust,01/05/2013,CAPITAL EXPENDITURE,Other Central,BOOKER & BEST LIMITED,0000361548,60000.00
Department of Health,East Sussex Hospitals NHS Trust,01/05/2013,PROFESSIONAL FEES,Commercial,MARK HEMSLEY,0000361584,918.75
Department of Health,East Sussex Hospitals NHS Trust,01/05/2013,PROFESSIONAL FEES,Commercial,RICHARD WILES ASSOCIATES LTD,0000361586,2077.70
Department of Health,East Sussex Hospitals NHS Trust,01/05/2013,PROFESSIONAL FEES,Commercial,JOHN HARRATT,0000361587,1950.00
Department of Health,East Sussex Hospitals NHS Trust,01/05/2013,FURNITURE & FITTINGS,Corporate Services,H WILSON (ALFRISTON) LTD,0000361590,7105.06
Department of Health,East Sussex Hospitals NHS Trust,01/05/2013,CAPITAL EXPENDITURE,Other Central,BOOKER & BEST LIMITED,0000361591,60000.00
Department of Health,East Sussex Hospitals NHS Trust,01/05/2013,CAPITAL EXPENDITURE,Other Central,H WILSON (ALFRISTON) LTD,0000361593,3706.36
Department of Health,East Sussex Hospitals NHS Trust,01/05/2013,CAPITAL EXPENDITURE,Other Central,H WILSON (ALFRISTON) LTD,0000361595,4348.92
Department of Health,East Sussex Hospitals NHS Trust,01/05/2013,CAPITAL EXPENDITURE,Other Central,EASTBOURNE ELECTRICAL,0000361596,1140.00
Department of Health,East Sussex Hospitals NHS Trust,01/05/2013,CAPITAL EXPENDITURE,Other Central,H WILSON (ALFRISTON) LTD,0000361597,954.43
Department of Health,East Sussex Hospitals NHS Trust,01/05/2013,FINANCE SYSTEMS LICENCE FEES,Corporate Services,CAPITA IB SOLUTIONS (UK)LTD,0000621595,12812.19
Department of Health,East Sussex Hospitals NHS Trust,01/05/2013,FINANCE SYSTEMS LICENCE FEES,Corporate Services,CAPITA IB SOLUTIONS (UK)LTD,0000621727,1569.27
Department of Health,East Sussex Hospitals NHS Trust,01/05/2013,PROFESSIONAL FEES,Commercial,MILL VIEW ENERGY SERVICE,0000621793,1650.00
Department of Health,East Sussex Hospitals NHS Trust,01/05/2013,CONTRACT ENGINEERING MAINT,Commercial,PHS COMPLIANCE,0000621827,2097.80
Department of Health,East Sussex Hospitals NHS Trust,01/05/2013,KEYMED (SURGERY),Planned Care,OLYMPUS KEYMED,0000621844,6105.81
Department of Health,East Sussex Hospitals NHS Trust,01/05/2013,TELEPHONES-MAINTENANCE,Commercial,BTS HOLDINGS LTD,0000621851,1017.00
Department of Health,East Sussex Hospitals NHS Trust,01/05/2013,POSTAGE - MAINTENANCE STOCK,Commercial,"SUSSEX TUBES, FITTING & VALVES",0000621880,12.00
Department of Health,East Sussex Hospitals NHS Trust,01/05/2013,CAPITAL EXPENDITURE,Other Central,"SUSSEX TUBES, FITTING & VALVES",0000621880,641.58
Department of Health,East Sussex Hospitals NHS Trust,01/05/2013,POSTAGE - MAINTENANCE STOCK,Commercial,FILTERTEC SYSTEMS LTD,0000621883,15.00
Department of Health,East Sussex Hospitals NHS Trust,01/05/2013,SC-CONQUEST UNIT WORKS,Commercial,FILTERTEC SYSTEMS LTD,0000621883,1098.00
Department of Health,East Sussex Hospitals NHS Trust,01/05/2013,BUILDING MATERIALS,Commercial,ALSFORD TIMBER TRADERS LTD,0000621898,960.00
Department of Health,East Sussex Hospitals NHS Trust,01/05/2013,PATS APPL - FOOTWARE,Integrated Care,FLORENCE J,0000754742,573.53
Department of Health,East Sussex Hospitals NHS Trust,01/05/2013,PATS APPL - SPINAL CORSETS,Integrated Care,FLORENCE J,0000754939,735.78
Department of Health,East Sussex Hospitals NHS Trust,01/05/2013,PATS APPL - FOOTWARE,Integrated Care,FLORENCE J,0000754942,539.73
Department of Health,East Sussex Hospitals NHS Trust,01/05/2013,PATS APPL - FOOTWARE,Integrated Care,FLORENCE J,0000754944,517.18
Department of Health,East Sussex Hospitals NHS Trust,01/05/2013,STAPLING DEVICES,Planned Care,CONMED LINVATEC UK,0000895648,102.00
Department of Health,East Sussex Hospitals NHS Trust,01/05/2013,LAPARASCOPIC EQUIP-UROLOGICAL,Planned Care,CONMED LINVATEC UK,0000895648,288.00
Department of Health,East Sussex Hospitals NHS Trust,01/05/2013,M&S GENERAL SUPPLIES-OTHER,Planned Care,CONMED LINVATEC UK,0000895648,338.40
Department of Health,East Sussex Hospitals NHS Trust,01/05/2013,PROCEDURE PACKS,Urgent Care,ARCROYAL LTD,0000895776,2181.60
Department of Health,East Sussex Hospitals NHS Trust,01/05/2013,TURIS UROLOGY M&S,Planned Care,OLYMPUS KEYMED,0000896352,3478.99
Department of Health,East Sussex Hospitals NHS Trust,01/05/2013,M&S GENERAL SUPPLIES-OTHER,Planned Care,KIMBERLEY-CLARK EUROPEAN SERVS LIMITED,0000896456,825.40
Department of Health,East Sussex Hospitals NHS Trust,01/05/2013,M&S GENERAL SUPPLIES-OTHER,Planned Care,OLYMPUS KEYMED,0000896591,2216.30
Department of Health,East Sussex Hospitals NHS Trust,01/05/2013,TURP/TURBT EQUIPMENT,Planned Care,OLYMPUS KEYMED,0000896907,742.76
Department of Health,East Sussex Hospitals NHS Trust,01/05/2013,TURIS UROLOGY M&S,Planned Care,OLYMPUS KEYMED,0000896907,3594.00
Department of Health,East Sussex Hospitals NHS Trust,01/05/2013,ELECTRODES,Planned Care,OLYMPUS KEYMED,0000896908,2455.90
Department of Health,East Sussex Hospitals NHS Trust,01/05/2013,STOCK-ASCRIBE CONQUEST,Pharmacy Stock,BAXTER HEALTHCARE (BERKSHIRE)LTD,0001207057,1685.82
Department of Health,East Sussex Hospitals NHS Trust,01/05/2013,STOCK-ASCRIBE CONQUEST,Pharmacy Stock,BAXTER HEALTHCARE (BERKSHIRE)LTD,0001207087,2085.18
Department of Health,East Sussex Hospitals NHS Trust,01/05/2013,STOCK-ASCRIBE CONQUEST,Pharmacy Stock,BAXTER HEALTHCARE (BERKSHIRE)LTD,0001207155,4301.04
Department of Health,East Sussex Hospitals NHS Trust,01/05/2013,STOCK-ASCRIBE CONQUEST,Pharmacy Stock,BAXTER HEALTHCARE (BERKSHIRE)LTD,0001207156,1362.12
Department of Health,East Sussex Hospitals NHS Trust,01/05/2013,STOCK-ASCRIBE CONQUEST,Pharmacy Stock,BAXTER HEALTHCARE (BERKSHIRE)LTD,0001207294,588.00
Department of Health,East Sussex Hospitals NHS Trust,01/05/2013,STOCK-ASCRIBE CONQUEST,Pharmacy Stock,BAXTER HEALTHCARE (BERKSHIRE)LTD,0001207295,840.00
Department of Health,East Sussex Hospitals NHS Trust,01/05/2013,STOCK-ASCRIBE CONQUEST,Pharmacy Stock,BAXTER HEALTHCARE (BERKSHIRE)LTD,0001207314,1680.00
Department of Health,East Sussex Hospitals NHS Trust,01/05/2013,STOCK-ASCRIBE CONQUEST,Pharmacy Stock,BAXTER HEALTHCARE (BERKSHIRE)LTD,0001207372,1418.02
Department of Health,East Sussex Hospitals NHS Trust,01/05/2013,STOCK-ASCRIBE CONQUEST,Pharmacy Stock,BAXTER HEALTHCARE (BERKSHIRE)LTD,0001207411,2521.46
Department of Health,East Sussex Hospitals NHS Trust,01/05/2013,STOCK-ASCRIBE CONQUEST,Pharmacy Stock,BAXTER HEALTHCARE (BERKSHIRE)LTD,0001207437,840.00
Department of Health,East Sussex Hospitals NHS Trust,01/05/2013,STOCK-ASCRIBE CONQUEST,Pharmacy Stock,BAXTER HEALTHCARE (BERKSHIRE)LTD,0001207473,1288.47
Department of Health,East Sussex Hospitals NHS Trust,01/05/2013,STOCK-ASCRIBE CONQUEST,Pharmacy Stock,BAXTER HEALTHCARE (BERKSHIRE)LTD,0001207490,1135.23
Department of Health,East Sussex Hospitals NHS Trust,01/05/2013,STOCK-ASCRIBE CONQUEST,Pharmacy Stock,BAXTER HEALTHCARE (BERKSHIRE)LTD,0001207493,630.00
Department of Health,East Sussex Hospitals NHS Trust,01/05/2013,STOCK-ASCRIBE CONQUEST,Pharmacy Stock,HOSPIRA UK LIMITED,0001207501,1262.40
Department of Health,East Sussex Hospitals NHS Trust,01/05/2013,STOCK-ASCRIBE CONQUEST,Pharmacy Stock,HOSPIRA UK LIMITED,0001207502,540.00
Department of Health,East Sussex Hospitals NHS Trust,01/05/2013,STOCK-ASCRIBE CONQUEST,Pharmacy Stock,HOSPIRA UK LIMITED,0001207518,2670.00
Department of Health,East Sussex Hospitals NHS Trust,01/05/2013,STOCK-ASCRIBE CONQUEST,Pharmacy Stock,NORGINE PHARMACEUTICALS LTD,0001207574,1282.56
Department of Health,East Sussex Hospitals NHS Trust,01/05/2013,STOCK-ASCRIBE CONQUEST,Pharmacy Stock,HOSPIRA UK LIMITED,0001207582,1708.80
Department of Health,East Sussex Hospitals NHS Trust,01/05/2013,STOCK-ASCRIBE CONQUEST,Pharmacy Stock,HOSPIRA UK LIMITED,0001207583,2592.00
Department of Health,East Sussex Hospitals NHS Trust,01/05/2013,STOCK-ASCRIBE CONQUEST,Pharmacy Stock,AMGEN LTD,0001207588,528.00
Department of Health,East Sussex Hospitals NHS Trust,01/05/2013,STOCK-ASCRIBE CONQUEST,Pharmacy Stock,NORGINE PHARMACEUTICALS LTD,0001208119,1282.56
Department of Health,East Sussex Hospitals NHS Trust,01/05/2013,STOCK-ASCRIBE CONQUEST,Pharmacy Stock,AMGEN LTD,0001208121,563.75
Department of Health,East Sussex Hospitals NHS Trust,01/05/2013,STOCK-ASCRIBE CONQUEST,Pharmacy Stock,AMGEN LTD,0001208134,792.00
Department of Health,East Sussex Hospitals NHS Trust,01/05/2013,STOCK-ASCRIBE CONQUEST,Pharmacy Stock,HOSPIRA UK LIMITED,0001208161,1890.00
Department of Health,East Sussex Hospitals NHS Trust,01/05/2013,STOCK-ASCRIBE CONQUEST,Pharmacy Stock,SOUTH DEVON HEALTHCARE NHS (TORBAY PMU),0001208376,601.22
Department of Health,East Sussex Hospitals NHS Trust,01/05/2013,STOCK-ASCRIBE CONQUEST,Pharmacy Stock,ALLIANCE HEALTHCARE (DISTRIBUTION) LTD,0001208390,2540.89
Department of Health,East Sussex Hospitals NHS Trust,01/05/2013,STOCK-ASCRIBE CONQUEST,Pharmacy Stock,GE HEALTHCARE LTD,0001208481,1254.53
Department of Health,East Sussex Hospitals NHS Trust,01/05/2013,STOCK-ASCRIBE CONQUEST,Pharmacy Stock,HEALTHCARE AT HOME LTD,0001208486,8041.03
Department of Health,East Sussex Hospitals NHS Trust,01/05/2013,STOCK-ASCRIBE CONQUEST,Pharmacy Stock,ALLIANCE HEALTHCARE (DISTRIBUTION) LTD,0001208544,797.30
Department of Health,East Sussex Hospitals NHS Trust,01/05/2013,STOCK-ASCRIBE CONQUEST,Pharmacy Stock,ALLIANCE HEALTHCARE (DISTRIBUTION) LTD,0001208550,508.70
Department of Health,East Sussex Hospitals NHS Trust,01/05/2013,STOCK-ASCRIBE CONQUEST,Pharmacy Stock,ALLIANCE HEALTHCARE (DISTRIBUTION) LTD,0001208553,22156.91
Department of Health,East Sussex Hospitals NHS Trust,01/05/2013,STOCK-ASCRIBE CONQUEST,Pharmacy Stock,ALLIANCE HEALTHCARE (DISTRIBUTION) LTD,0001208556,995.44
Department of Health,East Sussex Hospitals NHS Trust,01/05/2013,STOCK-ASCRIBE CONQUEST,Pharmacy Stock,ALLIANCE HEALTHCARE (DISTRIBUTION) LTD,0001208557,859.32
Department of Health,East Sussex Hospitals NHS Trust,01/05/2013,STOCK-ASCRIBE CONQUEST,Pharmacy Stock,GE HEALTHCARE LTD,0001208563,828.86
Department of Health,East Sussex Hospitals NHS Trust,01/05/2013,STOCK-ASCRIBE CONQUEST,Pharmacy Stock,ADVANCED MEDICAL SOLUTION (PLYMOUTH) LTD,0001208564,611.40
Department of Health,East Sussex Hospitals NHS Trust,01/05/2013,STOCK-ASCRIBE CONQUEST,Pharmacy Stock,PHARMARAMA INTERNATIONAL LIMITED,0001208725,723.22
Department of Health,East Sussex Hospitals NHS Trust,01/05/2013,STOCK-ASCRIBE CONQUEST,Pharmacy Stock,AMGEN LTD,0001208730,792.00
Department of Health,East Sussex Hospitals NHS Trust,01/05/2013,STOCK-ASCRIBE CONQUEST,Pharmacy Stock,ALLIANCE HEALTHCARE (DISTRIBUTION) LTD,0001208911,738.98
Department of Health,East Sussex Hospitals NHS Trust,01/05/2013,STOCK-ASCRIBE CONQUEST,Pharmacy Stock,AMGEN LTD,0001208990,1057.03
Department of Health,East Sussex Hospitals NHS Trust,01/05/2013,STOCK-ASCRIBE CONQUEST,Pharmacy Stock,ALCURA UK LTD,0001209152,715.00
Department of Health,East Sussex Hospitals NHS Trust,01/05/2013,STOCK-ASCRIBE CONQUEST,Pharmacy Stock,BAXTER HEALTHCARE (BERKSHIRE)LTD,0001209216,882.00
Department of Health,East Sussex Hospitals NHS Trust,01/05/2013,STOCK-ASCRIBE CONQUEST,Pharmacy Stock,BAXTER HEALTHCARE (BERKSHIRE)LTD,0001209217,3315.58
Department of Health,East Sussex Hospitals NHS Trust,01/05/2013,STOCK-ASCRIBE CONQUEST,Pharmacy Stock,AAH PHARMACEUTICALS LTD,0001209325,6491.70
Department of Health,East Sussex Hospitals NHS Trust,01/05/2013,STOCK-ASCRIBE CONQUEST,Pharmacy Stock,GE HEALTHCARE LTD,0001209340,1673.47
Department of Health,East Sussex Hospitals NHS Trust,01/05/2013,STOCK-ASCRIBE CONQUEST,Pharmacy Stock,AAH PHARMACEUTICALS LTD,0001209406,2201.33
Department of Health,East Sussex Hospitals NHS Trust,01/05/2013,STOCK-ASCRIBE CONQUEST,Pharmacy Stock,AAH PHARMACEUTICALS LTD,0001209552,14640.00
Department of Health,East Sussex Hospitals NHS Trust,01/05/2013,STOCK-ASCRIBE CONQUEST,Pharmacy Stock,GE HEALTHCARE LTD,0001209556,3403.27
Department of Health,East Sussex Hospitals NHS Trust,01/05/2013,STOCK-ASCRIBE CONQUEST,Pharmacy Stock,GE HEALTHCARE LTD,0001209557,1673.47
Department of Health,East Sussex Hospitals NHS Trust,01/05/2013,STOCK-ASCRIBE CONQUEST,Pharmacy Stock,GE HEALTHCARE LTD,0001209558,1673.47
Department of Health,East Sussex Hospitals NHS Trust,01/05/2013,STOCK-ASCRIBE CONQUEST,Pharmacy Stock,GE HEALTHCARE LTD,0001209559,1673.47
Department of Health,East Sussex Hospitals NHS Trust,01/05/2013,STOCK-ASCRIBE CONQUEST,Pharmacy Stock,HEALTHCARE AT HOME LTD,0001210003,715.00
Department of Health,East Sussex Hospitals NHS Trust,01/05/2013,STOCK-ASCRIBE CONQUEST,Pharmacy Stock,HEALTHCARE AT HOME LTD,0001210004,1430.00
Department of Health,East Sussex Hospitals NHS Trust,01/05/2013,STOCK-ASCRIBE CONQUEST,Pharmacy Stock,HEALTHCARE AT HOME LTD,0001210005,704.28
Department of Health,East Sussex Hospitals NHS Trust,01/05/2013,STOCK-ASCRIBE CONQUEST,Pharmacy Stock,HEALTHCARE AT HOME LTD,0001210006,704.28
Department of Health,East Sussex Hospitals NHS Trust,01/05/2013,STOCK-ASCRIBE CONQUEST,Pharmacy Stock,HEALTHCARE AT HOME LTD,0001210007,715.00
Department of Health,East Sussex Hospitals NHS Trust,01/05/2013,STOCK-ASCRIBE CONQUEST,Pharmacy Stock,HEALTHCARE AT HOME LTD,0001210008,715.00
Department of Health,East Sussex Hospitals NHS Trust,01/05/2013,STOCK-ASCRIBE CONQUEST,Pharmacy Stock,HEALTHCARE AT HOME LTD,0001210009,704.28
Department of Health,East Sussex Hospitals NHS Trust,01/05/2013,STOCK-ASCRIBE CONQUEST,Pharmacy Stock,HEALTHCARE AT HOME LTD,0001210010,1408.56
Department of Health,East Sussex Hospitals NHS Trust,01/05/2013,STOCK-ASCRIBE CONQUEST,Pharmacy Stock,HEALTHCARE AT HOME LTD,0001210011,715.00
Department of Health,East Sussex Hospitals NHS Trust,01/05/2013,STOCK-ASCRIBE CONQUEST,Pharmacy Stock,HEALTHCARE AT HOME LTD,0001210013,704.28
Department of Health,East Sussex Hospitals NHS Trust,01/05/2013,STOCK-ASCRIBE CONQUEST,Pharmacy Stock,HEALTHCARE AT HOME LTD,0001210014,715.00
Department of Health,East Sussex Hospitals NHS Trust,01/05/2013,STOCK-ASCRIBE CONQUEST,Pharmacy Stock,HEALTHCARE AT HOME LTD,0001210015,715.00
Department of Health,East Sussex Hospitals NHS Trust,01/05/2013,STOCK-ASCRIBE CONQUEST,Pharmacy Stock,HEALTHCARE AT HOME LTD,0001210016,715.00
Department of Health,East Sussex Hospitals NHS Trust,01/05/2013,STOCK-ASCRIBE CONQUEST,Pharmacy Stock,HEALTHCARE AT HOME LTD,0001210017,715.00
Department of Health,East Sussex Hospitals NHS Trust,01/05/2013,STOCK-ASCRIBE CONQUEST,Pharmacy Stock,HEALTHCARE AT HOME LTD,0001210018,704.28
Department of Health,East Sussex Hospitals NHS Trust,01/05/2013,STOCK-ASCRIBE CONQUEST,Pharmacy Stock,HEALTHCARE AT HOME LTD,0001210019,715.00
Department of Health,East Sussex Hospitals NHS Trust,01/05/2013,STOCK-ASCRIBE CONQUEST,Pharmacy Stock,HEALTHCARE AT HOME LTD,0001210020,715.00
Department of Health,East Sussex Hospitals NHS Trust,01/05/2013,STOCK-ASCRIBE CONQUEST,Pharmacy Stock,HEALTHCARE AT HOME LTD,0001210021,704.28
Department of Health,East Sussex Hospitals NHS Trust,01/05/2013,STOCK-ASCRIBE CONQUEST,Pharmacy Stock,HEALTHCARE AT HOME LTD,0001210022,715.00
Department of Health,East Sussex Hospitals NHS Trust,01/05/2013,STOCK-ASCRIBE CONQUEST,Pharmacy Stock,HEALTHCARE AT HOME LTD,0001210023,715.00
Department of Health,East Sussex Hospitals NHS Trust,01/05/2013,STOCK-ASCRIBE CONQUEST,Pharmacy Stock,HEALTHCARE AT HOME LTD,0001210024,1408.56
Department of Health,East Sussex Hospitals NHS Trust,01/05/2013,STOCK-ASCRIBE CONQUEST,Pharmacy Stock,HEALTHCARE AT HOME LTD,0001210025,715.00
Department of Health,East Sussex Hospitals NHS Trust,01/05/2013,STOCK-ASCRIBE CONQUEST,Pharmacy Stock,HEALTHCARE AT HOME LTD,0001210168,715.00
Department of Health,East Sussex Hospitals NHS Trust,01/05/2013,STOCK-ASCRIBE CONQUEST,Pharmacy Stock,ECOLAB LTD,0001210201,742.44
Department of Health,East Sussex Hospitals NHS Trust,01/05/2013,STOCK-ASCRIBE CONQUEST,Pharmacy Stock,HEALTHCARE AT HOME LTD,0001210215,554.14
Department of Health,East Sussex Hospitals NHS Trust,01/05/2013,STOCK-ASCRIBE CONQUEST,Pharmacy Stock,HEALTHCARE AT HOME LTD,0001210216,1262.45
Department of Health,East Sussex Hospitals NHS Trust,01/05/2013,STOCK-ASCRIBE CONQUEST,Pharmacy Stock,HEALTHCARE AT HOME LTD,0001210217,1382.15
Department of Health,East Sussex Hospitals NHS Trust,01/05/2013,STOCK-ASCRIBE CONQUEST,Pharmacy Stock,HEALTHCARE AT HOME LTD,0001210220,554.14
Department of Health,East Sussex Hospitals NHS Trust,01/05/2013,SERVICES PROVIDED TO NON NHS,Corporate Services,INTERACT MEDICAL,0001419693,3633.60
Department of Health,East Sussex Hospitals NHS Trust,01/05/2013,SERVICES PROVIDED TO NON NHS,Corporate Services,INTERACT MEDICAL,0001419696,-4676.40
Department of Health,East Sussex Hospitals NHS Trust,01/05/2013,ESPERANCE - SERVICES RECEIVED,Urgent Care,BMI HEALTHCARE COLLECTIONS,0001420001,550.00
Department of Health,East Sussex Hospitals NHS Trust,01/05/2013,TRAINING FEES - NURSE CONT ED,Corporate Services,HEALTH INFORMATION SYSTEMS (UK) LTD,0001421043,820.00
Department of Health,East Sussex Hospitals NHS Trust,01/05/2013,SERVICES PROVIDED TO NON NHS,Integrated Care,BMI HEALTHCARE COLLECTIONS,0001421120,4875.00
Department of Health,East Sussex Hospitals NHS Trust,01/05/2013,TELEPHONES-RENTAL&CALLS,Commercial,BRITISH TELECOM,0001421206,537.75
Department of Health,East Sussex Hospitals NHS Trust,01/05/2013,TELEPHONES-RENTAL&CALLS,Commercial,BRITISH TELECOM,0001421224,1549.75
Department of Health,East Sussex Hospitals NHS Trust,01/05/2013,TELEPHONES-RENTAL&CALLS,Urgent Care,CLOUDXL NETWORKS LTD,0001421235,708.54
Department of Health,East Sussex Hospitals NHS Trust,01/05/2013,PHOTOCOPIER HIRE,Corporate Services,RICOH UK LTD,0001421244,795.88
Department of Health,East Sussex Hospitals NHS Trust,01/05/2013,TELEPHONES-RENTAL&CALLS,Commercial,BRITISH TELECOM,0001421245,2035.35
Department of Health,East Sussex Hospitals NHS Trust,01/05/2013,TELEPHONES-RENTAL&CALLS,Commercial,BRITISH TELECOM,0001421247,901.08
Department of Health,East Sussex Hospitals NHS Trust,01/05/2013,PROFESSIONAL FEES,Planned Care,SUZANNE MCCARTHY,0001421281,737.80
Department of Health,East Sussex Hospitals NHS Trust,01/05/2013,PROFESSIONAL FEES,Planned Care,DAVID JONES,0001421282,708.00
Department of Health,East Sussex Hospitals NHS Trust,01/05/2013,ESPERANCE - SERVICES RECEIVED,Integrated Care,BMI HEALTHCARE COLLECTIONS,0001421298,6240.00
Department of Health,East Sussex Hospitals NHS Trust,01/05/2013,COUNCIL TAX PAYMENTS,Commercial,EASTBOURNE BOROUGH COUNCIL,0001421315,9233.64
Department of Health,East Sussex Hospitals NHS Trust,01/05/2013,STOCK-ASCRIBE CONQUEST,Pharmacy Stock,HELAPET LTD,0001421321,616.20
Department of Health,East Sussex Hospitals NHS Trust,01/05/2013,STOCK-ASCRIBE EDGH,Pharmacy Stock,ALCURA UK LTD,0001421322,4401.00
Department of Health,East Sussex Hospitals NHS Trust,01/05/2013,SEWERAGE - RATES & METERED,Commercial,SOUTHERN WATER SERVICES LTD,0001421325,5813.91
Department of Health,East Sussex Hospitals NHS Trust,01/05/2013,TRAINING COURSE FEES-OTHER,Integrated Care,CRUSE BEREAVEMENT CARE,0001421326,1320.00
Department of Health,East Sussex Hospitals NHS Trust,01/05/2013,EDUCATIONAL EQUIPMENT,Corporate Services,D R M  EQUIPMENT LTD,0001527188,1104.00
Department of Health,East Sussex Hospitals NHS Trust,01/05/2013,EDUCATIONAL EQUIPMENT,Corporate Services,D R M  EQUIPMENT LTD,0001527189,618.23
Department of Health,East Sussex Hospitals NHS Trust,01/05/2013,AGENCY CONSULTANT,Corporate Services,HEALTH MANAGEMENT LTD,0001527621,3304.00
Department of Health,East Sussex Hospitals NHS Trust,01/05/2013,AGENCY DRIVERS,Commercial,SAMS PRIVATE HIRE,0001527675,760.00
Department of Health,East Sussex Hospitals NHS Trust,01/05/2013,AGENCY NURSE - QUALIFIED,Urgent Care,LYMPHOEDEMA SPECIALIST SERVICES,0001527684,2943.09
Department of Health,East Sussex Hospitals NHS Trust,01/05/2013,ADVERTISING COSTS-NON STAFF,Commercial,PROWORX MEDIA LIMITED,0001527685,4400.00
Department of Health,East Sussex Hospitals NHS Trust,01/05/2013,ADVERTISING COSTS-NON STAFF,Commercial,YES PROMO PRODUCTS LTD,0001527686,1236.00
Department of Health,East Sussex Hospitals NHS Trust,01/05/2013,AGENCY TECHNICIAN,Urgent Care,ABSOLUTE ACCOUNTING & TAX SOLS LTD,0001527687,889.00
Department of Health,East Sussex Hospitals NHS Trust,01/05/2013,AGENCY TECHNICIAN,Urgent Care,ABSOLUTE ACCOUNTING & TAX SOLS LTD,0001527688,1130.00
Department of Health,East Sussex Hospitals NHS Trust,01/05/2013,AGENCY TECHNICIAN,Urgent Care,ABSOLUTE ACCOUNTING & TAX SOLS LTD,0001527689,1137.00
Department of Health,East Sussex Hospitals NHS Trust,01/05/2013,PATS.APPL.-DENTAL,Planned Care,DENTAL PROSTHETICS,0001527695,509.00
Department of Health,East Sussex Hospitals NHS Trust,01/05/2013,PATS.APPL.-DENTAL,Planned Care,DENTAL PROSTHETICS,0001527696,576.00
Department of Health,East Sussex Hospitals NHS Trust,01/05/2013,TAXI - OTHER,Commercial,EASTBOURNE & COUNTRY TAXIS LTD,0001527697,2090.30
Department of Health,East Sussex Hospitals NHS Trust,01/05/2013,TAXI - OTHER,Commercial,EASTBOURNE & COUNTRY TAXIS LTD,0001527698,2206.90
Department of Health,East Sussex Hospitals NHS Trust,01/05/2013,TAXI - OTHER,Commercial,247 TRANSPORT SOLUTIONS LTD,0001527708,1938.80
Department of Health,East Sussex Hospitals NHS Trust,01/05/2013,GAS,Commercial,CORONA ENERGY,0001527801,5356.99
Department of Health,East Sussex Hospitals NHS Trust,01/05/2013,GAS (FIRM),Commercial,CORONA ENERGY,0001527804,10786.39
Department of Health,East Sussex Hospitals NHS Trust,01/05/2013,ELECTRICITY-LAUNDRY RECHARGE,Commercial,CORONA ENERGY,0001527805,5120.52
Department of Health,East Sussex Hospitals NHS Trust,01/05/2013,GAS,Commercial,CORONA ENERGY,0001527808,2740.44
Department of Health,East Sussex Hospitals NHS Trust,01/05/2013,GAS,Commercial,CORONA ENERGY,0001527809,78419.74
Department of Health,East Sussex Hospitals NHS Trust,01/05/2013,GAS,Commercial,CORONA ENERGY,0001527810,139213.93
Department of Health,East Sussex Hospitals NHS Trust,01/05/2013,GAS,Commercial,CORONA ENERGY,0001527815,-2748.21
Department of Health,East Sussex Hospitals NHS Trust,01/05/2013,DRUGS-OTHER,Commercial,HOSPIRA UK LIMITED,0001613842,1050.00
Department of Health,East Sussex Hospitals NHS Trust,01/05/2013,DRUGS-OTHER,Commercial,HOSPIRA UK LIMITED,0001613868,609.00
Department of Health,East Sussex Hospitals NHS Trust,01/05/2013,DRUGS-OTHER,Commercial,BAXTER HEALTHCARE (BERKSHIRE)LTD,0001613875,1130.69
Department of Health,East Sussex Hospitals NHS Trust,01/05/2013,DRUGS-OTHER,Commercial,CHERWELL LABORATORIES,0001613973,790.16
Department of Health,East Sussex Hospitals NHS Trust,01/05/2013,M&S EQUIPMENT - OTHER,Commercial,BAXTER HEALTHCARE (BERKSHIRE)LTD,0001614015,758.40
Department of Health,East Sussex Hospitals NHS Trust,01/05/2013,DRUGS-OTHER,Commercial,SIGMA PHARMACEUTICALS PLC,0001614187,583.20
Department of Health,East Sussex Hospitals NHS Trust,01/05/2013,ST.ANNES ADMIN,Corporate Services,RICOH UK LTD,0001704079,423.46
Department of Health,East Sussex Hospitals NHS Trust,01/05/2013,RADIOPAGERS - RENTAL,Commercial,PAGEONE COMMUNICATIONS LTD,0001704172,6373.33
Department of Health,East Sussex Hospitals NHS Trust,01/05/2013,COMPUTER SOFTWARE,Integrated Care,XALPHA SOFTWARE,0001813772,800.00
Department of Health,East Sussex Hospitals NHS Trust,01/05/2013,PROVISIONS,Commercial,3663,0001904818,919.30
Department of Health,East Sussex Hospitals NHS Trust,01/05/2013,PROVISIONS,Commercial,3663,0001904822,633.94
Department of Health,East Sussex Hospitals NHS Trust,01/05/2013,PROVISIONS,Commercial,3663,0001904823,687.61
Department of Health,East Sussex Hospitals NHS Trust,01/05/2013,PROVISIONS,Commercial,3663,0001905014,637.06
Department of Health,East Sussex Hospitals NHS Trust,01/05/2013,PROVISIONS,Commercial,3663,0001905236,650.08
Department of Health,East Sussex Hospitals NHS Trust,01/05/2013,PROVISIONS,Commercial,3663,0001905238,620.86
Department of Health,East Sussex Hospitals NHS Trust,01/05/2013,PROVISIONS,Commercial,3663,0001905327,533.37
Department of Health,East Sussex Hospitals NHS Trust,01/05/2013,PROVISIONS,Commercial,3663,0001905328,833.29
Department of Health,East Sussex Hospitals NHS Trust,01/05/2013,PROVISIONS,Commercial,3663,0001905330,486.18
Department of Health,East Sussex Hospitals NHS Trust,01/05/2013,PROVISIONS,Commercial,3663,0001905335,779.55
Department of Health,East Sussex Hospitals NHS Trust,01/05/2013,PROVISIONS,Commercial,3663,0001905336,714.38
Department of Health,East Sussex Hospitals NHS Trust,01/05/2013,HARDWARE & CROCKERY,Commercial,BUNZL CATERING SUPPLIES,0001905419,476.93
Department of Health,East Sussex Hospitals NHS Trust,01/05/2013,PROVISIONS,Commercial,BRAKE BROS (FROZEN FOODS) LTD,0001905519,663.07
Department of Health,East Sussex Hospitals NHS Trust,01/05/2013,PROVISIONS,Commercial,BRAKE BROS (FROZEN FOODS) LTD,0001905520,618.45
Department of Health,East Sussex Hospitals NHS Trust,01/05/2013,PROVISIONS,Commercial,BRAKE BROS (FROZEN FOODS) LTD,0001905521,570.41
Department of Health,East Sussex Hospitals NHS Trust,01/05/2013,PROVISIONS,Commercial,BRAKE BROS (FROZEN FOODS) LTD,0001905524,628.62
Department of Health,East Sussex Hospitals NHS Trust,01/05/2013,PROVISIONS,Commercial,BRAKE BROS (FROZEN FOODS) LTD,0001905525,813.83
Department of Health,East Sussex Hospitals NHS Trust,01/05/2013,PROVISIONS,Commercial,BRAKE BROS (FROZEN FOODS) LTD,0001905526,907.00
Department of Health,East Sussex Hospitals NHS Trust,01/05/2013,PROVISIONS,Commercial,J R WHOLESALE,0001905614,523.39
Department of Health,East Sussex Hospitals NHS Trust,01/05/2013,PROVISIONS,Commercial,J R WHOLESALE,0001905616,540.70
Department of Health,East Sussex Hospitals NHS Trust,01/05/2013,M&S GENERAL SUPPLIES-OTHER,Planned Care,RESMED (UK) LTD,0002112667,578.40
Department of Health,East Sussex Hospitals NHS Trust,01/05/2013,M&S EQUIPMENT - OTHER,Planned Care,RESMED (UK) LTD,0002112668,870.00
Department of Health,East Sussex Hospitals NHS Trust,01/05/2013,M&S GENERAL SUPPLIES-OTHER,Planned Care,RESMED (UK) LTD,0002112668,17.28
Department of Health,East Sussex Hospitals NHS Trust,01/05/2013,SECURICOR CASH TRANSIT CHARGES,Corporate Services,G4S CASH SERVICES,0002112714,593.21
Department of Health,East Sussex Hospitals NHS Trust,01/05/2013,M&S GENERAL SUPPLIES-OTHER,Planned Care,SMITH & NEPHEW ADVANCED SURGICAL DEVICES,0002113174,15.51
Department of Health,East Sussex Hospitals NHS Trust,01/05/2013,PROSTHESES-OTHER,Planned Care,SMITH & NEPHEW ADVANCED SURGICAL DEVICES,0002113174,686.98
Department of Health,East Sussex Hospitals NHS Trust,01/05/2013,M&S GENERAL SUPPLIES-OTHER,Planned Care,SMITH & NEPHEW ADVANCED SURGICAL DEVICES,0002113180,935.10
Department of Health,East Sussex Hospitals NHS Trust,01/05/2013,SURGICAL INSTRUMENTS,Planned Care,SMITH & NEPHEW ADVANCED SURGICAL DEVICES,0002113180,161.26
Department of Health,East Sussex Hospitals NHS Trust,01/05/2013,PROSTHESES-OTHER,Planned Care,BIOMET UK HEALTHCARE LTD,0002114666,6015.60
Department of Health,East Sussex Hospitals NHS Trust,01/05/2013,NATIONAL JOINT REGISTRY LEVY,Planned Care,BIOMET UK HEALTHCARE LTD,0002114666,80.02
Department of Health,East Sussex Hospitals NHS Trust,01/05/2013,CONTRACT-VEHICLE LEASING,Commercial,EURO SELF DRIVE LTD,0002114815,1126.66
Department of Health,East Sussex Hospitals NHS Trust,01/05/2013,DRESSINGS-OTHER,Planned Care,BAXTER HEALTHCARE (BERKSHIRE)LTD,0002114889,2462.40
Department of Health,East Sussex Hospitals NHS Trust,01/05/2013,GENERAL LAB. CONSUMABLES,Integrated Care,ALPHA LABORATORIES LTD,0002114959,108.00
Department of Health,East Sussex Hospitals NHS Trust,01/05/2013,LAB MATERIALS - MAIN ANALYSER,Integrated Care,ALPHA LABORATORIES LTD,0002114959,753.60
Department of Health,East Sussex Hospitals NHS Trust,01/05/2013,M&S GENERAL SUPPLIES-OTHER,Planned Care,SMITH & NEPHEW ADVANCED SURGICAL DEVICES,0002115031,247.64
Department of Health,East Sussex Hospitals NHS Trust,01/05/2013,SURGICAL INSTRUMENTS,Planned Care,SMITH & NEPHEW ADVANCED SURGICAL DEVICES,0002115031,56.50
Department of Health,East Sussex Hospitals NHS Trust,01/05/2013,PROSTHESES-OTHER,Planned Care,SMITH & NEPHEW ADVANCED SURGICAL DEVICES,0002115031,441.16
Department of Health,East Sussex Hospitals NHS Trust,01/05/2013,PROSTHESES-OTHER,Planned Care,BIOMET UK HEALTHCARE LTD,0002115040,5529.60
Department of Health,East Sussex Hospitals NHS Trust,01/05/2013,NATIONAL JOINT REGISTRY LEVY,Planned Care,BIOMET UK HEALTHCARE LTD,0002115040,80.02
Department of Health,East Sussex Hospitals NHS Trust,01/05/2013,SECURICOR CASH TRANSIT CHARGES,Corporate Services,G4S CASH SERVICES,0002115053,593.21
Department of Health,East Sussex Hospitals NHS Trust,01/05/2013,CPAP VENTILATOR,Planned Care,RESMED (UK) LTD,0002115180,2016.00
Department of Health,East Sussex Hospitals NHS Trust,01/05/2013,M&S GENERAL SUPPLIES-OTHER,Planned Care,RESMED (UK) LTD,0002115180,378.00
Department of Health,East Sussex Hospitals NHS Trust,01/05/2013,M&S EQUIPMENT - OTHER,Planned Care,RESMED (UK) LTD,0002115184,330.00
Department of Health,East Sussex Hospitals NHS Trust,01/05/2013,M&S GENERAL SUPPLIES-OTHER,Planned Care,RESMED (UK) LTD,0002115184,324.00
Department of Health,East Sussex Hospitals NHS Trust,01/05/2013,M&S GENERAL SUPPLIES-OTHER,Planned Care,RESMED (UK) LTD,0002115185,990.00
Department of Health,East Sussex Hospitals NHS Trust,01/05/2013,LAB MATERIALS - MAIN ANALYSER,Integrated Care,ALPHA LABORATORIES LTD,0002115206,875.16
Department of Health,East Sussex Hospitals NHS Trust,01/05/2013,LOANER KITS - HIRE CHARGE,Planned Care,SMITH & NEPHEW ADVANCED SURGICAL DEVICES,0002115213,1320.00
Department of Health,East Sussex Hospitals NHS Trust,01/05/2013,PROSTHESES-OTHER,Planned Care,SMITH & NEPHEW ADVANCED SURGICAL DEVICES,0002115213,211.09
Department of Health,East Sussex Hospitals NHS Trust,01/05/2013,PROSTHESES-OTHER,Planned Care,BIOMET UK HEALTHCARE LTD,0002115259,4325.40
Department of Health,East Sussex Hospitals NHS Trust,01/05/2013,NATIONAL JOINT REGISTRY LEVY,Planned Care,BIOMET UK HEALTHCARE LTD,0002115259,60.01
Department of Health,East Sussex Hospitals NHS Trust,01/05/2013,ELECTRO MEDICAL EQUIPMENT,Urgent Care,CARDIAC SERVICES (UK) LTD,0002115424,12.00
Department of Health,East Sussex Hospitals NHS Trust,01/05/2013,CAPITAL EXPENDITURE,Other Central,CARDIAC SERVICES (UK) LTD,0002115424,7004.40
Department of Health,East Sussex Hospitals NHS Trust,01/05/2013,PRINTING/PRINTED MATERIALS,Integrated Care,LABELS PLUS LTD,0002115458,991.80
Department of Health,East Sussex Hospitals NHS Trust,01/05/2013,GENERAL LAB. CONSUMABLES,Integrated Care,ALPHA LABORATORIES LTD,0002115546,664.02
Department of Health,East Sussex Hospitals NHS Trust,01/05/2013,PROSTHESES-KNEES,Planned Care,BIOMET UK HEALTHCARE LTD,0002115548,1404.00
Department of Health,East Sussex Hospitals NHS Trust,01/05/2013,NATIONAL JOINT REGISTRY LEVY,Planned Care,BIOMET UK HEALTHCARE LTD,0002115548,40.01
Department of Health,East Sussex Hospitals NHS Trust,01/05/2013,PROSTHESES-KNEES,Planned Care,BIOMET UK HEALTHCARE LTD,0002115549,1533.60
Department of Health,East Sussex Hospitals NHS Trust,01/05/2013,NATIONAL JOINT REGISTRY LEVY,Planned Care,BIOMET UK HEALTHCARE LTD,0002115549,20.00
Department of Health,East Sussex Hospitals NHS Trust,01/05/2013,SURGICAL INSTRUMENTS,Integrated Care,MANA-TECH LTD,0002115571,690.00
Department of Health,East Sussex Hospitals NHS Trust,01/05/2013,PROSTHESES-OTHER,Planned Care,BIOMET UK HEALTHCARE LTD,0002115656,2964.00
Department of Health,East Sussex Hospitals NHS Trust,01/05/2013,NATIONAL JOINT REGISTRY LEVY,Planned Care,BIOMET UK HEALTHCARE LTD,0002115656,20.00
Department of Health,East Sussex Hospitals NHS Trust,01/05/2013,SURGICAL INSTRUMENTS,Planned Care,SMITH & NEPHEW ADVANCED SURGICAL DEVICES,0002115751,595.94
Department of Health,East Sussex Hospitals NHS Trust,01/05/2013,COMPUTER HARDWARE,Integrated Care,HEWLETT-PACKARD LTD,0002115773,572.26
Department of Health,East Sussex Hospitals NHS Trust,01/05/2013,M&S EQUIPMENT - OTHER,Planned Care,OLYMPUS KEYMED,0002115852,658.90
Department of Health,East Sussex Hospitals NHS Trust,01/05/2013,PROSTHESES-KNEES,Planned Care,BIOMET UK HEALTHCARE LTD,0002115866,7534.50
Department of Health,East Sussex Hospitals NHS Trust,01/05/2013,NATIONAL JOINT REGISTRY LEVY,Planned Care,BIOMET UK HEALTHCARE LTD,0002115866,100.02
Department of Health,East Sussex Hospitals NHS Trust,01/05/2013,PROSTHESES-HIP,Planned Care,BIOMET UK HEALTHCARE LTD,0002115868,3285.00
Department of Health,East Sussex Hospitals NHS Trust,01/05/2013,PROSTHESES-KNEES,Planned Care,BIOMET UK HEALTHCARE LTD,0002115868,702.00
Department of Health,East Sussex Hospitals NHS Trust,01/05/2013,NATIONAL JOINT REGISTRY LEVY,Planned Care,BIOMET UK HEALTHCARE LTD,0002115868,20.00
Department of Health,East Sussex Hospitals NHS Trust,01/05/2013,HIRE OF SPECIAL BEDS,Urgent Care,BENMOR MEDICAL LTD,0002116031,546.00
Department of Health,East Sussex Hospitals NHS Trust,01/05/2013,FURNITURE & FITTINGS,Urgent Care,BENMOR MEDICAL LTD,0002116031,266.40
Department of Health,East Sussex Hospitals NHS Trust,01/05/2013,CONTRACT VEHICLE MAINTENANCE,Commercial,P R AUTOS DOWNS GARAGE,0002116130,537.07
Department of Health,East Sussex Hospitals NHS Trust,01/05/2013,PROSTHESES-OTHER,Planned Care,BIOMET UK HEALTHCARE LTD,0002116163,2381.40
Department of Health,East Sussex Hospitals NHS Trust,01/05/2013,NATIONAL JOINT REGISTRY LEVY,Planned Care,BIOMET UK HEALTHCARE LTD,0002116163,40.01
Department of Health,East Sussex Hospitals NHS Trust,01/05/2013,CONTRACT VEHICLE MAINTENANCE,Commercial,RIDGE WEST GARAGE,0002116442,508.54
Department of Health,East Sussex Hospitals NHS Trust,01/05/2013,M&S GENERAL SUPPLIES-OTHER,Planned Care,HOSPITAL INNOVATIONS LTD,0002116481,828.00
Department of Health,East Sussex Hospitals NHS Trust,01/05/2013,ENDOSCOPY CONSUMABLES,Planned Care,OLYMPUS KEYMED,0002116498,263.56
Department of Health,East Sussex Hospitals NHS Trust,01/05/2013,M&S EQUIPMENT - OTHER,Planned Care,OLYMPUS KEYMED,0002116498,337.84
Department of Health,East Sussex Hospitals NHS Trust,01/05/2013,M&S GENERAL SUPPLIES-OTHER,Planned Care,OLYMPUS KEYMED,0002116499,407.32
Department of Health,East Sussex Hospitals NHS Trust,01/05/2013,SURGICAL INSTRUMENTS,Planned Care,OLYMPUS KEYMED,0002116499,172.51
Department of Health,East Sussex Hospitals NHS Trust,01/05/2013,FURNITURE & FITTINGS,Commercial,ETECH OFFICE SOLUTIONS LTD,0002116544,1166.04
Department of Health,East Sussex Hospitals NHS Trust,01/05/2013,M&S EQUIPMENT - OTHER,Planned Care,OLYMPUS KEYMED,0002116749,817.04
Department of Health,East Sussex Hospitals NHS Trust,01/05/2013,CAPITAL EXPENDITURE,Other Central,BYTES SOFTWARE SERVICES LTD,0002116881,5142.24
Department of Health,East Sussex Hospitals NHS Trust,01/05/2013,CAPITAL EXPENDITURE,Other Central,BYTES SOFTWARE SERVICES LTD,0002116882,11819.23
Department of Health,East Sussex Hospitals NHS Trust,01/05/2013,CONTRACT-VEHICLE LEASING,Commercial,EURO SELF DRIVE LTD,0002116958,650.00
Department of Health,East Sussex Hospitals NHS Trust,01/05/2013,CONTRACT-VEHICLE LEASING,Commercial,EURO SELF DRIVE LTD,0002116960,1126.66
Department of Health,East Sussex Hospitals NHS Trust,01/05/2013,M&S GENERAL SUPPLIES-OTHER,Planned Care,OLYMPUS KEYMED,0002116986,634.94
Department of Health,East Sussex Hospitals NHS Trust,01/05/2013,PRE-STERILE COMMERCIAL PACKS,Commercial,RICHARDSON HEALTHCARE,0002213381,983.04
Department of Health,East Sussex Hospitals NHS Trust,01/05/2013,LAB MATERIALS - BIOMERIEUX,Integrated Care,BIOMERIEUX UK LTD,0002213474,643.25
Department of Health,East Sussex Hospitals NHS Trust,01/05/2013,"BOOKS, JOURNALS & SUBCRIPTIONS",Integrated Care,TRUVEN HEALTH ANYLYTICS INC,0002213495,4784.22
Department of Health,East Sussex Hospitals NHS Trust,01/05/2013,OTHER STATIONERY,Integrated Care,LABELS PLUS LTD,0002213610,806.40
Department of Health,East Sussex Hospitals NHS Trust,01/05/2013,M&S EQUIPMENT - OTHER,Planned Care,FOCUS MEDICAL SERVICES LTD,0002213681,1230.00
Department of Health,East Sussex Hospitals NHS Trust,01/05/2013,LAB MATERIALS - LAUNCH,Integrated Care,LAUNCH DIAGNOSTICS LTD,0002213686,1890.00
Department of Health,East Sussex Hospitals NHS Trust,01/05/2013,LOANER KITS - HIRE CHARGE,Planned Care,HOSPITAL INNOVATIONS LTD,0002213724,862.00
Department of Health,East Sussex Hospitals NHS Trust,01/05/2013,UCKFIELD INSTRUMENTS REPAIR,Commercial,CONMED LINVATEC UK,0002213734,919.00
Department of Health,East Sussex Hospitals NHS Trust,01/05/2013,PRE-STERILE COMMERCIAL PACKS,Commercial,ROCIALLE INHEALTH,0002213769,563.22
Department of Health,East Sussex Hospitals NHS Trust,01/05/2013,PRE-STERILE COMMERCIAL PACKS,Commercial,ROCIALLE INHEALTH,0002213770,1045.98
Department of Health,East Sussex Hospitals NHS Trust,01/05/2013,M&S GENERAL SUPPLIES-OTHER,Integrated Care,MANA-TECH LTD,0002213818,2160.00
Department of Health,East Sussex Hospitals NHS Trust,01/05/2013,LAB MATERIALS - BIOMERIEUX,Integrated Care,BIOMERIEUX UK LTD,0002213823,1084.99
Department of Health,East Sussex Hospitals NHS Trust,01/05/2013,PRE-STERILE COMMERCIAL PACKS,Commercial,RICHARDSON HEALTHCARE,0002213862,983.04
Department of Health,East Sussex Hospitals NHS Trust,01/05/2013,CONT.MAIN-MED & SURG EQUIP,Urgent Care,VERATHON MEDICAL,0002213872,495.00
Department of Health,East Sussex Hospitals NHS Trust,01/05/2013,M&S EQUIPMENT - OTHER,Planned Care,FOCUS MEDICAL SERVICES LTD,0002213888,1230.00
Department of Health,East Sussex Hospitals NHS Trust,01/05/2013,ALPHA REAGENTS,Integrated Care,ALPHA LABORATORIES LTD,0002213928,12518.10
Department of Health,East Sussex Hospitals NHS Trust,01/05/2013,LAB MATERIALS - BIOMERIEUX,Integrated Care,BIOMERIEUX UK LTD,0002214045,1274.36
Department of Health,East Sussex Hospitals NHS Trust,01/05/2013,M&S GENERAL SUPPLIES-OTHER,Planned Care,OLYMPUS KEYMED,0002214047,1437.60
Department of Health,East Sussex Hospitals NHS Trust,01/05/2013,LAB MATERIALS - BIOMERIEUX,Integrated Care,BIOMERIEUX UK LTD,0002214090,643.25
Department of Health,East Sussex Hospitals NHS Trust,01/05/2013,LAB MATERIALS - MAIN ANALYSER,Integrated Care,ALPHA LABORATORIES LTD,0002214098,3622.99
Department of Health,East Sussex Hospitals NHS Trust,01/05/2013,LAB.REAGENTS-MISCELLANEOUS,Integrated Care,ALPHA LABORATORIES LTD,0002214098,18.74
Department of Health,East Sussex Hospitals NHS Trust,01/05/2013,PROSTHESIS - GRAFTS,Planned Care,COLOPLAST LTD,0002214108,3800.71
Department of Health,East Sussex Hospitals NHS Trust,01/05/2013,PRE-STERILE COMMERCIAL PACKS,Commercial,ROCIALLE INHEALTH,0002214118,1350.84
Department of Health,East Sussex Hospitals NHS Trust,01/05/2013,INTERVENTIONAL DISPOSABLES,Integrated Care,MANA-TECH LTD,0002214187,600.00
Department of Health,East Sussex Hospitals NHS Trust,01/05/2013,M&S GENERAL SUPPLIES-OTHER,Integrated Care,CELONOVA BIOSCIENCES OF EUROPE,0002214226,1098.00
Department of Health,East Sussex Hospitals NHS Trust,01/05/2013,PRE-STERILE COMMERCIAL PACKS,Commercial,ROCIALLE INHEALTH,0002214227,517.00
Department of Health,East Sussex Hospitals NHS Trust,01/05/2013,CLINICAL WASTE DISPOSAL,Commercial,SRCL LTD,0002214253,17872.60
Department of Health,East Sussex Hospitals NHS Trust,01/05/2013,SURGICAL INSTRUMENTS,Planned Care,OLYMPUS KEYMED,0002214449,3474.20
Department of Health,East Sussex Hospitals NHS Trust,01/05/2013,PRE-STERILE COMMERCIAL PACKS,Commercial,RICHARDSON HEALTHCARE,0002214572,983.04
Department of Health,East Sussex Hospitals NHS Trust,01/05/2013,SURGICAL INSTRUMENTS,Planned Care,OLYMPUS KEYMED,0002214601,13178.00
Department of Health,East Sussex Hospitals NHS Trust,01/05/2013,TSSU INSTRUMENTATION,Commercial,OLYMPUS KEYMED,0002214602,2056.25
Department of Health,East Sussex Hospitals NHS Trust,01/05/2013,SURGICAL INSTRUMENTS,Planned Care,OLYMPUS KEYMED,0002214603,5211.30
Department of Health,East Sussex Hospitals NHS Trust,01/05/2013,PRE-STERILE COMMERCIAL PACKS,Commercial,BDF LTD.,0002214653,709.42
Department of Health,East Sussex Hospitals NHS Trust,01/05/2013,PRE-STERILE COMMERCIAL PACKS,Commercial,BDF LTD.,0002214781,845.70
Department of Health,East Sussex Hospitals NHS Trust,01/05/2013,M&S GENERAL SUPPLIES-OTHER,Commercial,NIDA SOLUTIONS LTD,0002214821,1152.07
Department of Health,East Sussex Hospitals NHS Trust,01/05/2013,PRE-STERILE COMMERCIAL PACKS,Commercial,NIDA SOLUTIONS LTD,0002214821,143.96
Department of Health,East Sussex Hospitals NHS Trust,01/05/2013,ENGINEERING MATERIALS,Commercial,CHERRY SECURITY COMPANY,0002215088,820.80
Department of Health,East Sussex Hospitals NHS Trust,01/05/2013,LAUNDRY-SALT,Commercial,BRITISH SALT LTD,0002215142,1725.80
Department of Health,East Sussex Hospitals NHS Trust,01/05/2013,ENGINEERING MATERIALS,Commercial,J F L SPEAR,0002215202,582.00
Department of Health,East Sussex Hospitals NHS Trust,01/05/2013,CT SCANNER LEASE,Integrated Care,TRIPLE POINT LEASE PARTNERS,0002215221,16750.08
Department of Health,East Sussex Hospitals NHS Trust,01/05/2013,STOCK-ASCRIBE EDGH,Pharmacy Stock,NORGINE PHARMACEUTICALS LTD,0013002525,1603.20
Department of Health,East Sussex Hospitals NHS Trust,01/05/2013,STOCK-ASCRIBE EDGH,Pharmacy Stock,HOSPIRA UK LIMITED,0013002527,1765.80
Department of Health,East Sussex Hospitals NHS Trust,01/05/2013,STOCK-ASCRIBE EDGH,Pharmacy Stock,BAXTER HEALTHCARE (BERKSHIRE)LTD,0013002721,630.00
Department of Health,East Sussex Hospitals NHS Trust,01/05/2013,STOCK-ASCRIBE EDGH,Pharmacy Stock,BAXTER HEALTHCARE (BERKSHIRE)LTD,0013002722,630.00
Department of Health,East Sussex Hospitals NHS Trust,01/05/2013,STOCK-ASCRIBE EDGH,Pharmacy Stock,BAXTER HEALTHCARE (BERKSHIRE)LTD,0013002723,1260.00
Department of Health,East Sussex Hospitals NHS Trust,01/05/2013,STOCK-ASCRIBE EDGH,Pharmacy Stock,BAXTER HEALTHCARE (BERKSHIRE)LTD,0013002724,840.00
Department of Health,East Sussex Hospitals NHS Trust,01/05/2013,STOCK-ASCRIBE EDGH,Pharmacy Stock,AMGEN LTD,0013002795,867.60
Department of Health,East Sussex Hospitals NHS Trust,01/05/2013,STOCK-ASCRIBE EDGH,Pharmacy Stock,HOSPIRA UK LIMITED,0013002893,2136.00
Department of Health,East Sussex Hospitals NHS Trust,01/05/2013,STOCK-ASCRIBE EDGH,Pharmacy Stock,HOSPIRA UK LIMITED,0013002904,854.40
Department of Health,East Sussex Hospitals NHS Trust,01/05/2013,STOCK-ASCRIBE EDGH,Pharmacy Stock,BAXTER HEALTHCARE (BERKSHIRE)LTD,0013002933,818.76
Department of Health,East Sussex Hospitals NHS Trust,01/05/2013,STOCK-ASCRIBE EDGH,Pharmacy Stock,BAXTER HEALTHCARE (BERKSHIRE)LTD,0013002934,2715.72
Department of Health,East Sussex Hospitals NHS Trust,01/05/2013,STOCK-ASCRIBE EDGH,Pharmacy Stock,BAXTER HEALTHCARE (BERKSHIRE)LTD,0013002941,4067.00
Department of Health,East Sussex Hospitals NHS Trust,01/05/2013,STOCK-ASCRIBE EDGH,Pharmacy Stock,HOSPIRA UK LIMITED,0013003373,1068.00
Department of Health,East Sussex Hospitals NHS Trust,01/05/2013,STOCK-ASCRIBE EDGH,Pharmacy Stock,HOSPIRA UK LIMITED,0013003396,854.40
Department of Health,East Sussex Hospitals NHS Trust,01/05/2013,STOCK-ASCRIBE EDGH,Pharmacy Stock,HOSPIRA UK LIMITED,0013003402,1068.00
Department of Health,East Sussex Hospitals NHS Trust,01/05/2013,STOCK-ASCRIBE EDGH,Pharmacy Stock,BAXTER HEALTHCARE (BERKSHIRE)LTD,0013003502,630.00
Department of Health,East Sussex Hospitals NHS Trust,01/05/2013,STOCK-ASCRIBE EDGH,Pharmacy Stock,BAXTER HEALTHCARE (BERKSHIRE)LTD,0013003504,840.00
Department of Health,East Sussex Hospitals NHS Trust,01/05/2013,STOCK-ASCRIBE EDGH,Pharmacy Stock,BAXTER HEALTHCARE (BERKSHIRE)LTD,0013003505,840.00
Department of Health,East Sussex Hospitals NHS Trust,01/05/2013,STOCK-ASCRIBE EDGH,Pharmacy Stock,BAXTER HEALTHCARE (BERKSHIRE)LTD,0013003747,4413.03
Department of Health,East Sussex Hospitals NHS Trust,01/05/2013,STOCK-ASCRIBE EDGH,Pharmacy Stock,ALLIANCE HEALTHCARE (DISTRIBUTION) LTD,0013003749,1883.28
Department of Health,East Sussex Hospitals NHS Trust,01/05/2013,STOCK-ASCRIBE EDGH,Pharmacy Stock,AMGEN LTD,0013003767,1301.40
Department of Health,East Sussex Hospitals NHS Trust,01/05/2013,STOCK-ASCRIBE EDGH,Pharmacy Stock,ALLIANCE HEALTHCARE (DISTRIBUTION) LTD,0013003778,13400.64
Department of Health,East Sussex Hospitals NHS Trust,01/05/2013,STOCK-ASCRIBE EDGH,Pharmacy Stock,ALLIANCE HEALTHCARE (DISTRIBUTION) LTD,0013003781,2699.74
Department of Health,East Sussex Hospitals NHS Trust,01/05/2013,STOCK-ASCRIBE EDGH,Pharmacy Stock,ALLIANCE HEALTHCARE (DISTRIBUTION) LTD,0013003784,528.55
Department of Health,East Sussex Hospitals NHS Trust,01/05/2013,STOCK-ASCRIBE EDGH,Pharmacy Stock,ALLIANCE HEALTHCARE (DISTRIBUTION) LTD,0013003786,528.55
Department of Health,East Sussex Hospitals NHS Trust,01/05/2013,STOCK-ASCRIBE EDGH,Pharmacy Stock,ALLIANCE HEALTHCARE (DISTRIBUTION) LTD,0013003788,1883.28
Department of Health,East Sussex Hospitals NHS Trust,01/05/2013,STOCK-ASCRIBE EDGH,Pharmacy Stock,BAXTER HEALTHCARE (BERKSHIRE)LTD,0013003823,1982.51
Department of Health,East Sussex Hospitals NHS Trust,01/05/2013,STOCK-ASCRIBE EDGH,Pharmacy Stock,BAXTER HEALTHCARE (BERKSHIRE)LTD,0013003825,4813.45
Department of Health,East Sussex Hospitals NHS Trust,01/05/2013,STOCK-ASCRIBE EDGH,Pharmacy Stock,HEALTHCARE AT HOME LTD,0013003865,-536.25
Department of Health,East Sussex Hospitals NHS Trust,01/05/2013,STOCK-ASCRIBE EDGH,Pharmacy Stock,HOSPIRA UK LIMITED,0013003910,1080.00
Department of Health,East Sussex Hospitals NHS Trust,01/05/2013,STOCK-ASCRIBE EDGH,Pharmacy Stock,GE HEALTHCARE LTD,0013004002,1452.00
Department of Health,East Sussex Hospitals NHS Trust,01/05/2013,STOCK-ASCRIBE EDGH,Pharmacy Stock,ALLIANCE HEALTHCARE (DISTRIBUTION) LTD,0013004079,13400.64
Department of Health,East Sussex Hospitals NHS Trust,01/05/2013,STOCK-ASCRIBE EDGH,Pharmacy Stock,GE HEALTHCARE LTD,0013004083,1187.16
Department of Health,East Sussex Hospitals NHS Trust,01/05/2013,STOCK-ASCRIBE EDGH,Pharmacy Stock,NORGINE PHARMACEUTICALS LTD,0013004087,1603.20
Department of Health,East Sussex Hospitals NHS Trust,01/05/2013,STOCK-ASCRIBE EDGH,Pharmacy Stock,GE HEALTHCARE LTD,0013004093,3542.47
Department of Health,East Sussex Hospitals NHS Trust,01/05/2013,STOCK-ASCRIBE EDGH,Pharmacy Stock,AMGEN LTD,0013004094,1320.00
Department of Health,East Sussex Hospitals NHS Trust,01/05/2013,STOCK-ASCRIBE EDGH,Pharmacy Stock,ALLIANCE HEALTHCARE (DISTRIBUTION) LTD,0013004202,687.46
Department of Health,East Sussex Hospitals NHS Trust,01/05/2013,STOCK-ASCRIBE EDGH,Pharmacy Stock,ALCURA UK LTD,0013004425,5212.92
Department of Health,East Sussex Hospitals NHS Trust,01/05/2013,STOCK-ASCRIBE EDGH,Pharmacy Stock,BAXTER HEALTHCARE (BERKSHIRE)LTD,0013004591,1196.06
Department of Health,East Sussex Hospitals NHS Trust,01/05/2013,STOCK-ASCRIBE EDGH,Pharmacy Stock,AMGEN LTD,0013004881,867.60
Department of Health,East Sussex Hospitals NHS Trust,01/05/2013,STOCK-ASCRIBE EDGH,Pharmacy Stock,BAXTER HEALTHCARE (BERKSHIRE)LTD,0013004882,4325.25
Department of Health,East Sussex Hospitals NHS Trust,01/05/2013,STOCK-ASCRIBE EDGH,Pharmacy Stock,BAXTER HEALTHCARE (BERKSHIRE)LTD,0013004883,2100.00
Department of Health,East Sussex Hospitals NHS Trust,01/05/2013,STOCK-ASCRIBE EDGH,Pharmacy Stock,ALCURA UK LTD,0013004930,775.16
Department of Health,East Sussex Hospitals NHS Trust,01/05/2013,STOCK-ASCRIBE EDGH,Pharmacy Stock,HEALTHCARE AT HOME LTD,0013005088,715.00
Department of Health,East Sussex Hospitals NHS Trust,01/05/2013,STOCK-ASCRIBE EDGH,Pharmacy Stock,HEALTHCARE AT HOME LTD,0013005089,715.00
Department of Health,East Sussex Hospitals NHS Trust,01/05/2013,STOCK-ASCRIBE EDGH,Pharmacy Stock,HEALTHCARE AT HOME LTD,0013005090,704.28
Department of Health,East Sussex Hospitals NHS Trust,01/05/2013,STOCK-ASCRIBE EDGH,Pharmacy Stock,HEALTHCARE AT HOME LTD,0013005091,704.28
Department of Health,East Sussex Hospitals NHS Trust,01/05/2013,STOCK-ASCRIBE EDGH,Pharmacy Stock,HEALTHCARE AT HOME LTD,0013005092,704.28
Department of Health,East Sussex Hospitals NHS Trust,01/05/2013,STOCK-ASCRIBE EDGH,Pharmacy Stock,HEALTHCARE AT HOME LTD,0013005093,715.00
Department of Health,East Sussex Hospitals NHS Trust,01/05/2013,STOCK-ASCRIBE EDGH,Pharmacy Stock,HEALTHCARE AT HOME LTD,0013005094,1408.56
Department of Health,East Sussex Hospitals NHS Trust,01/05/2013,STOCK-ASCRIBE EDGH,Pharmacy Stock,HEALTHCARE AT HOME LTD,0013005095,715.00
Department of Health,East Sussex Hospitals NHS Trust,01/05/2013,STOCK-ASCRIBE EDGH,Pharmacy Stock,HEALTHCARE AT HOME LTD,0013005096,715.00
Department of Health,East Sussex Hospitals NHS Trust,01/05/2013,STOCK-ASCRIBE EDGH,Pharmacy Stock,HEALTHCARE AT HOME LTD,0013005097,715.00
Department of Health,East Sussex Hospitals NHS Trust,01/05/2013,STOCK-ASCRIBE EDGH,Pharmacy Stock,HEALTHCARE AT HOME LTD,0013005098,715.00
Department of Health,East Sussex Hospitals NHS Trust,01/05/2013,STOCK-ASCRIBE EDGH,Pharmacy Stock,HEALTHCARE AT HOME LTD,0013005099,715.00
Department of Health,East Sussex Hospitals NHS Trust,01/05/2013,STOCK-ASCRIBE EDGH,Pharmacy Stock,HEALTHCARE AT HOME LTD,0013005100,715.00
Department of Health,East Sussex Hospitals NHS Trust,01/05/2013,STOCK-ASCRIBE EDGH,Pharmacy Stock,HEALTHCARE AT HOME LTD,0013005101,715.00
Department of Health,East Sussex Hospitals NHS Trust,01/05/2013,STOCK-ASCRIBE EDGH,Pharmacy Stock,HEALTHCARE AT HOME LTD,0013005102,715.00
Department of Health,East Sussex Hospitals NHS Trust,01/05/2013,STOCK-ASCRIBE EDGH,Pharmacy Stock,HEALTHCARE AT HOME LTD,0013005103,704.28
Department of Health,East Sussex Hospitals NHS Trust,01/05/2013,STOCK-ASCRIBE EDGH,Pharmacy Stock,HEALTHCARE AT HOME LTD,0013005104,715.00
Department of Health,East Sussex Hospitals NHS Trust,01/05/2013,STOCK-ASCRIBE EDGH,Pharmacy Stock,HEALTHCARE AT HOME LTD,0013005105,704.28
Department of Health,East Sussex Hospitals NHS Trust,01/05/2013,STOCK-ASCRIBE EDGH,Pharmacy Stock,HEALTHCARE AT HOME LTD,0013005106,704.28
Department of Health,East Sussex Hospitals NHS Trust,01/05/2013,STOCK-ASCRIBE EDGH,Pharmacy Stock,HEALTHCARE AT HOME LTD,0013005107,704.28
Department of Health,East Sussex Hospitals NHS Trust,01/05/2013,STOCK-ASCRIBE EDGH,Pharmacy Stock,HEALTHCARE AT HOME LTD,0013005108,1430.00
Department of Health,East Sussex Hospitals NHS Trust,01/05/2013,STOCK-ASCRIBE EDGH,Pharmacy Stock,HEALTHCARE AT HOME LTD,0013005109,704.28
Department of Health,East Sussex Hospitals NHS Trust,01/05/2013,STOCK-ASCRIBE EDGH,Pharmacy Stock,HEALTHCARE AT HOME LTD,0013005110,715.00
Department of Health,East Sussex Hospitals NHS Trust,01/05/2013,STOCK-ASCRIBE EDGH,Pharmacy Stock,HEALTHCARE AT HOME LTD,0013005111,704.28
Department of Health,East Sussex Hospitals NHS Trust,01/05/2013,STOCK-ASCRIBE EDGH,Pharmacy Stock,HEALTHCARE AT HOME LTD,0013005112,704.28
Department of Health,East Sussex Hospitals NHS Trust,01/05/2013,STOCK-ASCRIBE EDGH,Pharmacy Stock,HEALTHCARE AT HOME LTD,0013005113,704.28
Department of Health,East Sussex Hospitals NHS Trust,01/05/2013,STOCK-ASCRIBE EDGH,Pharmacy Stock,HEALTHCARE AT HOME LTD,0013005114,715.00
Department of Health,East Sussex Hospitals NHS Trust,01/05/2013,STOCK-ASCRIBE EDGH,Pharmacy Stock,HEALTHCARE AT HOME LTD,0013005115,715.00
Department of Health,East Sussex Hospitals NHS Trust,01/05/2013,STOCK-ASCRIBE EDGH,Pharmacy Stock,HEALTHCARE AT HOME LTD,0013005118,715.00
Department of Health,East Sussex Hospitals NHS Trust,01/05/2013,STOCK-ASCRIBE EDGH,Pharmacy Stock,HEALTHCARE AT HOME LTD,0013005119,715.00
Department of Health,East Sussex Hospitals NHS Trust,01/05/2013,STOCK-ASCRIBE EDGH,Pharmacy Stock,HEALTHCARE AT HOME LTD,0013005120,715.00
Department of Health,East Sussex Hospitals NHS Trust,01/05/2013,STOCK-ASCRIBE EDGH,Pharmacy Stock,HEALTHCARE AT HOME LTD,0013005121,704.28
Department of Health,East Sussex Hospitals NHS Trust,01/05/2013,STOCK-ASCRIBE EDGH,Pharmacy Stock,HEALTHCARE AT HOME LTD,0013005122,715.00
Department of Health,East Sussex Hospitals NHS Trust,01/05/2013,STOCK-ASCRIBE EDGH,Pharmacy Stock,HEALTHCARE AT HOME LTD,0013005123,704.28
Department of Health,East Sussex Hospitals NHS Trust,01/05/2013,STOCK-ASCRIBE EDGH,Pharmacy Stock,HEALTHCARE AT HOME LTD,0013005124,704.28
Department of Health,East Sussex Hospitals NHS Trust,01/05/2013,STOCK-ASCRIBE EDGH,Pharmacy Stock,HEALTHCARE AT HOME LTD,0013005125,715.00
Department of Health,East Sussex Hospitals NHS Trust,01/05/2013,STOCK-ASCRIBE EDGH,Pharmacy Stock,HEALTHCARE AT HOME LTD,0013005126,715.00
Department of Health,East Sussex Hospitals NHS Trust,01/05/2013,STOCK-ASCRIBE EDGH,Pharmacy Stock,HEALTHCARE AT HOME LTD,0013005127,715.00
Department of Health,East Sussex Hospitals NHS Trust,01/05/2013,STOCK-ASCRIBE EDGH,Pharmacy Stock,HEALTHCARE AT HOME LTD,0013005128,715.00
Department of Health,East Sussex Hospitals NHS Trust,01/05/2013,STOCK-ASCRIBE EDGH,Pharmacy Stock,HEALTHCARE AT HOME LTD,0013005129,704.28
Department of Health,East Sussex Hospitals NHS Trust,01/05/2013,STOCK-ASCRIBE EDGH,Pharmacy Stock,HEALTHCARE AT HOME LTD,0013005130,704.28
Department of Health,East Sussex Hospitals NHS Trust,01/05/2013,STOCK-ASCRIBE EDGH,Pharmacy Stock,HEALTHCARE AT HOME LTD,0013005131,715.00
Department of Health,East Sussex Hospitals NHS Trust,01/05/2013,STOCK-ASCRIBE EDGH,Pharmacy Stock,HEALTHCARE AT HOME LTD,0013005132,704.28
Department of Health,East Sussex Hospitals NHS Trust,01/05/2013,STOCK-ASCRIBE EDGH,Pharmacy Stock,HEALTHCARE AT HOME LTD,0013005133,715.00
Department of Health,East Sussex Hospitals NHS Trust,01/05/2013,STOCK-ASCRIBE EDGH,Pharmacy Stock,HEALTHCARE AT HOME LTD,0013005134,715.00
Department of Health,East Sussex Hospitals NHS Trust,01/05/2013,STOCK-ASCRIBE EDGH,Pharmacy Stock,HEALTHCARE AT HOME LTD,0013005135,715.00
Department of Health,East Sussex Hospitals NHS Trust,01/05/2013,STOCK-ASCRIBE EDGH,Pharmacy Stock,HEALTHCARE AT HOME LTD,0013005136,715.00
Department of Health,East Sussex Hospitals NHS Trust,01/05/2013,STOCK-ASCRIBE EDGH,Pharmacy Stock,HEALTHCARE AT HOME LTD,0013005137,715.00
Department of Health,East Sussex Hospitals NHS Trust,01/05/2013,STOCK-ASCRIBE EDGH,Pharmacy Stock,HEALTHCARE AT HOME LTD,0013005139,715.00
Department of Health,East Sussex Hospitals NHS Trust,01/05/2013,STOCK-ASCRIBE EDGH,Pharmacy Stock,HEALTHCARE AT HOME LTD,0013005140,715.00
Department of Health,East Sussex Hospitals NHS Trust,01/05/2013,STOCK-ASCRIBE EDGH,Pharmacy Stock,HEALTHCARE AT HOME LTD,0013005141,815.64
Department of Health,East Sussex Hospitals NHS Trust,01/05/2013,STOCK-ASCRIBE EDGH,Pharmacy Stock,HEALTHCARE AT HOME LTD,0013005142,704.28
Department of Health,East Sussex Hospitals NHS Trust,01/05/2013,STOCK-ASCRIBE EDGH,Pharmacy Stock,HEALTHCARE AT HOME LTD,0013005143,715.00
Department of Health,East Sussex Hospitals NHS Trust,01/05/2013,STOCK-ASCRIBE EDGH,Pharmacy Stock,HEALTHCARE AT HOME LTD,0013005144,715.00
Department of Health,East Sussex Hospitals NHS Trust,01/05/2013,STOCK-ASCRIBE EDGH,Pharmacy Stock,HEALTHCARE AT HOME LTD,0013005145,704.28
Department of Health,East Sussex Hospitals NHS Trust,01/05/2013,STOCK-ASCRIBE EDGH,Pharmacy Stock,HEALTHCARE AT HOME LTD,0013005146,715.00
Department of Health,East Sussex Hospitals NHS Trust,01/05/2013,STOCK-ASCRIBE EDGH,Pharmacy Stock,HEALTHCARE AT HOME LTD,0013005147,715.00
Department of Health,East Sussex Hospitals NHS Trust,01/05/2013,STOCK-ASCRIBE EDGH,Pharmacy Stock,HEALTHCARE AT HOME LTD,0013005182,1501.85
Department of Health,East Sussex Hospitals NHS Trust,01/05/2013,STOCK-ASCRIBE EDGH,Pharmacy Stock,HEALTHCARE AT HOME LTD,0013005183,554.14
Department of Health,East Sussex Hospitals NHS Trust,01/05/2013,STOCK-ASCRIBE EDGH,Pharmacy Stock,HEALTHCARE AT HOME LTD,0013005185,1501.85
Department of Health,East Sussex Hospitals NHS Trust,01/05/2013,STOCK-ASCRIBE EDGH,Pharmacy Stock,HEALTHCARE AT HOME LTD,0013005186,1501.85
Department of Health,East Sussex Hospitals NHS Trust,01/05/2013,STOCK-ASCRIBE EDGH,Pharmacy Stock,HEALTHCARE AT HOME LTD,0013005207,715.00
Department of Health,East Sussex Hospitals NHS Trust,01/05/2013,STOCK-ASCRIBE CONQUEST,Pharmacy Stock,HEALTHCARE AT HOME LTD,0013005208,715.00
Department of Health,East Sussex Hospitals NHS Trust,01/05/2013,STOCK-ASCRIBE EDGH,Pharmacy Stock,HEALTHCARE AT HOME LTD,0013005209,715.00
Department of Health,East Sussex Hospitals NHS Trust,01/05/2013,STOCK-ASCRIBE EDGH,Pharmacy Stock,HEALTHCARE AT HOME LTD,0013005210,715.00
Department of Health,East Sussex Hospitals NHS Trust,01/05/2013,STOCK-ASCRIBE EDGH,Pharmacy Stock,HEALTHCARE AT HOME LTD,0013005211,715.00
Department of Health,East Sussex Hospitals NHS Trust,01/05/2013,STOCK-ASCRIBE EDGH,Pharmacy Stock,HEALTHCARE AT HOME LTD,0013005212,715.00
Department of Health,East Sussex Hospitals NHS Trust,01/05/2013,STOCK-ASCRIBE CONQUEST,Pharmacy Stock,HEALTHCARE AT HOME LTD,0013005213,715.00
Department of Health,East Sussex Hospitals NHS Trust,01/05/2013,STOCK-ASCRIBE EDGH,Pharmacy Stock,HEALTHCARE AT HOME LTD,0013005214,1408.56
Department of Health,East Sussex Hospitals NHS Trust,01/05/2013,STOCK-ASCRIBE EDGH,Pharmacy Stock,HEALTHCARE AT HOME LTD,0013005215,1408.56
Department of Health,East Sussex Hospitals NHS Trust,01/05/2013,STOCK-ASCRIBE EDGH,Pharmacy Stock,HEALTHCARE AT HOME LTD,0013005216,704.28
Department of Health,East Sussex Hospitals NHS Trust,01/05/2013,STOCK-ASCRIBE EDGH,Pharmacy Stock,HEALTHCARE AT HOME LTD,0013005217,715.00
Department of Health,East Sussex Hospitals NHS Trust,01/05/2013,STOCK-ASCRIBE EDGH,Pharmacy Stock,HEALTHCARE AT HOME LTD,0013005218,715.00
Department of Health,East Sussex Hospitals NHS Trust,01/05/2013,STOCK-ASCRIBE EDGH,Pharmacy Stock,HEALTHCARE AT HOME LTD,0013005219,715.00
Department of Health,East Sussex Hospitals NHS Trust,01/05/2013,STOCK-ASCRIBE EDGH,Pharmacy Stock,HEALTHCARE AT HOME LTD,0013005220,704.28
Department of Health,East Sussex Hospitals NHS Trust,01/05/2013,STOCK-ASCRIBE EDGH,Pharmacy Stock,HEALTHCARE AT HOME LTD,0013005221,715.00
Department of Health,East Sussex Hospitals NHS Trust,01/05/2013,STOCK-ASCRIBE EDGH,Pharmacy Stock,HEALTHCARE AT HOME LTD,0013005222,704.28
Department of Health,East Sussex Hospitals NHS Trust,01/05/2013,STOCK-ASCRIBE EDGH,Pharmacy Stock,HEALTHCARE AT HOME LTD,0013005223,715.00
Department of Health,East Sussex Hospitals NHS Trust,01/05/2013,STOCK-ASCRIBE EDGH,Pharmacy Stock,HEALTHCARE AT HOME LTD,0013005224,704.28
Department of Health,East Sussex Hospitals NHS Trust,01/05/2013,STOCK-ASCRIBE EDGH,Pharmacy Stock,HEALTHCARE AT HOME LTD,0013005225,715.00
Department of Health,East Sussex Hospitals NHS Trust,01/05/2013,STOCK-ASCRIBE CONQUEST,Pharmacy Stock,HEALTHCARE AT HOME LTD,0013005234,715.00
Department of Health,East Sussex Hospitals NHS Trust,01/05/2013,STOCK-ASCRIBE CONQUEST,Pharmacy Stock,HEALTHCARE AT HOME LTD,0013005235,715.00
Department of Health,East Sussex Hospitals NHS Trust,08/05/2013,CAPITAL EXPENDITURE,Other Central,SUSSEX HIS,0000136129,28095.00
Department of Health,East Sussex Hospitals NHS Trust,08/05/2013,CAPITAL EXPENDITURE,Other Central,SUSSEX HIS,0000136246,6006.00
Department of Health,East Sussex Hospitals NHS Trust,08/05/2013,DATA LANDLINE RENTAL,Corporate Services,SUSSEX HIS,0000136464,3341.64
Department of Health,East Sussex Hospitals NHS Trust,08/05/2013,AGENCY STAFF GRADE,Urgent Care,RESUSCITATE MEDICAL SERVICES LTD,0000282700,1504.36
Department of Health,East Sussex Hospitals NHS Trust,08/05/2013,AGENCY STAFF GRADE,Urgent Care,RESUSCITATE MEDICAL SERVICES LTD,0000283074,1203.49
Department of Health,East Sussex Hospitals NHS Trust,08/05/2013,AGENCY NURSE - QUALIFIED,Urgent Care,MAYDAY HEALTHCARE PLC,0000286118,737.05
Department of Health,East Sussex Hospitals NHS Trust,08/05/2013,AGENCY NURSE - QUALIFIED,Urgent Care,MAYDAY HEALTHCARE PLC,0000286120,746.56
Department of Health,East Sussex Hospitals NHS Trust,08/05/2013,AGENCY NURSE - QUALIFIED,Urgent Care,MAYDAY HEALTHCARE PLC,0000286269,1298.90
Department of Health,East Sussex Hospitals NHS Trust,08/05/2013,AGENCY NURSE - QUALIFIED,Urgent Care,MAYDAY HEALTHCARE PLC,0000286270,851.07
Department of Health,East Sussex Hospitals NHS Trust,08/05/2013,AGENCY STAFF GRADE,Planned Care,PERTEMPS NETWORK MEDICAL LIMITED,0000286283,4950.00
Department of Health,East Sussex Hospitals NHS Trust,08/05/2013,AGENCY STAFF GRADE,Planned Care,PERTEMPS NETWORK MEDICAL LIMITED,0000286284,3366.00
Department of Health,East Sussex Hospitals NHS Trust,08/05/2013,AGENCY NURSE - QUALIFIED,Urgent Care,MAYDAY HEALTHCARE PLC,0000286390,510.44
Department of Health,East Sussex Hospitals NHS Trust,08/05/2013,AGENCY NURSE - QUALIFIED,Urgent Care,MAYDAY HEALTHCARE PLC,0000286392,510.44
Department of Health,East Sussex Hospitals NHS Trust,08/05/2013,AGENCY NURSE - QUALIFIED,Urgent Care,MAYDAY HEALTHCARE PLC,0000286505,572.47
Department of Health,East Sussex Hospitals NHS Trust,08/05/2013,AGENCY NURSE - QUALIFIED,Urgent Care,MAYDAY HEALTHCARE PLC,0000286506,513.02
Department of Health,East Sussex Hospitals NHS Trust,08/05/2013,AGENCY NURSE - QUALIFIED,Planned Care,MAYDAY HEALTHCARE PLC,0000286517,842.87
Department of Health,East Sussex Hospitals NHS Trust,08/05/2013,AGENCY NURSE - QUALIFIED,Urgent Care,MAYDAY HEALTHCARE PLC,0000286520,765.46
Department of Health,East Sussex Hospitals NHS Trust,08/05/2013,AGENCY NURSE - QUALIFIED,Urgent Care,MAYDAY HEALTHCARE PLC,0000286523,1290.98
Department of Health,East Sussex Hospitals NHS Trust,08/05/2013,AGENCY SHO,Urgent Care,PERTEMPS NETWORK MEDICAL LIMITED,0000286542,820.80
Department of Health,East Sussex Hospitals NHS Trust,08/05/2013,AGENCY NURSE - QUALIFIED,Planned Care,MAYDAY HEALTHCARE PLC,0000286587,1182.84
Department of Health,East Sussex Hospitals NHS Trust,08/05/2013,AGENCY NURSE - QUALIFIED,Planned Care,MAYDAY HEALTHCARE PLC,0000286588,1116.74
Department of Health,East Sussex Hospitals NHS Trust,08/05/2013,AGENCY NURSE - QUALIFIED,Planned Care,MAYDAY HEALTHCARE PLC,0000286589,1339.52
Department of Health,East Sussex Hospitals NHS Trust,08/05/2013,AGENCY NURSE - QUALIFIED,Urgent Care,MAYDAY HEALTHCARE PLC,0000286624,1018.17
Department of Health,East Sussex Hospitals NHS Trust,08/05/2013,AGENCY NURSE - QUALIFIED,Urgent Care,MAYDAY HEALTHCARE PLC,0000286625,775.86
Department of Health,East Sussex Hospitals NHS Trust,08/05/2013,AGENCY SHO,Urgent Care,MEDACS HEALTHCARE SERVICES LTD,0000286805,4258.78
Department of Health,East Sussex Hospitals NHS Trust,08/05/2013,AGENCY SHO,Urgent Care,MEDACS HEALTHCARE SERVICES LTD,0000286806,1510.20
Department of Health,East Sussex Hospitals NHS Trust,08/05/2013,AGENCY SHO,Urgent Care,MEDACS HEALTHCARE SERVICES LTD,0000286807,2778.77
Department of Health,East Sussex Hospitals NHS Trust,08/05/2013,AGENCY SHO,Urgent Care,MEDACS HEALTHCARE SERVICES LTD,0000286808,2642.84
Department of Health,East Sussex Hospitals NHS Trust,08/05/2013,AGENCY MLSO,Integrated Care,DAY WEBSTER LTD,0000286832,1572.76
Department of Health,East Sussex Hospitals NHS Trust,08/05/2013,AGENCY OCC THERAPY STAFF,Integrated Care,ORCHARD MEDICAL RECRUITMENT,0000286870,1054.56
Department of Health,East Sussex Hospitals NHS Trust,08/05/2013,AGENCY OCC THERAPY STAFF,Integrated Care,ORCHARD MEDICAL RECRUITMENT,0000286871,1724.66
Department of Health,East Sussex Hospitals NHS Trust,08/05/2013,AGENCY MLSO,Integrated Care,DAY WEBSTER LTD,0000286920,1614.82
Department of Health,East Sussex Hospitals NHS Trust,08/05/2013,AGENCY MLSO,Integrated Care,DAY WEBSTER LTD,0000286921,2453.56
Department of Health,East Sussex Hospitals NHS Trust,08/05/2013,AGENCY MLSO,Integrated Care,DAY WEBSTER LTD,0000286922,1547.66
Department of Health,East Sussex Hospitals NHS Trust,08/05/2013,AGENCY MLSO,Integrated Care,DAY WEBSTER LTD,0000286923,1317.02
Department of Health,East Sussex Hospitals NHS Trust,08/05/2013,AGENCY CONSULTANT,Urgent Care,MEDACS HEALTHCARE SERVICES LTD,0000286976,4329.60
Department of Health,East Sussex Hospitals NHS Trust,08/05/2013,AGENCY SPECIALIST REG,Planned Care,MEDACS HEALTHCARE SERVICES LTD,0000286978,1829.54
Department of Health,East Sussex Hospitals NHS Trust,08/05/2013,AGENCY SPECIALIST REG,Planned Care,MEDACS HEALTHCARE SERVICES LTD,0000286979,896.12
Department of Health,East Sussex Hospitals NHS Trust,08/05/2013,AGENCY ANCILLARY,Commercial,INTERWORK RECRUITMENT CONSULTANTS LTD,0000286998,800.57
Department of Health,East Sussex Hospitals NHS Trust,08/05/2013,AGENCY SHO,Urgent Care,MEDACS HEALTHCARE SERVICES LTD,0000287025,3503.66
Department of Health,East Sussex Hospitals NHS Trust,08/05/2013,AGENCY SHO,Urgent Care,MEDACS HEALTHCARE SERVICES LTD,0000287026,2567.35
Department of Health,East Sussex Hospitals NHS Trust,08/05/2013,AGENCY NURSE - QUALIFIED,Urgent Care,THORNBURY NURSING SERVICES,0000287070,535.62
Department of Health,East Sussex Hospitals NHS Trust,08/05/2013,AGENCY NURSE - QUALIFIED,Planned Care,YOURWORLD NURSING,0000287153,859.63
Department of Health,East Sussex Hospitals NHS Trust,08/05/2013,BANK NURSE - QUALIFIED,Urgent Care,YOURWORLD NURSING,0000287158,1499.78
Department of Health,East Sussex Hospitals NHS Trust,08/05/2013,AGENCY MLSO,Integrated Care,LABMED,0000287159,1347.76
Department of Health,East Sussex Hospitals NHS Trust,08/05/2013,AGENCY OCC THERAPY STAFF,Integrated Care,ORCHARD MEDICAL RECRUITMENT,0000287170,1720.50
Department of Health,East Sussex Hospitals NHS Trust,08/05/2013,AGENCY MLSO,Integrated Care,LABMED,0000287332,1347.76
Department of Health,East Sussex Hospitals NHS Trust,08/05/2013,LAB MATS - SYSMEX HAEM CONS,Integrated Care,SYSMEX UK LTD,0000287342,1233.18
Department of Health,East Sussex Hospitals NHS Trust,08/05/2013,AGENCY CONSULTANT,Urgent Care,MEDACS HEALTHCARE SERVICES LTD,0000287402,-15063.16
Department of Health,East Sussex Hospitals NHS Trust,08/05/2013,AGENCY SPECIALIST REG,Urgent Care,THE ACCIDENT & EMERGENCY AGENCY LTD,0000287507,741.00
Department of Health,East Sussex Hospitals NHS Trust,08/05/2013,AGENCY NURSE - UNQUALIFIED,Urgent Care,PREMIERCARE NETWORK LTD,0000287587,4779.46
Department of Health,East Sussex Hospitals NHS Trust,08/05/2013,AGENCY NURSE - QUALIFIED,Urgent Care,PREMIERCARE NETWORK LTD,0000287591,1125.70
Department of Health,East Sussex Hospitals NHS Trust,08/05/2013,AGENCY NURSE - UNQUALIFIED,Urgent Care,PREMIERCARE NETWORK LTD,0000287593,4228.49
Department of Health,East Sussex Hospitals NHS Trust,08/05/2013,AGENCY NURSE - QUALIFIED,Urgent Care,PREMIERCARE NETWORK LTD,0000287596,3223.71
Department of Health,East Sussex Hospitals NHS Trust,08/05/2013,AGENCY OCC THERAPY STAFF,Integrated Care,ORCHARD MEDICAL RECRUITMENT,0000287662,1687.74
Department of Health,East Sussex Hospitals NHS Trust,08/05/2013,AGENCY SPECIALIST REG,Urgent Care,THE ACCIDENT & EMERGENCY AGENCY LTD,0000287680,1248.00
Department of Health,East Sussex Hospitals NHS Trust,08/05/2013,AGENCY MLSO,Integrated Care,LABMED,0000287719,790.66
Department of Health,East Sussex Hospitals NHS Trust,08/05/2013,AGENCY MLSO,Integrated Care,LABMED,0000287743,1078.20
Department of Health,East Sussex Hospitals NHS Trust,08/05/2013,AGENCY NURSE - QUALIFIED,Urgent Care,PREMIERCARE NETWORK LTD,0000287834,2519.82
Department of Health,East Sussex Hospitals NHS Trust,08/05/2013,AGENCY NURSE - UNQUALIFIED,Urgent Care,PREMIERCARE NETWORK LTD,0000287835,6810.51
Department of Health,East Sussex Hospitals NHS Trust,08/05/2013,AGENCY NURSE - UNQUALIFIED,Urgent Care,PREMIERCARE NETWORK LTD,0000287892,4720.82
Department of Health,East Sussex Hospitals NHS Trust,08/05/2013,AGENCY ANCILLARY,Commercial,INTERWORK RECRUITMENT CONSULTANTS LTD,0000287911,700.70
Department of Health,East Sussex Hospitals NHS Trust,08/05/2013,AGENCY STAFF GRADE,Planned Care,MEDICURE,0000287915,3973.20
Department of Health,East Sussex Hospitals NHS Trust,08/05/2013,AGENCY SPECIALIST REG,Urgent Care,MEDACS HEALTHCARE SERVICES LTD,0000287940,2503.08
Department of Health,East Sussex Hospitals NHS Trust,08/05/2013,AGENCY SPECIALIST REG,Urgent Care,MEDACS HEALTHCARE SERVICES LTD,0000287943,3101.74
Department of Health,East Sussex Hospitals NHS Trust,08/05/2013,AGENCY NURSE - QUALIFIED,Urgent Care,PREMIERCARE NETWORK LTD,0000287945,2510.41
Department of Health,East Sussex Hospitals NHS Trust,08/05/2013,AGENCY SPEECH THERAPIST,Integrated Care,LONDON TEACHING POOL LTD,0000287966,1366.20
Department of Health,East Sussex Hospitals NHS Trust,08/05/2013,AGENCY SPEECH THERAPIST,Integrated Care,SUGARMAN GROUP LTD,0000287967,877.50
Department of Health,East Sussex Hospitals NHS Trust,08/05/2013,AGENCY SPEECH THERAPIST,Integrated Care,SUGARMAN GROUP LTD,0000287968,1053.00
Department of Health,East Sussex Hospitals NHS Trust,08/05/2013,AGENCY SPECIALIST REG,Planned Care,MEDACS HEALTHCARE SERVICES LTD,0000287982,2969.93
Department of Health,East Sussex Hospitals NHS Trust,08/05/2013,AGENCY SPECIALIST REG,Planned Care,MEDACS HEALTHCARE SERVICES LTD,0000287985,778.19
Department of Health,East Sussex Hospitals NHS Trust,08/05/2013,AGENCY SPECIALIST REG,Planned Care,MEDACS HEALTHCARE SERVICES LTD,0000287986,893.18
Department of Health,East Sussex Hospitals NHS Trust,08/05/2013,AGENCY SPECIALIST REG,Urgent Care,MEDACS HEALTHCARE SERVICES LTD,0000287987,3726.25
Department of Health,East Sussex Hospitals NHS Trust,08/05/2013,AGENCY SPECIALIST REG,Urgent Care,MEDACS HEALTHCARE SERVICES LTD,0000287988,5337.50
Department of Health,East Sussex Hospitals NHS Trust,08/05/2013,AGENCY SPECIALIST REG,Urgent Care,MEDACS HEALTHCARE SERVICES LTD,0000288005,3078.55
Department of Health,East Sussex Hospitals NHS Trust,08/05/2013,AGENCY SPECIALIST REG,Integrated Care,MEDACS HEALTHCARE SERVICES LTD,0000288007,896.34
Department of Health,East Sussex Hospitals NHS Trust,08/05/2013,AGENCY SPECIALIST REG,Urgent Care,MEDICURE,0000288044,2073.60
Department of Health,East Sussex Hospitals NHS Trust,08/05/2013,AGENCY SPECIALIST REG,Planned Care,MEDACS HEALTHCARE SERVICES LTD,0000288062,893.18
Department of Health,East Sussex Hospitals NHS Trust,08/05/2013,AGENCY - GENERAL GRADES,Commercial,INTERWORK RECRUITMENT CONSULTANTS LTD,0000288111,2709.86
Department of Health,East Sussex Hospitals NHS Trust,08/05/2013,AGENCY ANCILLARY,Commercial,INTERWORK RECRUITMENT CONSULTANTS LTD,0000288161,652.37
Department of Health,East Sussex Hospitals NHS Trust,08/05/2013,AGENCY - GENERAL GRADES,Commercial,INTERWORK RECRUITMENT CONSULTANTS LTD,0000288162,1670.97
Department of Health,East Sussex Hospitals NHS Trust,08/05/2013,AGENCY - GENERAL GRADES,Commercial,INTERWORK RECRUITMENT CONSULTANTS LTD,0000288165,1891.83
Department of Health,East Sussex Hospitals NHS Trust,08/05/2013,AGENCY SPECIALIST REG,Urgent Care,MEDACS HEALTHCARE SERVICES LTD,0000288166,3458.39
Department of Health,East Sussex Hospitals NHS Trust,08/05/2013,AGENCY SPECIALIST REG,Urgent Care,MEDACS HEALTHCARE SERVICES LTD,0000288167,3413.99
Department of Health,East Sussex Hospitals NHS Trust,08/05/2013,AGENCY NURSE - QUALIFIED,Urgent Care,PREMIERCARE NETWORK LTD,0000288180,653.21
Department of Health,East Sussex Hospitals NHS Trust,08/05/2013,AGENCY NURSE - QUALIFIED,Urgent Care,PREMIERCARE NETWORK LTD,0000288181,1277.62
Department of Health,East Sussex Hospitals NHS Trust,08/05/2013,AGENCY NURSE - UNQUALIFIED,Urgent Care,PREMIERCARE NETWORK LTD,0000288182,3649.62
Department of Health,East Sussex Hospitals NHS Trust,08/05/2013,AGENCY SPECIALIST REG,Urgent Care,PAPADI LTD,0000288268,1125.00
Department of Health,East Sussex Hospitals NHS Trust,08/05/2013,AGENCY SPECIALIST REG,Urgent Care,PAPADI LTD,0000288269,3200.00
Department of Health,East Sussex Hospitals NHS Trust,08/05/2013,AGENCY SPECIALIST REG,Urgent Care,PAPADI LTD,0000288270,3525.00
Department of Health,East Sussex Hospitals NHS Trust,08/05/2013,AGENCY SPECIALIST REG,Urgent Care,PAPADI LTD,0000288271,1725.00
Department of Health,East Sussex Hospitals NHS Trust,08/05/2013,AGENCY SPECIALIST REG,Integrated Care,SCARAMOUCHE LOCUM SERVICES LTD,0000288291,1087.49
Department of Health,East Sussex Hospitals NHS Trust,08/05/2013,ENGINEER CONTRACT - REPAIR,Commercial,AXIS ELEVATORS LTD,0000361079,2074.00
Department of Health,East Sussex Hospitals NHS Trust,08/05/2013,CONTRACT MAINT-OFFICE EQUIP,Commercial,AXIS ELEVATORS LTD,0000361285,41.40
Department of Health,East Sussex Hospitals NHS Trust,08/05/2013,CONTRACT ENGINEERING MAINT,Commercial,AXIS ELEVATORS LTD,0000361285,412.51
Department of Health,East Sussex Hospitals NHS Trust,08/05/2013,CONTRACT ENGINEERING MAINT,Commercial,AXIS ELEVATORS LTD,0000361285,15.43
Department of Health,East Sussex Hospitals NHS Trust,08/05/2013,CONTRACT ENGINEERING MAINT,Commercial,AXIS ELEVATORS LTD,0000361285,456.11
Department of Health,East Sussex Hospitals NHS Trust,08/05/2013,CONTRACT ENGINEERING MAINT,Commercial,AXIS ELEVATORS LTD,0000361285,36.26
Department of Health,East Sussex Hospitals NHS Trust,08/05/2013,CONT.MAIN-MED & SURG EQUIP,Planned Care,PURICORE ENDOSCOPY,0000361386,1309.20
Department of Health,East Sussex Hospitals NHS Trust,08/05/2013,AGENCY SPEECH THERAPIST,Integrated Care,LONDON TEACHING POOL LTD,0000361456,1707.76
Department of Health,East Sussex Hospitals NHS Trust,08/05/2013,POSTAGE - MAINTENANCE STOCK,Commercial,PALL MEDICAL LTD,0000361469,23.40
Department of Health,East Sussex Hospitals NHS Trust,08/05/2013,SC-CONQUEST UNIT WORKS,Commercial,PALL MEDICAL LTD,0000361469,792.00
Department of Health,East Sussex Hospitals NHS Trust,08/05/2013,CAPITAL EXPENDITURE,Other Central,PHS COMPLIANCE,0000361490,3128.52
Department of Health,East Sussex Hospitals NHS Trust,08/05/2013,BUILDING CONTRACT - CONT SERV,Commercial,RUPERT BELLAMY LTD,0000361512,895.00
Department of Health,East Sussex Hospitals NHS Trust,08/05/2013,BUILDING CONTRACT - CONT SERV,Commercial,RUPERT BELLAMY LTD,0000361512,32.00
Department of Health,East Sussex Hospitals NHS Trust,08/05/2013,CONTRACT BUILDING MAINTENANCE,Commercial,RUPERT BELLAMY LTD,0000361512,267.00
Department of Health,East Sussex Hospitals NHS Trust,08/05/2013,COMPUTER MAINT - SOFTWARE,Corporate Services,HICOM TECHNOLOGY,0000361566,600.00
Department of Health,East Sussex Hospitals NHS Trust,08/05/2013,B & E MAINT - REDEC WORKS,Commercial,CRUTTENDEN T V,0000361568,1008.70
Department of Health,East Sussex Hospitals NHS Trust,08/05/2013,ENGINEER CONTRACT - REPAIR,Commercial,THOMAS DOOR & WINDOW CONTROLS,0000361579,585.00
Department of Health,East Sussex Hospitals NHS Trust,08/05/2013,PROFESSIONAL FEES,Commercial,MARTIN COOPER,0000361671,2625.00
Department of Health,East Sussex Hospitals NHS Trust,08/05/2013,COUNSELLING EXPENSES,Integrated Care,HEIDI CARMAN,0000361672,500.00
Department of Health,East Sussex Hospitals NHS Trust,08/05/2013,CONTRACT ENGINEERING MAINT,Commercial,AXIS ELEVATORS LTD,0000621604,601.25
Department of Health,East Sussex Hospitals NHS Trust,08/05/2013,ENERGY MANAGEMENT FEE,Commercial,COGENCO LTD,0000621628,5393.92
Department of Health,East Sussex Hospitals NHS Trust,08/05/2013,CAPITAL EXPENDITURE,Other Central,GLAMOX LUXO LIGHTING LIMITED,0000621734,604.80
Department of Health,East Sussex Hospitals NHS Trust,08/05/2013,CAPITAL EXPENDITURE,Other Central,GLAMOX LUXO LIGHTING LIMITED,0000621735,1144.08
Department of Health,East Sussex Hospitals NHS Trust,08/05/2013,ENERGY MANAGEMENT FEE,Commercial,COGENCO LTD,0000621831,4226.04
Department of Health,East Sussex Hospitals NHS Trust,08/05/2013,COMPUTER HARDWARE,Corporate Services,EASTBOURNE ELECTRICAL,0000621849,683.70
Department of Health,East Sussex Hospitals NHS Trust,08/05/2013,CONT.MAIN-MED & SURG EQUIP,Urgent Care,PHILIPS MEDICAL SYSTEMS UK LTD,0000621852,2042.96
Department of Health,East Sussex Hospitals NHS Trust,08/05/2013,CONT.MAIN-MED & SURG EQUIP,Urgent Care,PHILIPS MEDICAL SYSTEMS UK LTD,0000621852,1459.76
Department of Health,East Sussex Hospitals NHS Trust,08/05/2013,CAPITAL EXPENDITURE,Other Central,H WILSON (ALFRISTON) LTD,0000621999,14998.79
Department of Health,East Sussex Hospitals NHS Trust,08/05/2013,STAPLING DEVICES,Planned Care,JOHNSON & JOHNSON MEDICAL LTD,0000895737,103.49
Department of Health,East Sussex Hospitals NHS Trust,08/05/2013,M&S GENERAL SUPPLIES-OTHER,Planned Care,JOHNSON & JOHNSON MEDICAL LTD,0000895737,988.92
Department of Health,East Sussex Hospitals NHS Trust,08/05/2013,LASER/LAPARASCOPIC EQUIPMENT,Planned Care,JOHNSON & JOHNSON MEDICAL LTD,0000895773,3153.64
Department of Health,East Sussex Hospitals NHS Trust,08/05/2013,M&S GENERAL SUPPLIES-OTHER,Planned Care,JOHNSON & JOHNSON MEDICAL LTD,0000895773,1516.18
Department of Health,East Sussex Hospitals NHS Trust,08/05/2013,M&S GENERAL SUPPLIES-OTHER,Integrated Care,JOHNSON & JOHNSON MEDICAL LTD,0000895845,1339.82
Department of Health,East Sussex Hospitals NHS Trust,08/05/2013,DRESSINGS-OTHER,Planned Care,JOHNSON & JOHNSON MEDICAL LTD,0000895846,1979.85
Department of Health,East Sussex Hospitals NHS Trust,08/05/2013,LASER/LAPARASCOPIC EQUIPMENT,Planned Care,JOHNSON & JOHNSON MEDICAL LTD,0000895846,724.32
Department of Health,East Sussex Hospitals NHS Trust,08/05/2013,M&S GENERAL SUPPLIES-OTHER,Planned Care,JOHNSON & JOHNSON MEDICAL LTD,0000895846,1554.77
Department of Health,East Sussex Hospitals NHS Trust,08/05/2013,ELECTRO CONSUMABLES,Planned Care,JOHNSON & JOHNSON MEDICAL LTD,0000895846,1345.82
Department of Health,East Sussex Hospitals NHS Trust,08/05/2013,STAPLING DEVICES,Planned Care,JOHNSON & JOHNSON MEDICAL LTD,0000895850,1819.71
Department of Health,East Sussex Hospitals NHS Trust,08/05/2013,STAPLING DEVICES,Planned Care,JOHNSON & JOHNSON MEDICAL LTD,0000895860,388.62
Department of Health,East Sussex Hospitals NHS Trust,08/05/2013,LASER/LAPARASCOPIC EQUIPMENT,Planned Care,JOHNSON & JOHNSON MEDICAL LTD,0000895860,209.51
Department of Health,East Sussex Hospitals NHS Trust,08/05/2013,STAPLING DEVICES,Planned Care,CONMED LINVATEC UK,0000896291,122.40
Department of Health,East Sussex Hospitals NHS Trust,08/05/2013,M&S GENERAL SUPPLIES-OTHER,Planned Care,CONMED LINVATEC UK,0000896291,792.00
Department of Health,East Sussex Hospitals NHS Trust,08/05/2013,PROSTHESES-HIP,Planned Care,JOINT REPLACEMENT INSTRUMENTATION  LTD,0000896771,855.60
Department of Health,East Sussex Hospitals NHS Trust,08/05/2013,PROSTHESES-HIP,Planned Care,JOINT REPLACEMENT INSTRUMENTATION  LTD,0000896826,1659.60
Department of Health,East Sussex Hospitals NHS Trust,08/05/2013,STOCK-ASCRIBE CONQUEST,Pharmacy Stock,JANSSEN-CILAG LTD,0001207037,1729.10
Department of Health,East Sussex Hospitals NHS Trust,08/05/2013,STOCK-ASCRIBE CONQUEST,Pharmacy Stock,JANSSEN-CILAG LTD,0001207038,1635.59
Department of Health,East Sussex Hospitals NHS Trust,08/05/2013,STOCK-ASCRIBE CONQUEST,Pharmacy Stock,JANSSEN-CILAG LTD,0001207052,1605.48
Department of Health,East Sussex Hospitals NHS Trust,08/05/2013,STOCK-ASCRIBE CONQUEST,Pharmacy Stock,JANSSEN-CILAG LTD,0001207060,1590.00
Department of Health,East Sussex Hospitals NHS Trust,08/05/2013,STOCK-ASCRIBE CONQUEST,Pharmacy Stock,JANSSEN-CILAG LTD,0001207088,1612.98
Department of Health,East Sussex Hospitals NHS Trust,08/05/2013,STOCK-ASCRIBE CONQUEST,Pharmacy Stock,DIAGMED HEALTHCARE LTD,0001207514,1071.36
Department of Health,East Sussex Hospitals NHS Trust,08/05/2013,STOCK-ASCRIBE CONQUEST,Pharmacy Stock,DIAGMED HEALTHCARE LTD,0001207541,803.52
Department of Health,East Sussex Hospitals NHS Trust,08/05/2013,STOCK-ASCRIBE CONQUEST,Pharmacy Stock,AMGEN LTD,0001209173,792.00
Department of Health,East Sussex Hospitals NHS Trust,08/05/2013,STOCK-ASCRIBE CONQUEST,Pharmacy Stock,AAH PHARMACEUTICALS LTD,0001210066,703.01
Department of Health,East Sussex Hospitals NHS Trust,08/05/2013,STOCK-ASCRIBE CONQUEST,Pharmacy Stock,AAH PHARMACEUTICALS LTD,0001210067,2079.34
Department of Health,East Sussex Hospitals NHS Trust,08/05/2013,STOCK-ASCRIBE CONQUEST,Pharmacy Stock,AAH PHARMACEUTICALS LTD,0001210074,856.80
Department of Health,East Sussex Hospitals NHS Trust,08/05/2013,STOCK-ASCRIBE CONQUEST,Pharmacy Stock,AAH PHARMACEUTICALS LTD,0001210081,585.86
Department of Health,East Sussex Hospitals NHS Trust,08/05/2013,STOCK-ASCRIBE CONQUEST,Pharmacy Stock,AAH PHARMACEUTICALS LTD,0001210092,521.10
Department of Health,East Sussex Hospitals NHS Trust,08/05/2013,STOCK-ASCRIBE CONQUEST,Pharmacy Stock,AAH PHARMACEUTICALS LTD,0001210094,3965.44
Department of Health,East Sussex Hospitals NHS Trust,08/05/2013,STOCK-ASCRIBE CONQUEST,Pharmacy Stock,AAH PHARMACEUTICALS LTD,0001210102,717.36
Department of Health,East Sussex Hospitals NHS Trust,08/05/2013,STOCK-ASCRIBE CONQUEST,Pharmacy Stock,AAH PHARMACEUTICALS LTD,0001210112,507.69
Department of Health,East Sussex Hospitals NHS Trust,08/05/2013,STOCK-ASCRIBE CONQUEST,Pharmacy Stock,AAH PHARMACEUTICALS LTD,0001210123,833.76
Department of Health,East Sussex Hospitals NHS Trust,08/05/2013,STOCK-ASCRIBE CONQUEST,Pharmacy Stock,AAH PHARMACEUTICALS LTD,0001210137,569.15
Department of Health,East Sussex Hospitals NHS Trust,08/05/2013,STOCK-ASCRIBE CONQUEST,Pharmacy Stock,AAH PHARMACEUTICALS LTD,0001210140,1009.92
Department of Health,East Sussex Hospitals NHS Trust,08/05/2013,STOCK-ASCRIBE CONQUEST,Pharmacy Stock,AAH PHARMACEUTICALS LTD,0001210149,739.55
Department of Health,East Sussex Hospitals NHS Trust,08/05/2013,STOCK-ASCRIBE CONQUEST,Pharmacy Stock,AAH PHARMACEUTICALS LTD,0001210295,672.09
Department of Health,East Sussex Hospitals NHS Trust,08/05/2013,STOCK-ASCRIBE CONQUEST,Pharmacy Stock,AAH PHARMACEUTICALS LTD,0001210300,528.18
Department of Health,East Sussex Hospitals NHS Trust,08/05/2013,STOCK-ASCRIBE CONQUEST,Pharmacy Stock,AAH PHARMACEUTICALS LTD,0001210306,833.42
Department of Health,East Sussex Hospitals NHS Trust,08/05/2013,STOCK-ASCRIBE CONQUEST,Pharmacy Stock,AAH PHARMACEUTICALS LTD,0001210321,621.42
Department of Health,East Sussex Hospitals NHS Trust,08/05/2013,STOCK-ASCRIBE CONQUEST,Pharmacy Stock,AAH PHARMACEUTICALS LTD,0001210324,598.61
Department of Health,East Sussex Hospitals NHS Trust,08/05/2013,STOCK-ASCRIBE CONQUEST,Pharmacy Stock,AAH PHARMACEUTICALS LTD,0001210327,540.00
Department of Health,East Sussex Hospitals NHS Trust,08/05/2013,STOCK-ASCRIBE CONQUEST,Pharmacy Stock,AAH PHARMACEUTICALS LTD,0001210330,1002.77
Department of Health,East Sussex Hospitals NHS Trust,08/05/2013,STOCK-ASCRIBE CONQUEST,Pharmacy Stock,AAH PHARMACEUTICALS LTD,0001210339,1607.10
Department of Health,East Sussex Hospitals NHS Trust,08/05/2013,STOCK-ASCRIBE CONQUEST,Pharmacy Stock,AAH PHARMACEUTICALS LTD,0001210343,1954.44
Department of Health,East Sussex Hospitals NHS Trust,08/05/2013,STOCK-ASCRIBE CONQUEST,Pharmacy Stock,AAH PHARMACEUTICALS LTD,0001210345,506.82
Department of Health,East Sussex Hospitals NHS Trust,08/05/2013,STOCK-ASCRIBE CONQUEST,Pharmacy Stock,AAH PHARMACEUTICALS LTD,0001210365,535.68
Department of Health,East Sussex Hospitals NHS Trust,08/05/2013,STOCK-ASCRIBE CONQUEST,Pharmacy Stock,AAH PHARMACEUTICALS LTD,0001210380,1811.72
Department of Health,East Sussex Hospitals NHS Trust,08/05/2013,STOCK-ASCRIBE CONQUEST,Pharmacy Stock,AAH PHARMACEUTICALS LTD,0001210382,979.20
Department of Health,East Sussex Hospitals NHS Trust,08/05/2013,STOCK-ASCRIBE CONQUEST,Pharmacy Stock,AAH PHARMACEUTICALS LTD,0001210390,934.91
Department of Health,East Sussex Hospitals NHS Trust,08/05/2013,STOCK-ASCRIBE CONQUEST,Pharmacy Stock,AAH PHARMACEUTICALS LTD,0001210394,539.10
Department of Health,East Sussex Hospitals NHS Trust,08/05/2013,STOCK-ASCRIBE CONQUEST,Pharmacy Stock,AAH PHARMACEUTICALS LTD,0001210396,1578.77
Department of Health,East Sussex Hospitals NHS Trust,08/05/2013,STOCK-ASCRIBE CONQUEST,Pharmacy Stock,AAH PHARMACEUTICALS LTD,0001210477,684.00
Department of Health,East Sussex Hospitals NHS Trust,08/05/2013,STOCK-ASCRIBE CONQUEST,Pharmacy Stock,AAH PHARMACEUTICALS LTD,0001210480,1810.80
Department of Health,East Sussex Hospitals NHS Trust,08/05/2013,STOCK-ASCRIBE CONQUEST,Pharmacy Stock,AAH PHARMACEUTICALS LTD,0001210482,570.42
Department of Health,East Sussex Hospitals NHS Trust,08/05/2013,STOCK-ASCRIBE CONQUEST,Pharmacy Stock,AAH PHARMACEUTICALS LTD,0001210491,521.10
Department of Health,East Sussex Hospitals NHS Trust,08/05/2013,STOCK-ASCRIBE CONQUEST,Pharmacy Stock,AAH PHARMACEUTICALS LTD,0001210509,602.04
Department of Health,East Sussex Hospitals NHS Trust,08/05/2013,STOCK-ASCRIBE CONQUEST,Pharmacy Stock,AAH PHARMACEUTICALS LTD,0001210537,551.81
Department of Health,East Sussex Hospitals NHS Trust,08/05/2013,MOBILE PHONES,Commercial,VODAFONE LTD (CORPORATE),0001421212,10981.14
Department of Health,East Sussex Hospitals NHS Trust,08/05/2013,DATA LANDLINE RENTAL,Corporate Services,BT CONFERENCING,0001421229,670.88
Department of Health,East Sussex Hospitals NHS Trust,08/05/2013,DRUGS-HAEMAPHILIA PRODUCTS,Integrated Care,BUPA HOME HEALTHCARE,0001421275,4292.72
Department of Health,East Sussex Hospitals NHS Trust,08/05/2013,DRUGS-HAEMAPHILIA PRODUCTS,Integrated Care,BUPA HOME HEALTHCARE,0001421276,4292.72
Department of Health,East Sussex Hospitals NHS Trust,08/05/2013,TRAINING FEES - NURSE CONT ED,Corporate Services,COURSE FEES,0001421384,1050.00
Department of Health,East Sussex Hospitals NHS Trust,08/05/2013,TESTS SENT TO NON NHS LABS,Integrated Care,UNIVERSITY OF BIRMINGHAM,0001525617,1011.47
Department of Health,East Sussex Hospitals NHS Trust,08/05/2013,CRIMINAL RECORDS BUREAU,Corporate Services,DISCLOSURE & BARRING SERVICE,0001526897,4532.00
Department of Health,East Sussex Hospitals NHS Trust,08/05/2013,FUEL,Integrated Care,ALLSTAR BUSINESS SOLUTIONS LTD,0001526920,51.02
Department of Health,East Sussex Hospitals NHS Trust,08/05/2013,FUEL,Commercial,ALLSTAR BUSINESS SOLUTIONS LTD,0001526920,621.45
Department of Health,East Sussex Hospitals NHS Trust,08/05/2013,FUEL,Commercial,ALLSTAR BUSINESS SOLUTIONS LTD,0001526920,136.02
Department of Health,East Sussex Hospitals NHS Trust,08/05/2013,FUEL,Commercial,ALLSTAR BUSINESS SOLUTIONS LTD,0001526920,221.66
Department of Health,East Sussex Hospitals NHS Trust,08/05/2013,FUEL,Commercial,ALLSTAR BUSINESS SOLUTIONS LTD,0001526920,177.34
Department of Health,East Sussex Hospitals NHS Trust,08/05/2013,FUEL,Planned Care,ALLSTAR BUSINESS SOLUTIONS LTD,0001526921,85.00
Department of Health,East Sussex Hospitals NHS Trust,08/05/2013,FUEL,Integrated Care,ALLSTAR BUSINESS SOLUTIONS LTD,0001526921,30.00
Department of Health,East Sussex Hospitals NHS Trust,08/05/2013,FUEL,Commercial,ALLSTAR BUSINESS SOLUTIONS LTD,0001526921,88.10
Department of Health,East Sussex Hospitals NHS Trust,08/05/2013,FUEL,Commercial,ALLSTAR BUSINESS SOLUTIONS LTD,0001526921,57.70
Department of Health,East Sussex Hospitals NHS Trust,08/05/2013,FUEL,Commercial,ALLSTAR BUSINESS SOLUTIONS LTD,0001526921,255.01
Department of Health,East Sussex Hospitals NHS Trust,08/05/2013,FUEL,Commercial,ALLSTAR BUSINESS SOLUTIONS LTD,0001526921,69.46
Department of Health,East Sussex Hospitals NHS Trust,08/05/2013,FUEL,Commercial,ALLSTAR BUSINESS SOLUTIONS LTD,0001526921,208.64
Department of Health,East Sussex Hospitals NHS Trust,08/05/2013,FUEL,Commercial,ALLSTAR BUSINESS SOLUTIONS LTD,0001526921,173.62
Department of Health,East Sussex Hospitals NHS Trust,08/05/2013,DRUGS-OTHER,Urgent Care,LLOYDS PHARMACY,0001527047,8002.56
Department of Health,East Sussex Hospitals NHS Trust,08/05/2013,DRUGS-OTHER,Planned Care,LLOYDS PHARMACY,0001527048,995.52
Department of Health,East Sussex Hospitals NHS Trust,08/05/2013,LEASE CARS,Cross Site,ARVAL PHH LTD,0001527304,2277.29
Department of Health,East Sussex Hospitals NHS Trust,08/05/2013,PROFESSIONAL FEES,Corporate Services,UNIVERSITY OF BRIGHTON,0001527560,-26261.00
Department of Health,East Sussex Hospitals NHS Trust,08/05/2013,HIRE OF ACCOMMODATION,Integrated Care,ROEBUCK HOUSE MEDICAL PRACTICES,0001527616,3400.00
Department of Health,East Sussex Hospitals NHS Trust,08/05/2013,CONTRACTED-OUT H.CARE SERVICES,Integrated Care,UNIVERSITY OF BRIGHTON,0001527628,23750.00
Department of Health,East Sussex Hospitals NHS Trust,08/05/2013,AGENCY NURSE - QUALIFIED,Urgent Care,LYMPHOEDEMA SPECIALIST SERVICES,0001527633,2711.00
Department of Health,East Sussex Hospitals NHS Trust,08/05/2013,CONTINENCE PRODUCTS,Integrated Care,PAUL HARTMANN LTD,0001527702,6915.52
Department of Health,East Sussex Hospitals NHS Trust,08/05/2013,CONTINENCE PRODUCTS,Integrated Care,PAUL HARTMANN LTD,0001527703,2840.47
Department of Health,East Sussex Hospitals NHS Trust,08/05/2013,CONTINENCE PRODUCTS,Urgent Care,PAUL HARTMANN LTD,0001527704,73135.17
Department of Health,East Sussex Hospitals NHS Trust,08/05/2013,TAXI - OTHER,Commercial,247 TRANSPORT SOLUTIONS LTD,0001527709,2108.50
Department of Health,East Sussex Hospitals NHS Trust,08/05/2013,COMPUTER MAINT - SOFTWARE,Planned Care,SOFTWARE OF EXCELLENCE UK LTD,0001527754,2232.02
Department of Health,East Sussex Hospitals NHS Trust,08/05/2013,ADVERTISING COSTS-NON STAFF,Commercial,LINDON EAST LLP,0001527827,450.00
Department of Health,East Sussex Hospitals NHS Trust,08/05/2013,PROFESSIONAL FEES,Corporate Services,UNIVERSITY OF BRIGHTON,0001527837,26261.00
Department of Health,East Sussex Hospitals NHS Trust,08/05/2013,AGENCY DRIVERS,Commercial,PAPERWORK COURIERS LTD,0001527882,800.73
Department of Health,East Sussex Hospitals NHS Trust,08/05/2013,COURIER SERVICES,Commercial,PAPERWORK COURIERS LTD,0001527883,464.56
Department of Health,East Sussex Hospitals NHS Trust,08/05/2013,COURIER SERVICES,Commercial,PAPERWORK COURIERS LTD,0001527892,459.83
Department of Health,East Sussex Hospitals NHS Trust,08/05/2013,COURIER SERVICES,Commercial,PAPERWORK COURIERS LTD,0001527900,431.42
Department of Health,East Sussex Hospitals NHS Trust,08/05/2013,AGENCY NURSE - QUALIFIED,Urgent Care,NATIONAL WOUND HEALING CENTRES,0001527959,1290.00
Department of Health,East Sussex Hospitals NHS Trust,08/05/2013,CONTRACT - MANAGEMENT FEE,Commercial,RYE WINCHELSEA & DISTRICT MEMORIAL LTD,0001527960,2500.00
Department of Health,East Sussex Hospitals NHS Trust,08/05/2013,LEASE OF LAND,Commercial,RYE WINCHELSEA & DISTRICT MEMORIAL LTD,0001527961,30000.00
Department of Health,East Sussex Hospitals NHS Trust,08/05/2013,LEASE RENT,Commercial,ASTERISK LIMITED,0001527963,2072.60
Department of Health,East Sussex Hospitals NHS Trust,08/05/2013,ELECTRICITY,Commercial,BRITISH GAS,0001528014,515.30
Department of Health,East Sussex Hospitals NHS Trust,08/05/2013,TRAINING COURSE FEES-OTHER,Corporate Services,PURCHASING & MATERIALS MANAGE SERVS LTD,0001528032,4393.00
Department of Health,East Sussex Hospitals NHS Trust,08/05/2013,FURNITURE & FITTINGS,Commercial,ANDY VATER TRANSPORT,0001528043,900.00
Department of Health,East Sussex Hospitals NHS Trust,08/05/2013,DRUGS-OTHER,Commercial,JANSSEN-CILAG LTD,0001613883,5489.14
Department of Health,East Sussex Hospitals NHS Trust,08/05/2013,DRUGS-OTHER,Commercial,JANSSEN-CILAG LTD,0001613943,13722.84
Department of Health,East Sussex Hospitals NHS Trust,08/05/2013,DRUGS-OTHER,Commercial,JANSSEN-CILAG LTD,0001613969,9148.56
Department of Health,East Sussex Hospitals NHS Trust,08/05/2013,DRUGS-OTHER,Commercial,EXOVA (UK) LTD,0001614222,660.00
Department of Health,East Sussex Hospitals NHS Trust,08/05/2013,CONQUEST THEATRES,Planned Care,RICOH UK LTD,0001703500,650.80
Department of Health,East Sussex Hospitals NHS Trust,08/05/2013,PHOTOCOPIER HIRE,Urgent Care,RICOH UK LTD,0001704230,459.83
Department of Health,East Sussex Hospitals NHS Trust,08/05/2013,TELEPHONES-WIRING & EQUIPMENT,Integrated Care,BUSINESS EDGE TECHNOLOGIES,0001704461,1560.00
Department of Health,East Sussex Hospitals NHS Trust,08/05/2013,TELEPHONES-RENTAL&CALLS,Commercial,BRITISH TELECOM,0001704477,2090.77
Department of Health,East Sussex Hospitals NHS Trust,08/05/2013,TELEPHONES-RENTAL&CALLS,Commercial,BRITISH TELECOM,0001704478,897.98
Department of Health,East Sussex Hospitals NHS Trust,08/05/2013,WHEELCHAIR REPAIRS,Integrated Care,QBITUS PRODUCTS,0001811399,1089.54
Department of Health,East Sussex Hospitals NHS Trust,08/05/2013,WHEELCHAIR REPAIRS,Integrated Care,QBITUS PRODUCTS,0001811417,1209.54
Department of Health,East Sussex Hospitals NHS Trust,08/05/2013,SPECIAL SEATING,Integrated Care,CLINICAL ENGINEERING CONSULTANTS LTD,0001813483,2017.80
Department of Health,East Sussex Hospitals NHS Trust,08/05/2013,ENTERAL FEEDING,Integrated Care,NUTRICIA CLINICAL CARE,0001813537,3983.45
Department of Health,East Sussex Hospitals NHS Trust,08/05/2013,ENTERAL FEEDING,Integrated Care,NUTRICIA CLINICAL CARE,0001813538,3259.74
Department of Health,East Sussex Hospitals NHS Trust,08/05/2013,ENTERAL FEEDING,Integrated Care,NUTRICIA CLINICAL CARE,0001813539,611.18
Department of Health,East Sussex Hospitals NHS Trust,08/05/2013,WHEELCHAIR REPAIRS,Integrated Care,AJ MOBILITY LTD,0001813861,1937.79
Department of Health,East Sussex Hospitals NHS Trust,08/05/2013,CONT.MAIN-MED & SURG EQUIP,Integrated Care,AJ MOBILITY LTD,0001813862,20057.53
Department of Health,East Sussex Hospitals NHS Trust,08/05/2013,WHEELCHAIR REPAIRS,Integrated Care,AJ MOBILITY LTD,0001813863,1102.59
Department of Health,East Sussex Hospitals NHS Trust,08/05/2013,WHEELCHAIR,Integrated Care,AJ MOBILITY LTD,0001813864,874.00
Department of Health,East Sussex Hospitals NHS Trust,08/05/2013,WHEELCHAIR REPAIRS,Integrated Care,AJ MOBILITY LTD,0001813866,1097.87
Department of Health,East Sussex Hospitals NHS Trust,08/05/2013,THERAPY EQUIPMENT,Integrated Care,PEARSON EDUCATION LTD,0001813890,1669.50
Department of Health,East Sussex Hospitals NHS Trust,08/05/2013,SURGICAL INSTRUMENTS,Planned Care,CONMED LINVATEC UK,0001813901,503.76
Department of Health,East Sussex Hospitals NHS Trust,08/05/2013,SPECIAL SEATING,Integrated Care,CLINICAL ENGINEERING CONSULTANTS LTD,0001813913,4177.80
Department of Health,East Sussex Hospitals NHS Trust,08/05/2013,CONTRACT-SECURITY,Commercial,EAST SUSSEX SECURITY,0001813967,919.52
Department of Health,East Sussex Hospitals NHS Trust,08/05/2013,WHEELCHAIR REPAIRS,Integrated Care,AJ MOBILITY LTD,0001814014,1555.65
Department of Health,East Sussex Hospitals NHS Trust,08/05/2013,THERAPY EQUIPMENT,Integrated Care,PEARSON EDUCATION LTD,0001814090,-1201.80
Department of Health,East Sussex Hospitals NHS Trust,08/05/2013,WHEELCHAIR,Integrated Care,SOUTHERN MOBILITY CENTRE,0001814122,4197.60
Department of Health,East Sussex Hospitals NHS Trust,08/05/2013,WHEELCHAIR,Integrated Care,SOUTHERN MOBILITY CENTRE,0001814123,506.40
Department of Health,East Sussex Hospitals NHS Trust,08/05/2013,WHEELCHAIR,Integrated Care,SOUTHERN MOBILITY CENTRE,0001814124,572.40
Department of Health,East Sussex Hospitals NHS Trust,08/05/2013,WHEELCHAIR,Integrated Care,SOUTHERN MOBILITY CENTRE,0001814125,2676.00
Department of Health,East Sussex Hospitals NHS Trust,08/05/2013,WHEELCHAIR,Integrated Care,SOUTHERN MOBILITY CENTRE,0001814126,518.40
Department of Health,East Sussex Hospitals NHS Trust,08/05/2013,WHEELCHAIR,Integrated Care,SOUTHERN MOBILITY CENTRE,0001814127,1184.40
Department of Health,East Sussex Hospitals NHS Trust,08/05/2013,CLEANING MATERIALS,Commercial,WIGHTMAN & PARRISH LTD,0001903873,514.25
Department of Health,East Sussex Hospitals NHS Trust,08/05/2013,PROVISIONS,Commercial,N H CASE LTD,0001905190,571.52
Department of Health,East Sussex Hospitals NHS Trust,08/05/2013,PROVISIONS,Commercial,N H CASE LTD,0001905193,836.20
Department of Health,East Sussex Hospitals NHS Trust,08/05/2013,PROVISIONS,Commercial,N H CASE LTD,0001905196,1347.60
Department of Health,East Sussex Hospitals NHS Trust,08/05/2013,PROVISIONS,Commercial,N H CASE LTD,0001905356,1229.16
Department of Health,East Sussex Hospitals NHS Trust,08/05/2013,CLEANING MATERIALS,Commercial,WIGHTMAN & PARRISH LTD,0001905444,520.67
Department of Health,East Sussex Hospitals NHS Trust,08/05/2013,PROVISIONS,Commercial,J R WHOLESALE,0001905510,590.10
Department of Health,East Sussex Hospitals NHS Trust,08/05/2013,PROVISIONS,Commercial,BRAKE BROS (FROZEN FOODS) LTD,0001905540,922.26
Department of Health,East Sussex Hospitals NHS Trust,08/05/2013,PROVISIONS,Commercial,BRAKE BROS (FROZEN FOODS) LTD,0001905541,1011.57
Department of Health,East Sussex Hospitals NHS Trust,08/05/2013,PROVISIONS,Commercial,BRAKE BROS (FROZEN FOODS) LTD,0001905548,852.28
Department of Health,East Sussex Hospitals NHS Trust,08/05/2013,PROVISIONS,Commercial,BRAKE BROS (FROZEN FOODS) LTD,0001905550,852.28
Department of Health,East Sussex Hospitals NHS Trust,08/05/2013,PROVISIONS,Commercial,BRAKE BROS (FROZEN FOODS) LTD,0001905551,852.28
Department of Health,East Sussex Hospitals NHS Trust,08/05/2013,PROVISIONS,Commercial,BRAKE BROS (FROZEN FOODS) LTD,0001905552,717.73
Department of Health,East Sussex Hospitals NHS Trust,08/05/2013,PROVISIONS,Commercial,BRAKE BROS (FROZEN FOODS) LTD,0001905553,790.08
Department of Health,East Sussex Hospitals NHS Trust,08/05/2013,PROVISIONS,Commercial,BRAKE BROS (FROZEN FOODS) LTD,0001905635,691.68
Department of Health,East Sussex Hospitals NHS Trust,08/05/2013,LOANER KITS - HIRE CHARGE,Planned Care,XPERT ORTHOPAEDICS,0002114926,630.00
Department of Health,East Sussex Hospitals NHS Trust,08/05/2013,PROSTHESES-OTHER,Planned Care,XPERT ORTHOPAEDICS,0002114926,1506.00
Department of Health,East Sussex Hospitals NHS Trust,08/05/2013,PURICORE CONSUMABLES,Planned Care,PURICORE ENDOSCOPY,0002114983,1280.35
Department of Health,East Sussex Hospitals NHS Trust,08/05/2013,M&S GENERAL SUPPLIES-OTHER,Planned Care,SYNTHES LTD,0002114993,286.64
Department of Health,East Sussex Hospitals NHS Trust,08/05/2013,PROSTHESES-OTHER,Planned Care,SYNTHES LTD,0002114993,4882.74
Department of Health,East Sussex Hospitals NHS Trust,08/05/2013,PROSTHESES-HIP,Planned Care,JOHNSON & JOHNSON MEDICAL LTD,0002115193,648.00
Department of Health,East Sussex Hospitals NHS Trust,08/05/2013,M&S EQUIPMENT - OTHER,Planned Care,JOHNSON & JOHNSON MEDICAL LTD,0002115194,683.58
Department of Health,East Sussex Hospitals NHS Trust,08/05/2013,PROSTHESES-HIP,Planned Care,JOHNSON & JOHNSON MEDICAL LTD,0002115194,1981.37
Department of Health,East Sussex Hospitals NHS Trust,08/05/2013,LOANER KITS - HIRE CHARGE,Planned Care,SMITH & NEPHEW ADVANCED SURGICAL DEVICES,0002115211,1633.09
Department of Health,East Sussex Hospitals NHS Trust,08/05/2013,M&S EQUIPMENT - OTHER,Planned Care,JOHNSON & JOHNSON MEDICAL LTD,0002115236,511.59
Department of Health,East Sussex Hospitals NHS Trust,08/05/2013,PROSTHESES-HIP,Planned Care,JOHNSON & JOHNSON MEDICAL LTD,0002115236,5792.24
Department of Health,East Sussex Hospitals NHS Trust,08/05/2013,NATIONAL JOINT REGISTRY LEVY,Planned Care,JOHNSON & JOHNSON MEDICAL LTD,0002115236,60.00
Department of Health,East Sussex Hospitals NHS Trust,08/05/2013,INTERVENTIONAL DISPOSABLES,Integrated Care,JOHNSON & JOHNSON MEDICAL LTD,0002115237,621.00
Department of Health,East Sussex Hospitals NHS Trust,08/05/2013,PROSTHESES-HIP,Planned Care,JOHNSON & JOHNSON MEDICAL LTD,0002115241,5428.13
Department of Health,East Sussex Hospitals NHS Trust,08/05/2013,NATIONAL JOINT REGISTRY LEVY,Planned Care,JOHNSON & JOHNSON MEDICAL LTD,0002115241,20.02
Department of Health,East Sussex Hospitals NHS Trust,08/05/2013,M&S EQUIPMENT - OTHER,Planned Care,JOHNSON & JOHNSON MEDICAL LTD,0002115314,454.24
Department of Health,East Sussex Hospitals NHS Trust,08/05/2013,PROSTHESES-HIP,Planned Care,JOHNSON & JOHNSON MEDICAL LTD,0002115314,4427.67
Department of Health,East Sussex Hospitals NHS Trust,08/05/2013,NATIONAL JOINT REGISTRY LEVY,Planned Care,JOHNSON & JOHNSON MEDICAL LTD,0002115314,80.03
Department of Health,East Sussex Hospitals NHS Trust,08/05/2013,WASTE DISPOSAL SERVICES,Commercial,REFUPAK LTD,0002115391,450.00
Department of Health,East Sussex Hospitals NHS Trust,08/05/2013,PROSTHESES-HIP,Planned Care,JOHNSON & JOHNSON MEDICAL LTD,0002115404,1758.97
Department of Health,East Sussex Hospitals NHS Trust,08/05/2013,NATIONAL JOINT REGISTRY LEVY,Planned Care,JOHNSON & JOHNSON MEDICAL LTD,0002115404,20.01
Department of Health,East Sussex Hospitals NHS Trust,08/05/2013,M&S GENERAL SUPPLIES-OTHER,Planned Care,JOHNSON & JOHNSON MEDICAL LTD,0002115444,1523.81
Department of Health,East Sussex Hospitals NHS Trust,08/05/2013,M&S EQUIPMENT - OTHER,Planned Care,JOHNSON & JOHNSON MEDICAL LTD,0002115445,1032.59
Department of Health,East Sussex Hospitals NHS Trust,08/05/2013,PROSTHESES-HIP,Planned Care,JOHNSON & JOHNSON MEDICAL LTD,0002115445,2995.67
Department of Health,East Sussex Hospitals NHS Trust,08/05/2013,NATIONAL JOINT REGISTRY LEVY,Planned Care,JOHNSON & JOHNSON MEDICAL LTD,0002115445,20.02
Department of Health,East Sussex Hospitals NHS Trust,08/05/2013,PROSTHESES-HIP,Planned Care,JOHNSON & JOHNSON MEDICAL LTD,0002115465,1296.00
Department of Health,East Sussex Hospitals NHS Trust,08/05/2013,LOANER KITS - HIRE CHARGE,Planned Care,XPERT ORTHOPAEDICS,0002115609,672.00
Department of Health,East Sussex Hospitals NHS Trust,08/05/2013,LAPARASCOPIC EQUIP-UROLOGICAL,Planned Care,CONMED LINVATEC UK,0002115631,300.00
Department of Health,East Sussex Hospitals NHS Trust,08/05/2013,M&S GENERAL SUPPLIES-OTHER,Planned Care,CONMED LINVATEC UK,0002115631,792.00
Department of Health,East Sussex Hospitals NHS Trust,08/05/2013,LAPARASCOPIC EQUIP-UROLOGICAL,Planned Care,CONMED LINVATEC UK,0002115633,600.00
Department of Health,East Sussex Hospitals NHS Trust,08/05/2013,M&S GENERAL SUPPLIES-OTHER,Planned Care,CONMED LINVATEC UK,0002115633,1188.00
Department of Health,East Sussex Hospitals NHS Trust,08/05/2013,PATS APPL - FOOTWARE,Urgent Care,V-M ORTHOTICS LTD,0002115664,750.00
Department of Health,East Sussex Hospitals NHS Trust,08/05/2013,LOANER KITS - HIRE CHARGE,Planned Care,ZIMMER LTD,0002115678,660.00
Department of Health,East Sussex Hospitals NHS Trust,08/05/2013,PROSTHESES-OTHER,Planned Care,ZIMMER LTD,0002115678,3424.68
Department of Health,East Sussex Hospitals NHS Trust,08/05/2013,CARDIOLOGY CATHETERS,Urgent Care,TERUMO UK,0002115873,780.00
Department of Health,East Sussex Hospitals NHS Trust,08/05/2013,WASTE DISPOSAL SERVICES,Commercial,VEOLIA ENVIRONMENTAL SERVICES (UK) PLC,0002115977,686.85
Department of Health,East Sussex Hospitals NHS Trust,08/05/2013,CARDIOLOGY STENTS,Urgent Care,TERUMO UK,0002115984,1656.00
Department of Health,East Sussex Hospitals NHS Trust,08/05/2013,PRINTING/PRINTED MATERIALS,Commercial,ENTERPRISE STATIONERY LTD,0002116052,673.56
Department of Health,East Sussex Hospitals NHS Trust,08/05/2013,GENERAL LAB. CONSUMABLES,Integrated Care,GREINER BIO-ONE LTD,0002116063,1606.43
Department of Health,East Sussex Hospitals NHS Trust,08/05/2013,MAINT-PHILIPS MEDICAL SYSTEMS,Integrated Care,PHILIPS MEDICAL SYSTEMS UK LTD,0002116124,1145.00
Department of Health,East Sussex Hospitals NHS Trust,08/05/2013,ELECTRO MEDICAL EQUIPMENT,Urgent Care,PHILIPS MEDICAL SYSTEMS UK LTD,0002116149,730.80
Department of Health,East Sussex Hospitals NHS Trust,08/05/2013,M&S GENERAL SUPPLIES-OTHER,Planned Care,SMITH & NEPHEW ADVANCED SURGICAL DEVICES,0002116184,31.02
Department of Health,East Sussex Hospitals NHS Trust,08/05/2013,PROSTHESES-OTHER,Planned Care,SMITH & NEPHEW ADVANCED SURGICAL DEVICES,0002116184,993.35
Department of Health,East Sussex Hospitals NHS Trust,08/05/2013,CLEANING EQUIPMENT,Commercial,STERIS LTD,0002116215,1489.91
Department of Health,East Sussex Hospitals NHS Trust,08/05/2013,WASTE DISPOSAL SERVICES,Commercial,REFUPAK LTD,0002116329,450.00
Department of Health,East Sussex Hospitals NHS Trust,08/05/2013,PRINTING/PRINTED MATERIALS,Commercial,ENTERPRISE STATIONERY LTD,0002116474,673.56
Department of Health,East Sussex Hospitals NHS Trust,08/05/2013,PRINTING/PRINTED MATERIALS,Commercial,ENTERPRISE STATIONERY LTD,0002116475,1186.06
Department of Health,East Sussex Hospitals NHS Trust,08/05/2013,LAB MATS - SYSMEX HAEM CONS,Integrated Care,SYSMEX UK LTD,0002116501,633.53
Department of Health,East Sussex Hospitals NHS Trust,08/05/2013,LOANER KITS - HIRE CHARGE,Planned Care,CORIN LIMITED,0002116550,600.00
Department of Health,East Sussex Hospitals NHS Trust,08/05/2013,PROSTHESES-OTHER,Planned Care,CORIN LIMITED,0002116550,1681.20
Department of Health,East Sussex Hospitals NHS Trust,08/05/2013,POSTAGE,Commercial,ROCOM,0002116638,11.94
Department of Health,East Sussex Hospitals NHS Trust,08/05/2013,TELEPHONES-WIRING & EQUIPMENT,Commercial,ROCOM,0002116638,2415.50
Department of Health,East Sussex Hospitals NHS Trust,08/05/2013,LAB MATS - SYSMEX HAEM CONS,Integrated Care,SYSMEX UK LTD,0002116906,4837.91
Department of Health,East Sussex Hospitals NHS Trust,08/05/2013,CONTRACT-VEHICLE LEASING,Commercial,EURO SELF DRIVE LTD,0002116956,500.00
Department of Health,East Sussex Hospitals NHS Trust,08/05/2013,PACEMAKERS,Urgent Care,SORIN GROUP UK LTD,0002116967,20700.00
Department of Health,East Sussex Hospitals NHS Trust,08/05/2013,INTERVENTIONAL DISPOSABLES,Integrated Care,TERUMO UK,0002117135,912.00
Department of Health,East Sussex Hospitals NHS Trust,08/05/2013,PROFESSIONAL FEES,Corporate Services,PICOSEA LTD,0002117281,1000.00
Department of Health,East Sussex Hospitals NHS Trust,08/05/2013,PATS.APPL.-DENTAL,Planned Care,SOUTH EASTERN ORTHODONTICS,0002117365,2342.11
Department of Health,East Sussex Hospitals NHS Trust,08/05/2013,POSTAGE,Integrated Care,MISCO COMPUTER SUPPLIES LTD,0002117512,14.48
Department of Health,East Sussex Hospitals NHS Trust,08/05/2013,COMPUTER HARDWARE,Integrated Care,MISCO COMPUTER SUPPLIES LTD,0002117512,1733.98
Department of Health,East Sussex Hospitals NHS Trust,08/05/2013,PROSTHESIS - SPINAL,Planned Care,ZIMMER LTD,0002117527,669.60
Department of Health,East Sussex Hospitals NHS Trust,08/05/2013,PROSTHESES-OTHER,Planned Care,ZIMMER LTD,0002117527,1352.16
Department of Health,East Sussex Hospitals NHS Trust,08/05/2013,M&S GENERAL SUPPLIES-OTHER,Planned Care,JOHNSON & JOHNSON MEDICAL LTD,0002117734,2049.60
Department of Health,East Sussex Hospitals NHS Trust,08/05/2013,WASTE DISPOSAL SERVICES,Commercial,REFUPAK LTD,0002117795,450.00
Department of Health,East Sussex Hospitals NHS Trust,08/05/2013,LOANER KITS - HIRE CHARGE,Planned Care,SMITH & NEPHEW ADVANCED SURGICAL DEVICES,0002212963,1612.80
Department of Health,East Sussex Hospitals NHS Trust,08/05/2013,PROSTHESES-OTHER,Planned Care,SMITH & NEPHEW ADVANCED SURGICAL DEVICES,0002212963,722.57
Department of Health,East Sussex Hospitals NHS Trust,08/05/2013,TSSU INSTRUMENTATION,Commercial,SD HEALTHCARE LTD,0002213394,526.39
Department of Health,East Sussex Hospitals NHS Trust,08/05/2013,LAB MATS - SYSMEX HAEM CONS,Integrated Care,SYSMEX UK LTD,0002213404,5764.23
Department of Health,East Sussex Hospitals NHS Trust,08/05/2013,POSTAGE,Integrated Care,SYSMEX UK LTD,0002213404,-165.31
Department of Health,East Sussex Hospitals NHS Trust,08/05/2013,PRE-STERILE COMMERCIAL PACKS,Commercial,SYNERGY HEALTH,0002213458,1295.88
Department of Health,East Sussex Hospitals NHS Trust,08/05/2013,GENERAL LAB. CONSUMABLES,Integrated Care,PHADIA LTD,0002213574,93.00
Department of Health,East Sussex Hospitals NHS Trust,08/05/2013,IMMUNONOLOGY REAGENTS,Integrated Care,PHADIA LTD,0002213574,921.24
Department of Health,East Sussex Hospitals NHS Trust,08/05/2013,PATS APPL - FOOTWARE,Urgent Care,V-M ORTHOTICS LTD,0002213602,750.00
Department of Health,East Sussex Hospitals NHS Trust,08/05/2013,DRESSINGS-OTHER,Commercial,SYNERGY HEALTH,0002213621,337.13
Department of Health,East Sussex Hospitals NHS Trust,08/05/2013,PRE-STERILE COMMERCIAL PACKS,Commercial,SYNERGY HEALTH,0002213621,1621.46
Department of Health,East Sussex Hospitals NHS Trust,08/05/2013,CAPITAL EXPENDITURE,Other Central,JOHNSON & JOHNSON MEDICAL LTD,0002213783,4500.00
Department of Health,East Sussex Hospitals NHS Trust,08/05/2013,ENGINEERING MATERIALS,Commercial,COLSAN INSTRUMENT SERVICES,0002213813,920.15
Department of Health,East Sussex Hospitals NHS Trust,08/05/2013,GENERAL LAB. CONSUMABLES,Integrated Care,PHADIA LTD,0002213873,93.00
Department of Health,East Sussex Hospitals NHS Trust,08/05/2013,IMMUNONOLOGY REAGENTS,Integrated Care,PHADIA LTD,0002213873,1598.58
Department of Health,East Sussex Hospitals NHS Trust,08/05/2013,PRINTING/PRINTED MATERIALS,Commercial,ENTERPRISE STATIONERY LTD,0002214079,972.92
Department of Health,East Sussex Hospitals NHS Trust,08/05/2013,CARDIOLOGY STENTS,Urgent Care,TERUMO UK,0002214109,1242.00
Department of Health,East Sussex Hospitals NHS Trust,08/05/2013,PRE-STERILE COMMERCIAL PACKS,Commercial,PELICAN FEMININE HEALTHCARE (EUROPE) LTD,0002214236,588.00
Department of Health,East Sussex Hospitals NHS Trust,08/05/2013,CLINICAL WASTE DISPOSAL,Commercial,SRCL LTD,0002214254,11926.79
Department of Health,East Sussex Hospitals NHS Trust,08/05/2013,IMMUNONOLOGY REAGENTS,Integrated Care,PHADIA LTD,0002214261,783.90
Department of Health,East Sussex Hospitals NHS Trust,08/05/2013,PRE-STERILE COMMERCIAL PACKS,Commercial,SYNERGY HEALTH,0002214334,596.67
Department of Health,East Sussex Hospitals NHS Trust,08/05/2013,BEDDING & LINEN - WIPES,Commercial,SYNERGY HEALTH,0002214334,158.40
Department of Health,East Sussex Hospitals NHS Trust,08/05/2013,WASTE DISPOSAL SERVICES,Commercial,VEOLIA ENVIRONMENTAL SERVICES (UK) PLC,0002214337,2575.27
Department of Health,East Sussex Hospitals NHS Trust,08/05/2013,WASTE DISPOSAL SERVICES,Commercial,VEOLIA ENVIRONMENTAL SERVICES (UK) PLC,0002214342,2170.60
Department of Health,East Sussex Hospitals NHS Trust,08/05/2013,DISPOSAL OF CONFIDENTIAL WASTE,Commercial,VEOLIA ENVIRONMENTAL SERVICES (UK) PLC,0002214344,2100.00
Department of Health,East Sussex Hospitals NHS Trust,08/05/2013,CONT.MAIN-MED & SURG EQUIP,Commercial,LINDSAY SURGICAL SUPPLIES LTD,0002214349,540.00
Department of Health,East Sussex Hospitals NHS Trust,08/05/2013,M&S GENERAL SUPPLIES-OTHER,Commercial,STERIS LTD,0002214385,2376.00
Department of Health,East Sussex Hospitals NHS Trust,08/05/2013,GENERAL LAB. CONSUMABLES,Integrated Care,GREINER BIO-ONE LTD,0002214501,4344.60
Department of Health,East Sussex Hospitals NHS Trust,08/05/2013,PURICORE CONSUMABLES,Planned Care,PURICORE ENDOSCOPY,0002214597,1422.43
Department of Health,East Sussex Hospitals NHS Trust,08/05/2013,M&S GENERAL SUPPLIES-OTHER,Planned Care,PURICORE ENDOSCOPY,0002214597,120.00
Department of Health,East Sussex Hospitals NHS Trust,08/05/2013,DRESSINGS-OTHER,Commercial,SYNERGY HEALTH,0002214619,126.00
Department of Health,East Sussex Hospitals NHS Trust,08/05/2013,PRE-STERILE COMMERCIAL PACKS,Commercial,SYNERGY HEALTH,0002214619,1350.47
Department of Health,East Sussex Hospitals NHS Trust,08/05/2013,M&S GENERAL SUPPLIES-OTHER,Integrated Care,TERUMO UK,0002214624,702.00
Department of Health,East Sussex Hospitals NHS Trust,08/05/2013,GENERAL LAB. CONSUMABLES,Integrated Care,GREINER BIO-ONE LTD,0002214758,4970.35
Department of Health,East Sussex Hospitals NHS Trust,08/05/2013,PRINTING/PRINTED MATERIALS,Commercial,ENTERPRISE STATIONERY LTD,0002214780,972.92
Department of Health,East Sussex Hospitals NHS Trust,08/05/2013,CARDIOLOGY CATHETERS,Urgent Care,TERUMO UK,0002214784,648.00
Department of Health,East Sussex Hospitals NHS Trust,08/05/2013,INTERVENTIONAL DISPOSABLES,Integrated Care,TERUMO UK,0002214785,684.00
Department of Health,East Sussex Hospitals NHS Trust,08/05/2013,INTERVENTIONAL DISPOSABLES,Urgent Care,TERUMO UK,0002214787,790.20
Department of Health,East Sussex Hospitals NHS Trust,08/05/2013,PATS.APPL.-DENTAL,Planned Care,ADRIAN KEARNS,0002214836,3850.00
Department of Health,East Sussex Hospitals NHS Trust,08/05/2013,LAB MATS - SYSMEX HAEM CONS,Integrated Care,SYSMEX UK LTD,0002214853,6526.40
Department of Health,East Sussex Hospitals NHS Trust,08/05/2013,MED EQUIPMENT LEASES,Planned Care,SHAWBROOK ASSET FINANCE,0002214970,2962.33
Department of Health,East Sussex Hospitals NHS Trust,08/05/2013,MULTITONE SWITCHBOARD,Commercial,MULTITONE ELECTRONICS P L C,0002214982,34976.34
Department of Health,East Sussex Hospitals NHS Trust,08/05/2013,COMPUTER MAINT - SOFTWARE,Corporate Services,REED BUSINESS INFORMATION,0002214990,9900.00
Department of Health,East Sussex Hospitals NHS Trust,08/05/2013,MED EQUIPMENT LEASES,Planned Care,SHAWBROOK ASSET FINANCE,0002215220,2312.96
Department of Health,East Sussex Hospitals NHS Trust,08/05/2013,CAPITAL EXPENDITURE,Other Central,MISCO COMPUTER SUPPLIES LTD,0002215240,1409.08
Department of Health,East Sussex Hospitals NHS Trust,08/05/2013,M&S GENERAL SUPPLIES-OTHER,Commercial,NIDA SOLUTIONS LTD,0002215308,1455.23
Department of Health,East Sussex Hospitals NHS Trust,08/05/2013,PRE-STERILE COMMERCIAL PACKS,Commercial,NIDA SOLUTIONS LTD,0002215308,95.98
Department of Health,East Sussex Hospitals NHS Trust,08/05/2013,FOETAL FIBRONECTIN SYS CONSUMS,Integrated Care,HOLOGIC UK LTD,0002215309,1092.00
Department of Health,East Sussex Hospitals NHS Trust,08/05/2013,PROSTHESIS - GRAFTS,Planned Care,MAQUET LIMITED,0002215349,550.08
Department of Health,East Sussex Hospitals NHS Trust,08/05/2013,PROFESSIONAL FEES,Corporate Services,THE POLICE & CRIME COMMISSION. OF SUSSEX,0002215352,1947.60
Department of Health,East Sussex Hospitals NHS Trust,08/05/2013,M&S GENERAL SUPPLIES-OTHER,Commercial,LYALL WILLIS & COMPANY,0002215388,1567.36
Department of Health,East Sussex Hospitals NHS Trust,08/05/2013,STOCK-ASCRIBE EDGH,Pharmacy Stock,JANSSEN-CILAG LTD,0013002534,1729.10
Department of Health,East Sussex Hospitals NHS Trust,08/05/2013,STOCK-ASCRIBE EDGH,Pharmacy Stock,JANSSEN-CILAG LTD,0013002740,1729.10
Department of Health,East Sussex Hospitals NHS Trust,08/05/2013,STOCK-ASCRIBE EDGH,Pharmacy Stock,JANSSEN-CILAG LTD,0013002793,15900.00
Department of Health,East Sussex Hospitals NHS Trust,08/05/2013,STOCK-ASCRIBE EDGH,Pharmacy Stock,MERCK SERONO,0013004725,4095.00
Department of Health,East Sussex Hospitals NHS Trust,08/05/2013,STOCK-ASCRIBE EDGH,Pharmacy Stock,AAH PHARMACEUTICALS LTD,0013004991,513.00
Department of Health,East Sussex Hospitals NHS Trust,08/05/2013,STOCK-ASCRIBE EDGH,Pharmacy Stock,AAH PHARMACEUTICALS LTD,0013004999,521.10
Department of Health,East Sussex Hospitals NHS Trust,08/05/2013,STOCK-ASCRIBE EDGH,Pharmacy Stock,AAH PHARMACEUTICALS LTD,0013005000,513.00
Department of Health,East Sussex Hospitals NHS Trust,08/05/2013,STOCK-ASCRIBE EDGH,Pharmacy Stock,AAH PHARMACEUTICALS LTD,0013005013,521.10
Department of Health,East Sussex Hospitals NHS Trust,08/05/2013,STOCK-ASCRIBE EDGH,Pharmacy Stock,AAH PHARMACEUTICALS LTD,0013005016,513.00
Department of Health,East Sussex Hospitals NHS Trust,08/05/2013,STOCK-ASCRIBE EDGH,Pharmacy Stock,AAH PHARMACEUTICALS LTD,0013005026,521.10
Department of Health,East Sussex Hospitals NHS Trust,08/05/2013,STOCK-ASCRIBE EDGH,Pharmacy Stock,HEALTHCARE AT HOME LTD,0013005028,704.28
Department of Health,East Sussex Hospitals NHS Trust,08/05/2013,STOCK-ASCRIBE EDGH,Pharmacy Stock,HEALTHCARE AT HOME LTD,0013005029,704.28
Department of Health,East Sussex Hospitals NHS Trust,08/05/2013,STOCK-ASCRIBE EDGH,Pharmacy Stock,HEALTHCARE AT HOME LTD,0013005030,715.00
Department of Health,East Sussex Hospitals NHS Trust,08/05/2013,STOCK-ASCRIBE EDGH,Pharmacy Stock,HEALTHCARE AT HOME LTD,0013005031,715.00
Department of Health,East Sussex Hospitals NHS Trust,08/05/2013,STOCK-ASCRIBE EDGH,Pharmacy Stock,HEALTHCARE AT HOME LTD,0013005032,715.00
Department of Health,East Sussex Hospitals NHS Trust,08/05/2013,STOCK-ASCRIBE EDGH,Pharmacy Stock,HEALTHCARE AT HOME LTD,0013005033,715.00
Department of Health,East Sussex Hospitals NHS Trust,08/05/2013,STOCK-ASCRIBE EDGH,Pharmacy Stock,HEALTHCARE AT HOME LTD,0013005034,715.00
Department of Health,East Sussex Hospitals NHS Trust,08/05/2013,STOCK-ASCRIBE EDGH,Pharmacy Stock,HEALTHCARE AT HOME LTD,0013005035,715.00
Department of Health,East Sussex Hospitals NHS Trust,08/05/2013,STOCK-ASCRIBE EDGH,Pharmacy Stock,HEALTHCARE AT HOME LTD,0013005036,715.00
Department of Health,East Sussex Hospitals NHS Trust,08/05/2013,STOCK-ASCRIBE EDGH,Pharmacy Stock,HEALTHCARE AT HOME LTD,0013005037,704.28
Department of Health,East Sussex Hospitals NHS Trust,08/05/2013,STOCK-ASCRIBE EDGH,Pharmacy Stock,HEALTHCARE AT HOME LTD,0013005038,715.00
Department of Health,East Sussex Hospitals NHS Trust,08/05/2013,STOCK-ASCRIBE EDGH,Pharmacy Stock,HEALTHCARE AT HOME LTD,0013005039,715.00
Department of Health,East Sussex Hospitals NHS Trust,08/05/2013,STOCK-ASCRIBE EDGH,Pharmacy Stock,HEALTHCARE AT HOME LTD,0013005040,704.28
Department of Health,East Sussex Hospitals NHS Trust,08/05/2013,STOCK-ASCRIBE EDGH,Pharmacy Stock,HEALTHCARE AT HOME LTD,0013005041,704.28
Department of Health,East Sussex Hospitals NHS Trust,08/05/2013,STOCK-ASCRIBE EDGH,Pharmacy Stock,HEALTHCARE AT HOME LTD,0013005042,704.28
Department of Health,East Sussex Hospitals NHS Trust,08/05/2013,STOCK-ASCRIBE EDGH,Pharmacy Stock,HEALTHCARE AT HOME LTD,0013005043,704.28
Department of Health,East Sussex Hospitals NHS Trust,08/05/2013,STOCK-ASCRIBE EDGH,Pharmacy Stock,HEALTHCARE AT HOME LTD,0013005044,715.00
Department of Health,East Sussex Hospitals NHS Trust,08/05/2013,STOCK-ASCRIBE EDGH,Pharmacy Stock,HEALTHCARE AT HOME LTD,0013005045,704.28
Department of Health,East Sussex Hospitals NHS Trust,08/05/2013,STOCK-ASCRIBE EDGH,Pharmacy Stock,HEALTHCARE AT HOME LTD,0013005046,704.28
Department of Health,East Sussex Hospitals NHS Trust,08/05/2013,STOCK-ASCRIBE EDGH,Pharmacy Stock,HEALTHCARE AT HOME LTD,0013005047,704.28
Department of Health,East Sussex Hospitals NHS Trust,08/05/2013,STOCK-ASCRIBE EDGH,Pharmacy Stock,HEALTHCARE AT HOME LTD,0013005048,704.28
Department of Health,East Sussex Hospitals NHS Trust,08/05/2013,STOCK-ASCRIBE EDGH,Pharmacy Stock,HEALTHCARE AT HOME LTD,0013005049,715.00
Department of Health,East Sussex Hospitals NHS Trust,08/05/2013,STOCK-ASCRIBE EDGH,Pharmacy Stock,HEALTHCARE AT HOME LTD,0013005050,704.28
Department of Health,East Sussex Hospitals NHS Trust,08/05/2013,STOCK-ASCRIBE EDGH,Pharmacy Stock,HEALTHCARE AT HOME LTD,0013005051,715.00
Department of Health,East Sussex Hospitals NHS Trust,08/05/2013,STOCK-ASCRIBE EDGH,Pharmacy Stock,HEALTHCARE AT HOME LTD,0013005052,715.00
Department of Health,East Sussex Hospitals NHS Trust,08/05/2013,STOCK-ASCRIBE EDGH,Pharmacy Stock,HEALTHCARE AT HOME LTD,0013005053,704.28
Department of Health,East Sussex Hospitals NHS Trust,08/05/2013,STOCK-ASCRIBE EDGH,Pharmacy Stock,HEALTHCARE AT HOME LTD,0013005054,715.00
Department of Health,East Sussex Hospitals NHS Trust,08/05/2013,STOCK-ASCRIBE EDGH,Pharmacy Stock,HEALTHCARE AT HOME LTD,0013005055,715.00
Department of Health,East Sussex Hospitals NHS Trust,08/05/2013,STOCK-ASCRIBE EDGH,Pharmacy Stock,HEALTHCARE AT HOME LTD,0013005056,704.28
Department of Health,East Sussex Hospitals NHS Trust,08/05/2013,STOCK-ASCRIBE EDGH,Pharmacy Stock,HEALTHCARE AT HOME LTD,0013005057,715.00
Department of Health,East Sussex Hospitals NHS Trust,08/05/2013,STOCK-ASCRIBE EDGH,Pharmacy Stock,HEALTHCARE AT HOME LTD,0013005058,715.00
Department of Health,East Sussex Hospitals NHS Trust,08/05/2013,STOCK-ASCRIBE EDGH,Pharmacy Stock,HEALTHCARE AT HOME LTD,0013005059,715.00
Department of Health,East Sussex Hospitals NHS Trust,08/05/2013,STOCK-ASCRIBE EDGH,Pharmacy Stock,HEALTHCARE AT HOME LTD,0013005060,715.00
Department of Health,East Sussex Hospitals NHS Trust,08/05/2013,STOCK-ASCRIBE EDGH,Pharmacy Stock,AAH PHARMACEUTICALS LTD,0013005249,1210.12
Department of Health,East Sussex Hospitals NHS Trust,08/05/2013,STOCK-ASCRIBE EDGH,Pharmacy Stock,AAH PHARMACEUTICALS LTD,0013005250,1034.10
Department of Health,East Sussex Hospitals NHS Trust,08/05/2013,STOCK-ASCRIBE EDGH,Pharmacy Stock,AAH PHARMACEUTICALS LTD,0013005258,521.10
Department of Health,East Sussex Hospitals NHS Trust,08/05/2013,STOCK-ASCRIBE EDGH,Pharmacy Stock,AAH PHARMACEUTICALS LTD,0013005295,856.80
Department of Health,East Sussex Hospitals NHS Trust,08/05/2013,STOCK-ASCRIBE EDGH,Pharmacy Stock,AAH PHARMACEUTICALS LTD,0013005305,-2106.72
Department of Health,East Sussex Hospitals NHS Trust,08/05/2013,STOCK-ASCRIBE EDGH,Pharmacy Stock,HEALTHCARE AT HOME LTD,0013005313,715.00
Department of Health,East Sussex Hospitals NHS Trust,08/05/2013,STOCK-ASCRIBE EDGH,Pharmacy Stock,AAH PHARMACEUTICALS LTD,0013005323,521.10
Department of Health,East Sussex Hospitals NHS Trust,08/05/2013,STOCK-ASCRIBE EDGH,Pharmacy Stock,AAH PHARMACEUTICALS LTD,0013005330,946.96
Department of Health,East Sussex Hospitals NHS Trust,08/05/2013,STOCK-ASCRIBE EDGH,Pharmacy Stock,AAH PHARMACEUTICALS LTD,0013005338,521.10
Department of Health,East Sussex Hospitals NHS Trust,15/05/2013,SR HEALTH PROTECTION AGENCY,Integrated Care,PUBLIC HEALTH ENGLAND,0000136290,539.80
Department of Health,East Sussex Hospitals NHS Trust,15/05/2013,NHS SUPPLY CHAIN CREDITORS,Cross Site,NHS SUPPLY CHAIN,0000136682,188473.87
Department of Health,East Sussex Hospitals NHS Trust,15/05/2013,AGENCY SHO,Planned Care,MEDACS HEALTHCARE SERVICES LTD,0000285767,786.74
Department of Health,East Sussex Hospitals NHS Trust,15/05/2013,AGENCY DIETICIAN,Urgent Care,YOUR WORLD RECRUITMENT LTD,0000285847,1251.00
Department of Health,East Sussex Hospitals NHS Trust,15/05/2013,AGENCY SPEECH THERAPIST,Integrated Care,YOUR WORLD RECRUITMENT LTD,0000286190,705.06
Department of Health,East Sussex Hospitals NHS Trust,15/05/2013,AGENCY DIETICIAN,Urgent Care,YOUR WORLD RECRUITMENT LTD,0000286192,979.20
Department of Health,East Sussex Hospitals NHS Trust,15/05/2013,AGENCY DIETICIAN,Urgent Care,YOUR WORLD RECRUITMENT LTD,0000286194,1251.00
Department of Health,East Sussex Hospitals NHS Trust,15/05/2013,AGENCY OCC THERAPY STAFF,Integrated Care,YOUR WORLD RECRUITMENT LTD,0000286195,1060.92
Department of Health,East Sussex Hospitals NHS Trust,15/05/2013,AGENCY DIETICIAN,Urgent Care,YOUR WORLD RECRUITMENT LTD,0000286379,1224.00
Department of Health,East Sussex Hospitals NHS Trust,15/05/2013,BANK NURSE - QUALIFIED,Planned Care,YOUR WORLD RECRUITMENT LTD,0000286381,2174.64
Department of Health,East Sussex Hospitals NHS Trust,15/05/2013,AGENCY SPEECH THERAPIST,Integrated Care,YOUR WORLD RECRUITMENT LTD,0000286384,1057.60
Department of Health,East Sussex Hospitals NHS Trust,15/05/2013,AGENCY DIETICIAN,Urgent Care,YOUR WORLD RECRUITMENT LTD,0000286385,1251.00
Department of Health,East Sussex Hospitals NHS Trust,15/05/2013,AGENCY RADIOGRAPHY STAFF,Integrated Care,JENNIE REEVES RADIOGRAPHERS AGENCY LTD,0000286858,1888.20
Department of Health,East Sussex Hospitals NHS Trust,15/05/2013,AGENCY STAFF GRADE,Planned Care,INTERACT MEDICAL,0000286930,4029.48
Department of Health,East Sussex Hospitals NHS Trust,15/05/2013,AGENCY STAFF GRADE,Planned Care,INTERACT MEDICAL,0000286931,4101.43
Department of Health,East Sussex Hospitals NHS Trust,15/05/2013,AGENCY STAFF GRADE,Planned Care,INTERACT MEDICAL,0000286932,2374.51
Department of Health,East Sussex Hospitals NHS Trust,15/05/2013,AGENCY STAFF GRADE,Planned Care,INTERACT MEDICAL,0000286933,3981.53
Department of Health,East Sussex Hospitals NHS Trust,15/05/2013,AGENCY STAFF GRADE,Planned Care,INTERACT MEDICAL,0000286934,3166.02
Department of Health,East Sussex Hospitals NHS Trust,15/05/2013,AGENCY STAFF GRADE,Planned Care,INTERACT MEDICAL,0000286935,2398.50
Department of Health,East Sussex Hospitals NHS Trust,15/05/2013,AGENCY STAFF GRADE,Planned Care,INTERACT MEDICAL,0000286936,4101.43
Department of Health,East Sussex Hospitals NHS Trust,15/05/2013,AGENCY STAFF GRADE,Planned Care,INTERACT MEDICAL,0000286937,4125.42
Department of Health,East Sussex Hospitals NHS Trust,15/05/2013,AGENCY STAFF GRADE,Planned Care,INTERACT MEDICAL,0000286938,4053.47
Department of Health,East Sussex Hospitals NHS Trust,15/05/2013,AGENCY STAFF GRADE,Planned Care,INTERACT MEDICAL,0000286939,4125.42
Department of Health,East Sussex Hospitals NHS Trust,15/05/2013,AGENCY STAFF GRADE,Planned Care,INTERACT MEDICAL,0000286940,1630.98
Department of Health,East Sussex Hospitals NHS Trust,15/05/2013,AGENCY STAFF GRADE,Planned Care,INTERACT MEDICAL,0000286941,4029.48
Department of Health,East Sussex Hospitals NHS Trust,15/05/2013,AGENCY STAFF GRADE,Planned Care,INTERACT MEDICAL,0000286942,2398.50
Department of Health,East Sussex Hospitals NHS Trust,15/05/2013,AGENCY STAFF GRADE,Planned Care,INTERACT MEDICAL,0000286943,3084.60
Department of Health,East Sussex Hospitals NHS Trust,15/05/2013,AGENCY SPECIALIST REG,Planned Care,INTERACT MEDICAL,0000286944,862.68
Department of Health,East Sussex Hospitals NHS Trust,15/05/2013,AGENCY SPECIALIST REG,Planned Care,INTERACT MEDICAL,0000286945,964.08
Department of Health,East Sussex Hospitals NHS Trust,15/05/2013,AGENCY NURSE - QUALIFIED,Urgent Care,HEALTHCARE AT HOME LTD,0000286973,1800.00
Department of Health,East Sussex Hospitals NHS Trust,15/05/2013,AGENCY SPECIALIST REG,Integrated Care,MEDACS HEALTHCARE SERVICES LTD,0000287059,901.68
Department of Health,East Sussex Hospitals NHS Trust,15/05/2013,AGENCY CONSULTANT,Urgent Care,URBAN RECRUITMENT GROUP LTD,0000287064,4795.68
Department of Health,East Sussex Hospitals NHS Trust,15/05/2013,AGENCY RADIOGRAPHY STAFF,Integrated Care,JENNIE REEVES RADIOGRAPHERS AGENCY LTD,0000287067,1972.74
Department of Health,East Sussex Hospitals NHS Trust,15/05/2013,AGENCY SPECIALIST REG,Urgent Care,MEDACS HEALTHCARE SERVICES LTD,0000287102,3180.40
Department of Health,East Sussex Hospitals NHS Trust,15/05/2013,AGENCY STAFF GRADE,Urgent Care,TOTAL ASSIST RECRUITMENT LTD,0000287125,612.00
Department of Health,East Sussex Hospitals NHS Trust,15/05/2013,AGENCY NURSE - QUALIFIED,Urgent Care,THORNBURY NURSING SERVICES,0000287131,642.92
Department of Health,East Sussex Hospitals NHS Trust,15/05/2013,AGENCY TECHNICIAN,Planned Care,THE PLACEMENT GROUP,0000287139,1474.66
Department of Health,East Sussex Hospitals NHS Trust,15/05/2013,AGENCY PHYSIOTHERAPY STAFF,Integrated Care,THE PLACEMENT GROUP,0000287143,1541.26
Department of Health,East Sussex Hospitals NHS Trust,15/05/2013,AGENCY PHYSIOTHERAPY STAFF,Integrated Care,THE PLACEMENT GROUP,0000287144,1233.00
Department of Health,East Sussex Hospitals NHS Trust,15/05/2013,AGENCY OCC THERAPY STAFF,Integrated Care,THE PLACEMENT GROUP,0000287155,1386.90
Department of Health,East Sussex Hospitals NHS Trust,15/05/2013,AGENCY OCC THERAPY STAFF,Integrated Care,THE PLACEMENT GROUP,0000287156,1137.26
Department of Health,East Sussex Hospitals NHS Trust,15/05/2013,AGENCY PHYSIOTHERAPY STAFF,Integrated Care,THE PLACEMENT GROUP,0000287157,1789.25
Department of Health,East Sussex Hospitals NHS Trust,15/05/2013,AGENCY TECHNICIAN,Urgent Care,THE PLACEMENT GROUP,0000287160,1959.76
Department of Health,East Sussex Hospitals NHS Trust,15/05/2013,AGENCY NURSE - QUALIFIED,Urgent Care,THORNBURY NURSING SERVICES,0000287292,619.53
Department of Health,East Sussex Hospitals NHS Trust,15/05/2013,AGENCY NURSE - QUALIFIED,Urgent Care,THORNBURY NURSING SERVICES,0000287293,600.99
Department of Health,East Sussex Hospitals NHS Trust,15/05/2013,AGENCY NURSE - QUALIFIED,Urgent Care,THORNBURY NURSING SERVICES,0000287294,600.99
Department of Health,East Sussex Hospitals NHS Trust,15/05/2013,AGENCY NURSE - QUALIFIED,Urgent Care,THORNBURY NURSING SERVICES,0000287295,607.18
Department of Health,East Sussex Hospitals NHS Trust,15/05/2013,AGENCY NURSE - QUALIFIED,Urgent Care,THORNBURY NURSING SERVICES,0000287296,596.22
Department of Health,East Sussex Hospitals NHS Trust,15/05/2013,AGENCY NURSE - QUALIFIED,Urgent Care,THORNBURY NURSING SERVICES,0000287297,646.08
Department of Health,East Sussex Hospitals NHS Trust,15/05/2013,AGENCY NURSE - QUALIFIED,Urgent Care,THORNBURY NURSING SERVICES,0000287298,682.00
Department of Health,East Sussex Hospitals NHS Trust,15/05/2013,AGENCY NURSE - UNQUALIFIED,Urgent Care,MAYFAIR,0000287322,493.69
Department of Health,East Sussex Hospitals NHS Trust,15/05/2013,AGENCY NURSE - QUALIFIED,Urgent Care,MAYFAIR,0000287323,887.78
Department of Health,East Sussex Hospitals NHS Trust,15/05/2013,AGENCY NURSE - QUALIFIED,Urgent Care,MAYFAIR,0000287329,707.89
Department of Health,East Sussex Hospitals NHS Trust,15/05/2013,AGENCY NURSE - UNQUALIFIED,Urgent Care,MAYFAIR,0000287331,1169.88
Department of Health,East Sussex Hospitals NHS Trust,15/05/2013,AGENCY TECHNICIAN,Planned Care,THE PLACEMENT GROUP,0000287333,1297.69
Department of Health,East Sussex Hospitals NHS Trust,15/05/2013,AGENCY OCC THERAPY STAFF,Integrated Care,THE PLACEMENT GROUP,0000287334,1303.69
Department of Health,East Sussex Hospitals NHS Trust,15/05/2013,COLONIC STENTS,Integrated Care,PYRAMED,0000287374,1158.00
Department of Health,East Sussex Hospitals NHS Trust,15/05/2013,AGENCY - GENERAL GRADES,Commercial,INTERWORK RECRUITMENT CONSULTANTS LTD,0000287414,-1011.00
Department of Health,East Sussex Hospitals NHS Trust,15/05/2013,AGENCY ANCILLARY,Commercial,INTERWORK RECRUITMENT CONSULTANTS LTD,0000287415,-5403.74
Department of Health,East Sussex Hospitals NHS Trust,15/05/2013,AGENCY PHYSIOTHERAPY STAFF,Integrated Care,THE PLACEMENT GROUP,0000287447,1474.66
Department of Health,East Sussex Hospitals NHS Trust,15/05/2013,AGENCY SHO,Integrated Care,TLC - THE LOCUM CONSULTANCY,0000287505,1513.20
Department of Health,East Sussex Hospitals NHS Trust,15/05/2013,AGENCY SPECIALIST REG,Urgent Care,MYLOCUM LTD,0000287622,4293.31
Department of Health,East Sussex Hospitals NHS Trust,15/05/2013,AGENCY CONSULTANT,Urgent Care,MYLOCUM LTD,0000287623,4284.00
Department of Health,East Sussex Hospitals NHS Trust,15/05/2013,AGENCY SPECIALIST REG,Integrated Care,MEDACS HEALTHCARE SERVICES LTD,0000287626,1882.36
Department of Health,East Sussex Hospitals NHS Trust,15/05/2013,AGENCY SPECIALIST REG,Urgent Care,TOTAL ASSIST RECRUITMENT LTD,0000287629,786.60
Department of Health,East Sussex Hospitals NHS Trust,15/05/2013,AGENCY NURSE - QUALIFIED,Urgent Care,THORNBURY NURSING SERVICES,0000287633,538.96
Department of Health,East Sussex Hospitals NHS Trust,15/05/2013,AGENCY NURSE - QUALIFIED,Urgent Care,THORNBURY NURSING SERVICES,0000287635,672.69
Department of Health,East Sussex Hospitals NHS Trust,15/05/2013,AGENCY NURSE - QUALIFIED,Urgent Care,THORNBURY NURSING SERVICES,0000287636,672.69
Department of Health,East Sussex Hospitals NHS Trust,15/05/2013,AGENCY NURSE - QUALIFIED,Urgent Care,THORNBURY NURSING SERVICES,0000287637,638.82
Department of Health,East Sussex Hospitals NHS Trust,15/05/2013,AGENCY NURSE - QUALIFIED,Urgent Care,THORNBURY NURSING SERVICES,0000287638,561.17
Department of Health,East Sussex Hospitals NHS Trust,15/05/2013,AGENCY NURSE - QUALIFIED,Urgent Care,THORNBURY NURSING SERVICES,0000287639,746.25
Department of Health,East Sussex Hospitals NHS Trust,15/05/2013,AGENCY CONSULTANT,Planned Care,TLC - THE LOCUM CONSULTANCY,0000287681,3168.00
Department of Health,East Sussex Hospitals NHS Trust,15/05/2013,AGENCY SPECIALIST REG,Integrated Care,MEDACS HEALTHCARE SERVICES LTD,0000287715,1041.30
Department of Health,East Sussex Hospitals NHS Trust,15/05/2013,AGENCY CONSULTANT,Planned Care,TLC - THE LOCUM CONSULTANCY,0000287746,4752.00
Department of Health,East Sussex Hospitals NHS Trust,15/05/2013,AGENCY SPECIALIST REG,Urgent Care,MYLOCUM LTD,0000287815,2230.61
Department of Health,East Sussex Hospitals NHS Trust,15/05/2013,AGENCY SPECIALIST REG,Urgent Care,MEDACS HEALTHCARE SERVICES LTD,0000287816,2452.97
Department of Health,East Sussex Hospitals NHS Trust,15/05/2013,AGENCY CONSULTANT,Integrated Care,MEDACS HEALTHCARE SERVICES LTD,0000287820,2823.53
Department of Health,East Sussex Hospitals NHS Trust,15/05/2013,AGENCY NURSE - QUALIFIED,Integrated Care,TEAM24 LTD,0000287832,2228.02
Department of Health,East Sussex Hospitals NHS Trust,15/05/2013,AGENCY NURSE - QUALIFIED,Integrated Care,TEAM24 LTD,0000287833,2759.64
Department of Health,East Sussex Hospitals NHS Trust,15/05/2013,AGENCY CONSULTANT,Planned Care,TLC - THE LOCUM CONSULTANCY,0000287836,4752.00
Department of Health,East Sussex Hospitals NHS Trust,15/05/2013,AGENCY CONSULTANT,Integrated Care,GENERAL MEDICINE GROUP,0000287879,5326.96
Department of Health,East Sussex Hospitals NHS Trust,15/05/2013,AGENCY CONSULTANT,Integrated Care,GENERAL MEDICINE GROUP,0000287938,5239.20
Department of Health,East Sussex Hospitals NHS Trust,15/05/2013,AGENCY SHO,Integrated Care,MEDACS HEALTHCARE SERVICES LTD,0000287979,894.32
Department of Health,East Sussex Hospitals NHS Trust,15/05/2013,AGENCY SPECIALIST REG,Planned Care,MEDACS HEALTHCARE SERVICES LTD,0000287984,941.18
Department of Health,East Sussex Hospitals NHS Trust,15/05/2013,AGENCY SPECIALIST REG,Integrated Care,MEDACS HEALTHCARE SERVICES LTD,0000288006,640.80
Department of Health,East Sussex Hospitals NHS Trust,15/05/2013,AGENCY SPECIALIST REG,Planned Care,SURGI-CALL LOCUMS,0000288059,5040.00
Department of Health,East Sussex Hospitals NHS Trust,15/05/2013,AGENCY SPECIALIST REG,Planned Care,SURGI-CALL LOCUMS,0000288060,3528.00
Department of Health,East Sussex Hospitals NHS Trust,15/05/2013,AGENCY DRIVERS,Commercial,PEOPLE POWER REC AGENCY LTD,0000288112,908.22
Department of Health,East Sussex Hospitals NHS Trust,15/05/2013,AGENCY SPECIALIST REG,Planned Care,MEDACS HEALTHCARE SERVICES LTD,0000288134,812.72
Department of Health,East Sussex Hospitals NHS Trust,15/05/2013,AGENCY SPECIALIST REG,Planned Care,MEDACS HEALTHCARE SERVICES LTD,0000288189,3544.90
Department of Health,East Sussex Hospitals NHS Trust,15/05/2013,AGENCY SPECIALIST REG,Integrated Care,MEDACS HEALTHCARE SERVICES LTD,0000288222,2823.53
Department of Health,East Sussex Hospitals NHS Trust,15/05/2013,AGENCY SPECIALIST REG,Integrated Care,MEDACS HEALTHCARE SERVICES LTD,0000288296,2823.53
Department of Health,East Sussex Hospitals NHS Trust,15/05/2013,AGENCY SPECIALIST REG,Integrated Care,MEDACS HEALTHCARE SERVICES LTD,0000288384,941.18
Department of Health,East Sussex Hospitals NHS Trust,15/05/2013,AGENCY ANCILLARY,Commercial,INTERWORK RECRUITMENT CONSULTANTS LTD,0000288408,788.41
Department of Health,East Sussex Hospitals NHS Trust,15/05/2013,AGENCY ANCILLARY,Commercial,INTERWORK RECRUITMENT CONSULTANTS LTD,0000288409,5972.40
Department of Health,East Sussex Hospitals NHS Trust,15/05/2013,AGENCY ANCILLARY,Commercial,INTERWORK RECRUITMENT CONSULTANTS LTD,0000288410,1115.58
Department of Health,East Sussex Hospitals NHS Trust,15/05/2013,AGENCY - GENERAL GRADES,Commercial,INTERWORK RECRUITMENT CONSULTANTS LTD,0000288417,2108.69
Department of Health,East Sussex Hospitals NHS Trust,15/05/2013,AGENCY STAFF GRADE,Urgent Care,DR DSOUZA LTD,0000288424,1900.00
Department of Health,East Sussex Hospitals NHS Trust,15/05/2013,AGENCY STAFF GRADE,Urgent Care,DR DSOUZA LTD,0000288425,1900.00
Department of Health,East Sussex Hospitals NHS Trust,15/05/2013,AGENCY STAFF GRADE,Urgent Care,DR DSOUZA LTD,0000288426,2375.00
Department of Health,East Sussex Hospitals NHS Trust,15/05/2013,AGENCY STAFF GRADE,Urgent Care,DR DSOUZA LTD,0000288427,1125.00
Department of Health,East Sussex Hospitals NHS Trust,15/05/2013,AGENCY STAFF GRADE,Urgent Care,DR DSOUZA LTD,0000288428,1625.00
Department of Health,East Sussex Hospitals NHS Trust,15/05/2013,AGENCY SPECIALIST REG,Integrated Care,SCARAMOUCHE LOCUM SERVICES LTD,0000288471,750.00
Department of Health,East Sussex Hospitals NHS Trust,15/05/2013,MEDICAL GAS - VIE RENTAL,Commercial,BOC (MANCHESTER)LTD,0000361307,2881.32
Department of Health,East Sussex Hospitals NHS Trust,15/05/2013,MEDICAL GASES,Commercial,BOC (MANCHESTER)LTD,0000361311,339.08
Department of Health,East Sussex Hospitals NHS Trust,15/05/2013,MEDICAL GAS - CYLINDER RENTAL,Commercial,BOC (MANCHESTER)LTD,0000361311,425.81
Department of Health,East Sussex Hospitals NHS Trust,15/05/2013,MEDICAL GAS - CYLINDER RENTAL,Commercial,BOC (MANCHESTER)LTD,0000361311,1417.05
Department of Health,East Sussex Hospitals NHS Trust,15/05/2013,CONT.MAIN-MED & SURG EQUIP,Urgent Care,SMITHS MEDICAL INTERNATIONAL,0000361343,300.00
Department of Health,East Sussex Hospitals NHS Trust,15/05/2013,CONT.MAIN-MED & SURG EQUIP,Planned Care,SMITHS MEDICAL INTERNATIONAL,0000361343,300.00
Department of Health,East Sussex Hospitals NHS Trust,15/05/2013,PROFESSIONAL FEES,Commercial,GRAY SWAIN DRAUGHTING,0000361449,1656.00
Department of Health,East Sussex Hospitals NHS Trust,15/05/2013,MEDICAL GAS - CYLINDER RENTAL,Commercial,BOC (MANCHESTER)LTD,0000621711,179.52
Department of Health,East Sussex Hospitals NHS Trust,15/05/2013,MEDICAL GAS - CYLINDER RENTAL,Commercial,BOC (MANCHESTER)LTD,0000621711,3064.31
Department of Health,East Sussex Hospitals NHS Trust,15/05/2013,MEDICAL GAS - VIE RENTAL,Commercial,BOC (MANCHESTER)LTD,0000621716,3558.14
Department of Health,East Sussex Hospitals NHS Trust,15/05/2013,POSTAGE - MAINTENANCE STOCK,Commercial,PALL MEDICAL LTD,0000621731,46.73
Department of Health,East Sussex Hospitals NHS Trust,15/05/2013,EDGH BLDING & ENGINEERING MATS,Commercial,PALL MEDICAL LTD,0000621731,1584.00
Department of Health,East Sussex Hospitals NHS Trust,15/05/2013,CAPITAL EXPENDITURE,Other Central,BSS (LEWES),0000621759,1209.61
Department of Health,East Sussex Hospitals NHS Trust,15/05/2013,CAPITAL EXPENDITURE,Other Central,BSS (LEWES),0000621760,1509.42
Department of Health,East Sussex Hospitals NHS Trust,15/05/2013,KEELER (SURGERY),Planned Care,KEELER LIMITED,0000621873,1210.00
Department of Health,East Sussex Hospitals NHS Trust,15/05/2013,COMPUTER MAINT - SOFTWARE,Corporate Services,CAPITA IB SOLUTIONS (UK)LTD,0000621875,18667.88
Department of Health,East Sussex Hospitals NHS Trust,15/05/2013,PATS APPL - FOOTWARE,Integrated Care,FLORENCE J,0000755111,503.53
Department of Health,East Sussex Hospitals NHS Trust,15/05/2013,ELECTRO MEDICAL EQUIPMENT,Planned Care,SMITHS MEDICAL INTERNATIONAL,0000895596,565.44
Department of Health,East Sussex Hospitals NHS Trust,15/05/2013,M&S GENERAL SUPPLIES-OTHER,Planned Care,DELTEX MEDICAL,0000895724,962.40
Department of Health,East Sussex Hospitals NHS Trust,15/05/2013,SURGICAL INSTRUMENTS,Planned Care,SYNTHES LTD,0000895744,959.37
Department of Health,East Sussex Hospitals NHS Trust,15/05/2013,PROSTHESES-OTHER,Planned Care,SYNTHES LTD,0000895744,1019.30
Department of Health,East Sussex Hospitals NHS Trust,15/05/2013,M&S EQUIPMENT - OTHER,Planned Care,CARLETON LTD,0000895884,241.20
Department of Health,East Sussex Hospitals NHS Trust,15/05/2013,M&S GENERAL SUPPLIES-OTHER,Planned Care,CARLETON LTD,0000895884,261.00
Department of Health,East Sussex Hospitals NHS Trust,15/05/2013,ENDOSCOPY CONSUMABLES,Planned Care,DELTEX MEDICAL,0000895997,518.40
Department of Health,East Sussex Hospitals NHS Trust,15/05/2013,M&S GENERAL SUPPLIES-OTHER,Planned Care,DELTEX MEDICAL,0000895997,948.00
Department of Health,East Sussex Hospitals NHS Trust,15/05/2013,M&S GENERAL SUPPLIES-OTHER,Planned Care,CARLETON LTD,0000896027,504.00
Department of Health,East Sussex Hospitals NHS Trust,15/05/2013,PROSTHESES-HIP,Planned Care,STRYKER UK,0000896107,2578.13
Department of Health,East Sussex Hospitals NHS Trust,15/05/2013,PROSTHESES-OTHER,Planned Care,STRYKER UK,0000896108,947.52
Department of Health,East Sussex Hospitals NHS Trust,15/05/2013,PROSTHESIS - LENS,Planned Care,ALCON EYE CARE UK LTD,0000896112,595.20
Department of Health,East Sussex Hospitals NHS Trust,15/05/2013,M&S GENERAL SUPPLIES-OTHER,Planned Care,STRYKER UK,0000896114,777.60
Department of Health,East Sussex Hospitals NHS Trust,15/05/2013,PROCEDURE PACKS,Planned Care,ALCON EYE CARE UK LTD,0000896126,1497.60
Department of Health,East Sussex Hospitals NHS Trust,15/05/2013,M&S GENERAL SUPPLIES-OTHER,Planned Care,ALCON EYE CARE UK LTD,0000896126,4723.20
Department of Health,East Sussex Hospitals NHS Trust,15/05/2013,PROSTHESIS - LENS,Planned Care,ALCON EYE CARE UK LTD,0000896127,1190.40
Department of Health,East Sussex Hospitals NHS Trust,15/05/2013,M&S GENERAL SUPPLIES-OTHER,Planned Care,STRYKER UK,0000896167,209.16
Department of Health,East Sussex Hospitals NHS Trust,15/05/2013,SURGICAL INSTRUMENTS,Planned Care,STRYKER UK,0000896167,606.48
Department of Health,East Sussex Hospitals NHS Trust,15/05/2013,SURGICAL INSTRUMENTS,Planned Care,TIMESCO HEALTHCARE LIMITED,0000896263,632.40
Department of Health,East Sussex Hospitals NHS Trust,15/05/2013,BONE BANK,Planned Care,HOSPITAL INNOVATIONS LTD,0000896417,2264.00
Department of Health,East Sussex Hospitals NHS Trust,15/05/2013,M&S GENERAL SUPPLIES-OTHER,Planned Care,BARD LTD,0000896424,504.00
Department of Health,East Sussex Hospitals NHS Trust,15/05/2013,MEDICAL RECORDING PAPER,Integrated Care,MRI DEVICES LMT,0000896571,630.00
Department of Health,East Sussex Hospitals NHS Trust,15/05/2013,M&S GENERAL SUPPLIES-OTHER,Planned Care,INTERSURGICAL LTD,0000896641,613.50
Department of Health,East Sussex Hospitals NHS Trust,15/05/2013,BONE BANK,Planned Care,HOSPITAL INNOVATIONS LTD,0000896936,777.00
Department of Health,East Sussex Hospitals NHS Trust,15/05/2013,STOCK-ASCRIBE CONQUEST,Pharmacy Stock,CELGENE LTD,0001206999,20529.00
Department of Health,East Sussex Hospitals NHS Trust,15/05/2013,STOCK-ASCRIBE CONQUEST,Pharmacy Stock,JANSSEN-CILAG LTD,0001207438,2744.57
Department of Health,East Sussex Hospitals NHS Trust,15/05/2013,STOCK-ASCRIBE CONQUEST,Pharmacy Stock,BOEHRINGER INGELHEIM LTD,0001207555,1800.00
Department of Health,East Sussex Hospitals NHS Trust,15/05/2013,STOCK-ASCRIBE CONQUEST,Pharmacy Stock,BOEHRINGER INGELHEIM LTD,0001207573,1800.00
Department of Health,East Sussex Hospitals NHS Trust,15/05/2013,STOCK-ASCRIBE CONQUEST,Pharmacy Stock,IPSEN LTD,0001207601,2908.80
Department of Health,East Sussex Hospitals NHS Trust,15/05/2013,STOCK-ASCRIBE CONQUEST,Pharmacy Stock,FERRING PHARMACEUTICALS LTD,0001207604,900.00
Department of Health,East Sussex Hospitals NHS Trust,15/05/2013,STOCK-ASCRIBE CONQUEST,Pharmacy Stock,MOORFIELDS PHARMACEUTICALS,0001207877,546.30
Department of Health,East Sussex Hospitals NHS Trust,15/05/2013,STOCK-ASCRIBE CONQUEST,Pharmacy Stock,MERCK SERONO,0001208003,1638.00
Department of Health,East Sussex Hospitals NHS Trust,15/05/2013,STOCK-ASCRIBE CONQUEST,Pharmacy Stock,ALCON EYE CARE UK LTD,0001208115,1781.44
Department of Health,East Sussex Hospitals NHS Trust,15/05/2013,STOCK-ASCRIBE CONQUEST,Pharmacy Stock,NOVARTIS PHARMACEUTICALS UK LTD,0001208124,745.18
Department of Health,East Sussex Hospitals NHS Trust,15/05/2013,STOCK-ASCRIBE CONQUEST,Pharmacy Stock,JANSSEN-CILAG LTD,0001208135,1729.10
Department of Health,East Sussex Hospitals NHS Trust,15/05/2013,STOCK-ASCRIBE CONQUEST,Pharmacy Stock,BAXTER HEALTHCARE (BERKSHIRE)LTD,0001208136,1470.00
Department of Health,East Sussex Hospitals NHS Trust,15/05/2013,STOCK-ASCRIBE CONQUEST,Pharmacy Stock,JANSSEN-CILAG LTD,0001208175,1590.00
Department of Health,East Sussex Hospitals NHS Trust,15/05/2013,STOCK-ASCRIBE CONQUEST,Pharmacy Stock,NOVARTIS PHARMACEUTICALS UK LTD,0001208325,2670.31
Department of Health,East Sussex Hospitals NHS Trust,15/05/2013,STOCK-ASCRIBE CONQUEST,Pharmacy Stock,PROTHERICS MEDICINES DEVELOPMENT LTD,0001208339,5454.00
Department of Health,East Sussex Hospitals NHS Trust,15/05/2013,STOCK-ASCRIBE CONQUEST,Pharmacy Stock,JANSSEN-CILAG LTD,0001208358,1590.00
Department of Health,East Sussex Hospitals NHS Trust,15/05/2013,STOCK-ASCRIBE CONQUEST,Pharmacy Stock,ABBOTT LABORATORIES LTD,0001208364,3466.44
Department of Health,East Sussex Hospitals NHS Trust,15/05/2013,STOCK-ASCRIBE CONQUEST,Pharmacy Stock,BAXTER HEALTHCARE (BERKSHIRE)LTD,0001208367,5293.58
Department of Health,East Sussex Hospitals NHS Trust,15/05/2013,STOCK-ASCRIBE CONQUEST,Pharmacy Stock,BAXTER HEALTHCARE (BERKSHIRE)LTD,0001208368,6693.08
Department of Health,East Sussex Hospitals NHS Trust,15/05/2013,STOCK-ASCRIBE CONQUEST,Pharmacy Stock,MOORFIELDS PHARMACEUTICALS,0001208373,505.80
Department of Health,East Sussex Hospitals NHS Trust,15/05/2013,STOCK-ASCRIBE CONQUEST,Pharmacy Stock,SIEMENS HEALTHCARE DIAGNOSTICS LTD,0001208386,1213.06
Department of Health,East Sussex Hospitals NHS Trust,15/05/2013,STOCK-ASCRIBE CONQUEST,Pharmacy Stock,MERCK SERONO,0001208401,2457.00
Department of Health,East Sussex Hospitals NHS Trust,15/05/2013,STOCK-ASCRIBE CONQUEST,Pharmacy Stock,NOVARTIS PHARMACEUTICALS UK LTD,0001208408,2089.68
Department of Health,East Sussex Hospitals NHS Trust,15/05/2013,STOCK-ASCRIBE CONQUEST,Pharmacy Stock,JANSSEN-CILAG LTD,0001208417,4770.00
Department of Health,East Sussex Hospitals NHS Trust,15/05/2013,STOCK-ASCRIBE CONQUEST,Pharmacy Stock,BAXTER HEALTHCARE (BERKSHIRE)LTD,0001208418,840.00
Department of Health,East Sussex Hospitals NHS Trust,15/05/2013,STOCK-ASCRIBE CONQUEST,Pharmacy Stock,BAXTER HEALTHCARE (BERKSHIRE)LTD,0001208419,1091.22
Department of Health,East Sussex Hospitals NHS Trust,15/05/2013,STOCK-ASCRIBE CONQUEST,Pharmacy Stock,NOVARTIS PHARMACEUTICALS UK LTD,0001208473,906.55
Department of Health,East Sussex Hospitals NHS Trust,15/05/2013,STOCK-ASCRIBE CONQUEST,Pharmacy Stock,MERCK SERONO,0001208492,655.20
Department of Health,East Sussex Hospitals NHS Trust,15/05/2013,STOCK-ASCRIBE CONQUEST,Pharmacy Stock,NOVARTIS PHARMACEUTICALS UK LTD,0001208500,2374.72
Department of Health,East Sussex Hospitals NHS Trust,15/05/2013,STOCK-ASCRIBE CONQUEST,Pharmacy Stock,NOVARTIS PHARMACEUTICALS UK LTD,0001208515,26738.70
Department of Health,East Sussex Hospitals NHS Trust,15/05/2013,STOCK-ASCRIBE CONQUEST,Pharmacy Stock,BOEHRINGER INGELHEIM LTD,0001208517,3013.50
Department of Health,East Sussex Hospitals NHS Trust,15/05/2013,STOCK-ASCRIBE CONQUEST,Pharmacy Stock,BAXTER HEALTHCARE (BERKSHIRE)LTD,0001208541,2354.42
Department of Health,East Sussex Hospitals NHS Trust,15/05/2013,STOCK-ASCRIBE CONQUEST,Pharmacy Stock,BAXTER HEALTHCARE (BERKSHIRE)LTD,0001208702,5132.37
Department of Health,East Sussex Hospitals NHS Trust,15/05/2013,STOCK-ASCRIBE CONQUEST,Pharmacy Stock,MAWDSLEYS,0001208717,1609.63
Department of Health,East Sussex Hospitals NHS Trust,15/05/2013,STOCK-ASCRIBE CONQUEST,Pharmacy Stock,BAXTER HEALTHCARE (BERKSHIRE)LTD,0001208718,660.24
Department of Health,East Sussex Hospitals NHS Trust,15/05/2013,STOCK-ASCRIBE CONQUEST,Pharmacy Stock,BAXTER HEALTHCARE (BERKSHIRE)LTD,0001208850,1427.76
Department of Health,East Sussex Hospitals NHS Trust,15/05/2013,STOCK-ASCRIBE CONQUEST,Pharmacy Stock,MERCK SERONO,0001208869,2457.00
Department of Health,East Sussex Hospitals NHS Trust,15/05/2013,STOCK-ASCRIBE CONQUEST,Pharmacy Stock,MAWDSLEYS,0001208955,1609.63
Department of Health,East Sussex Hospitals NHS Trust,15/05/2013,STOCK-ASCRIBE CONQUEST,Pharmacy Stock,WAYMADE HEALTHCARE PLC,0001208965,1004.64
Department of Health,East Sussex Hospitals NHS Trust,15/05/2013,STOCK-ASCRIBE CONQUEST,Pharmacy Stock,WAYMADE HEALTHCARE PLC,0001208966,656.88
Department of Health,East Sussex Hospitals NHS Trust,15/05/2013,STOCK-ASCRIBE CONQUEST,Pharmacy Stock,BAYER PLC,0001208991,2682.42
Department of Health,East Sussex Hospitals NHS Trust,15/05/2013,STOCK-ASCRIBE CONQUEST,Pharmacy Stock,MAWDSLEYS,0001209015,1609.63
Department of Health,East Sussex Hospitals NHS Trust,15/05/2013,STOCK-ASCRIBE CONQUEST,Pharmacy Stock,FRESENIUS LTD,0001209172,656.66
Department of Health,East Sussex Hospitals NHS Trust,15/05/2013,STOCK-ASCRIBE CONQUEST,Pharmacy Stock,BATH ASU,0001209212,807.00
Department of Health,East Sussex Hospitals NHS Trust,15/05/2013,STOCK-ASCRIBE CONQUEST,Pharmacy Stock,MAWDSLEYS,0001210431,1609.63
Department of Health,East Sussex Hospitals NHS Trust,15/05/2013,STOCK-ASCRIBE CONQUEST,Pharmacy Stock,HEALTHCARE AT HOME LTD,0001210631,704.28
Department of Health,East Sussex Hospitals NHS Trust,15/05/2013,STOCK-ASCRIBE CONQUEST,Pharmacy Stock,HEALTHCARE AT HOME LTD,0001210632,1262.45
Department of Health,East Sussex Hospitals NHS Trust,15/05/2013,STOCK-ASCRIBE CONQUEST,Pharmacy Stock,HEALTHCARE AT HOME LTD,0001210633,704.28
Department of Health,East Sussex Hospitals NHS Trust,15/05/2013,STOCK-ASCRIBE CONQUEST,Pharmacy Stock,HEALTHCARE AT HOME LTD,0001210634,1408.56
Department of Health,East Sussex Hospitals NHS Trust,15/05/2013,STOCK-ASCRIBE CONQUEST,Pharmacy Stock,HEALTHCARE AT HOME LTD,0001210635,704.28
Department of Health,East Sussex Hospitals NHS Trust,15/05/2013,STOCK-ASCRIBE CONQUEST,Pharmacy Stock,HEALTHCARE AT HOME LTD,0001210636,1408.56
Department of Health,East Sussex Hospitals NHS Trust,15/05/2013,STOCK-ASCRIBE CONQUEST,Pharmacy Stock,HEALTHCARE AT HOME LTD,0001210637,715.00
Department of Health,East Sussex Hospitals NHS Trust,15/05/2013,STOCK-ASCRIBE CONQUEST,Pharmacy Stock,HEALTHCARE AT HOME LTD,0001210638,715.00
Department of Health,East Sussex Hospitals NHS Trust,15/05/2013,STOCK-ASCRIBE CONQUEST,Pharmacy Stock,HEALTHCARE AT HOME LTD,0001210639,1408.56
Department of Health,East Sussex Hospitals NHS Trust,15/05/2013,STOCK-ASCRIBE CONQUEST,Pharmacy Stock,HEALTHCARE AT HOME LTD,0001210640,1408.56
Department of Health,East Sussex Hospitals NHS Trust,15/05/2013,STOCK-ASCRIBE CONQUEST,Pharmacy Stock,HEALTHCARE AT HOME LTD,0001210641,1408.56
Department of Health,East Sussex Hospitals NHS Trust,15/05/2013,STOCK-ASCRIBE CONQUEST,Pharmacy Stock,HEALTHCARE AT HOME LTD,0001210642,1408.56
Department of Health,East Sussex Hospitals NHS Trust,15/05/2013,STOCK-ASCRIBE CONQUEST,Pharmacy Stock,HEALTHCARE AT HOME LTD,0001210643,715.00
Department of Health,East Sussex Hospitals NHS Trust,15/05/2013,STOCK-ASCRIBE CONQUEST,Pharmacy Stock,HEALTHCARE AT HOME LTD,0001210644,704.28
Department of Health,East Sussex Hospitals NHS Trust,15/05/2013,STOCK-ASCRIBE CONQUEST,Pharmacy Stock,HEALTHCARE AT HOME LTD,0001210645,704.28
Department of Health,East Sussex Hospitals NHS Trust,15/05/2013,STOCK-ASCRIBE CONQUEST,Pharmacy Stock,HEALTHCARE AT HOME LTD,0001210646,704.28
Department of Health,East Sussex Hospitals NHS Trust,15/05/2013,STOCK-ASCRIBE CONQUEST,Pharmacy Stock,HEALTHCARE AT HOME LTD,0001210647,715.00
Department of Health,East Sussex Hospitals NHS Trust,15/05/2013,STOCK-ASCRIBE CONQUEST,Pharmacy Stock,HEALTHCARE AT HOME LTD,0001210648,715.00
Department of Health,East Sussex Hospitals NHS Trust,15/05/2013,STOCK-ASCRIBE CONQUEST,Pharmacy Stock,HEALTHCARE AT HOME LTD,0001210649,715.00
Department of Health,East Sussex Hospitals NHS Trust,15/05/2013,STOCK-ASCRIBE CONQUEST,Pharmacy Stock,HEALTHCARE AT HOME LTD,0001210650,1408.56
Department of Health,East Sussex Hospitals NHS Trust,15/05/2013,STOCK-ASCRIBE CONQUEST,Pharmacy Stock,HEALTHCARE AT HOME LTD,0001210651,1408.56
Department of Health,East Sussex Hospitals NHS Trust,15/05/2013,STOCK-ASCRIBE CONQUEST,Pharmacy Stock,HEALTHCARE AT HOME LTD,0001210652,1408.56
Department of Health,East Sussex Hospitals NHS Trust,15/05/2013,STOCK-ASCRIBE CONQUEST,Pharmacy Stock,HEALTHCARE AT HOME LTD,0001210653,1408.56
Department of Health,East Sussex Hospitals NHS Trust,15/05/2013,STOCK-ASCRIBE CONQUEST,Pharmacy Stock,HEALTHCARE AT HOME LTD,0001210659,1408.56
Department of Health,East Sussex Hospitals NHS Trust,15/05/2013,CONQUEST MEDICINE,Urgent Care,CANON (UK) LTD,0001418680,971.41
Department of Health,East Sussex Hospitals NHS Trust,15/05/2013,SERVICES PROVIDED TO NON NHS,Corporate Services,INTERACT MEDICAL,0001420995,-14741.24
Department of Health,East Sussex Hospitals NHS Trust,15/05/2013,ESPERANCE - SERVICES RECEIVED,Planned Care,BMI HEALTHCARE COLLECTIONS,0001421121,50277.81
Department of Health,East Sussex Hospitals NHS Trust,15/05/2013,CAPITAL EXPENDITURE,Other Central,MAINTEL EUROPE LIMITED,0001421246,410.00
Department of Health,East Sussex Hospitals NHS Trust,15/05/2013,CAPITAL EXPENDITURE,Other Central,MAINTEL EUROPE LIMITED,0001421246,730.00
Department of Health,East Sussex Hospitals NHS Trust,15/05/2013,TELEPHONES-RENTAL&CALLS,Commercial,CABLE & WIRELESS WORLDWIDE,0001421248,2458.18
Department of Health,East Sussex Hospitals NHS Trust,15/05/2013,TELEPHONES-RENTAL&CALLS,Commercial,CABLE & WIRELESS WORLDWIDE,0001421249,2037.22
Department of Health,East Sussex Hospitals NHS Trust,15/05/2013,CONTRACTED-OUT H.CARE SERVICES,Planned Care,THE HORDER CENTRE,0001421274,2452.57
Department of Health,East Sussex Hospitals NHS Trust,15/05/2013,ESPERANCE - SERVICES RECEIVED,Planned Care,BMI HEALTHCARE COLLECTIONS,0001421297,43169.80
Department of Health,East Sussex Hospitals NHS Trust,15/05/2013,TRAVEL & SUBSISTENCE,Urgent Care,EAST SUSSEX COUNTY COUNCIL,0001421391,1260.00
Department of Health,East Sussex Hospitals NHS Trust,15/05/2013,PATS.APPL.-DENTAL,Planned Care,DENTAL PROSTHETICS,0001421406,1092.00
Department of Health,East Sussex Hospitals NHS Trust,15/05/2013,PATS.APPL.-DENTAL,Planned Care,DENTAL PROSTHETICS,0001421409,564.00
Department of Health,East Sussex Hospitals NHS Trust,15/05/2013,PATS.APPL.-DENTAL,Planned Care,DENTAL PROSTHETICS,0001421410,836.00
Department of Health,East Sussex Hospitals NHS Trust,15/05/2013,REGISTRATION FEES CRECHE,Corporate Services,EDENRED,0001421418,118.94
Department of Health,East Sussex Hospitals NHS Trust,15/05/2013,REGISTRATION FEES CRECHE,Corporate Services,EDENRED,0001421418,118.93
Department of Health,East Sussex Hospitals NHS Trust,15/05/2013,LEASE CARS,Cross Site,ALPHABET (UK) FLEET MANAGEMENT LIMITED,0001525897,-2469.38
Department of Health,East Sussex Hospitals NHS Trust,15/05/2013,LEASE CARS,Cross Site,ALPHABET (UK) FLEET MANAGEMENT LIMITED,0001527199,-870.88
Department of Health,East Sussex Hospitals NHS Trust,15/05/2013,TRAINING COURSE FEES-OTHER,Corporate Services,BARRY LANE,0001527224,570.00
Department of Health,East Sussex Hospitals NHS Trust,15/05/2013,TRAINING EXAM FEES,Corporate Services,HEALTHCARE HR SOLUTIONS,0001527315,8000.00
Department of Health,East Sussex Hospitals NHS Trust,15/05/2013,INTERPRETING SERVICES,Integrated Care,ACTION DEAFNESS LTD,0001527479,464.60
Department of Health,East Sussex Hospitals NHS Trust,15/05/2013,CRIMINAL RECORDS BUREAU,Corporate Services,DISCLOSURE & BARRING SERVICE,0001527622,4576.00
Department of Health,East Sussex Hospitals NHS Trust,15/05/2013,AGENCY CONSULTANT,Integrated Care,UNIVERSITY OF SUSSEX,0001527629,2122.66
Department of Health,East Sussex Hospitals NHS Trust,15/05/2013,PROFESSIONAL FEES,Planned Care,MISS ANGELA SKULL,0001527926,1000.00
Department of Health,East Sussex Hospitals NHS Trust,15/05/2013,CONTRACT - MANAGEMENT FEE,Commercial,RYE WINCHELSEA & DISTRICT MEMORIAL LTD,0001527962,40000.00
Department of Health,East Sussex Hospitals NHS Trust,15/05/2013,SAMPLE TRANSPORT COST,Integrated Care,ARIEL DYNAMIC CARRIERS,0001527984,485.00
Department of Health,East Sussex Hospitals NHS Trust,15/05/2013,GENERAL PRACTITIONERS,Urgent Care,BIRD-IN-EYE SURGERY,0001528058,942.50
Department of Health,East Sussex Hospitals NHS Trust,15/05/2013,GENERAL PRACTITIONERS,Urgent Care,THE MEADS SURGERY,0001528060,3202.25
Department of Health,East Sussex Hospitals NHS Trust,15/05/2013,DRUGS-OTHER,Commercial,CELGENE LTD,0001613970,8089.20
Department of Health,East Sussex Hospitals NHS Trust,15/05/2013,DRUGS-OTHER,Commercial,CELGENE LTD,0001613971,4044.60
Department of Health,East Sussex Hospitals NHS Trust,15/05/2013,DRUGS-OTHER,Commercial,JANSSEN-CILAG LTD,0001614020,9148.56
Department of Health,East Sussex Hospitals NHS Trust,15/05/2013,DRUGS-OTHER,Commercial,CELGENE LTD,0001614031,4044.60
Department of Health,East Sussex Hospitals NHS Trust,15/05/2013,DRUGS-OTHER,Commercial,JANSSEN-CILAG LTD,0001614091,4574.28
Department of Health,East Sussex Hospitals NHS Trust,15/05/2013,DRUGS-OTHER,Commercial,CELGENE LTD,0001614135,8089.20
Department of Health,East Sussex Hospitals NHS Trust,15/05/2013,DRUGS-OTHER,Commercial,BAXTER HEALTHCARE (BERKSHIRE)LTD,0001614171,1164.38
Department of Health,East Sussex Hospitals NHS Trust,15/05/2013,LAB-CONTAINERS/BOTTLES & CAPS,Commercial,MACFARLANE GROUP UK LTD,0001614198,753.64
Department of Health,East Sussex Hospitals NHS Trust,15/05/2013,DRUGS-OTHER,Commercial,BATH ASU,0001614204,570.00
Department of Health,East Sussex Hospitals NHS Trust,15/05/2013,DRUGS-OTHER,Commercial,ABBVIE LTD,0001614304,2480.64
Department of Health,East Sussex Hospitals NHS Trust,15/05/2013,DRUGS-OTHER,Commercial,JANSSEN-CILAG LTD,0001614305,9148.56
Department of Health,East Sussex Hospitals NHS Trust,15/05/2013,CAPITAL EXPENDITURE,Other Central,B BRAUN MEDICAL LTD,0001813200,36000.02
Department of Health,East Sussex Hospitals NHS Trust,15/05/2013,M&S EQUIPMENT - OTHER,Planned Care,B BRAUN MEDICAL LTD,0001813288,591.12
Department of Health,East Sussex Hospitals NHS Trust,15/05/2013,WHEELCHAIR REPAIRS,Integrated Care,AJ MOBILITY LTD,0001813823,1931.69
Department of Health,East Sussex Hospitals NHS Trust,15/05/2013,CAPITAL EXPENDITURE,Other Central,B BRAUN MEDICAL LTD,0001813827,-36000.02
Department of Health,East Sussex Hospitals NHS Trust,15/05/2013,BUSINESS EDGE SOLUTIONS,Planned Care,BUSINESS EDGE TECHNOLOGIES,0001814132,2035.00
Department of Health,East Sussex Hospitals NHS Trust,15/05/2013,WHEELCHAIR REPAIRS,Integrated Care,AJ MOBILITY LTD,0001814180,1985.87
Department of Health,East Sussex Hospitals NHS Trust,15/05/2013,WHEELCHAIR REPAIRS,Integrated Care,AJ MOBILITY LTD,0001814205,995.28
Department of Health,East Sussex Hospitals NHS Trust,15/05/2013,WHEELCHAIR REPAIRS,Integrated Care,SOUTHERN MOBILITY CENTRE,0001814246,572.40
Department of Health,East Sussex Hospitals NHS Trust,15/05/2013,WHEELCHAIR,Integrated Care,SOUTHERN MOBILITY CENTRE,0001814250,3206.40
Department of Health,East Sussex Hospitals NHS Trust,15/05/2013,WHEELCHAIR,Integrated Care,SOUTHERN MOBILITY CENTRE,0001814251,2887.20
Department of Health,East Sussex Hospitals NHS Trust,15/05/2013,WHEELCHAIR,Integrated Care,SOUTHERN MOBILITY CENTRE,0001814286,508.80
Department of Health,East Sussex Hospitals NHS Trust,15/05/2013,WHEELCHAIR,Integrated Care,SOUTHERN MOBILITY CENTRE,0001814289,3162.00
Department of Health,East Sussex Hospitals NHS Trust,15/05/2013,PROVISIONS,Commercial,AUTOBAR UK LIMITED,0001905064,697.21
Department of Health,East Sussex Hospitals NHS Trust,15/05/2013,PROVISIONS,Commercial,AUTOBAR UK LIMITED,0001905065,567.01
Department of Health,East Sussex Hospitals NHS Trust,15/05/2013,CLEANING MATERIALS,Commercial,WIGHTMAN & PARRISH LTD,0001905187,574.80
Department of Health,East Sussex Hospitals NHS Trust,15/05/2013,HARDWARE & CROCKERY,Commercial,TRI-STAR PACKAGING SUPPLIES LTD,0001905239,2414.78
Department of Health,East Sussex Hospitals NHS Trust,15/05/2013,HARDWARE & CROCKERY,Commercial,AUTOBAR UK LIMITED,0001905242,1375.80
Department of Health,East Sussex Hospitals NHS Trust,15/05/2013,PROVISIONS,Commercial,AUTOBAR UK LIMITED,0001905244,630.87
Department of Health,East Sussex Hospitals NHS Trust,15/05/2013,PROVISIONS,Commercial,AUTOBAR UK LIMITED,0001905247,775.64
Department of Health,East Sussex Hospitals NHS Trust,15/05/2013,HARDWARE & CROCKERY,Commercial,TRI-STAR PACKAGING SUPPLIES LTD,0001905272,2970.15
Department of Health,East Sussex Hospitals NHS Trust,15/05/2013,PROVISIONS,Commercial,AUTOBAR UK LIMITED,0001905313,2573.30
Department of Health,East Sussex Hospitals NHS Trust,15/05/2013,PROVISIONS,Commercial,AUTOBAR UK LIMITED,0001905498,2647.50
Department of Health,East Sussex Hospitals NHS Trust,15/05/2013,PROVISIONS,Commercial,AUTOBAR UK LIMITED,0001905569,768.88
Department of Health,East Sussex Hospitals NHS Trust,15/05/2013,COLONIC STENTS,Planned Care,PYRAMED,0002112876,984.00
Department of Health,East Sussex Hospitals NHS Trust,15/05/2013,BILIARY STENTS,Integrated Care,PYRAMED,0002113133,1704.00
Department of Health,East Sussex Hospitals NHS Trust,15/05/2013,BILIARY STENTS,Integrated Care,PYRAMED,0002113387,984.00
Department of Health,East Sussex Hospitals NHS Trust,15/05/2013,ENDOSCOPY CONSUMABLES,Planned Care,PYRAMED,0002114350,888.00
Department of Health,East Sussex Hospitals NHS Trust,15/05/2013,OESOPHAGEAL (UPPER GI) STENTS,Integrated Care,PYRAMED,0002114421,720.00
Department of Health,East Sussex Hospitals NHS Trust,15/05/2013,BILIARY STENTS,Integrated Care,PYRAMED,0002114421,960.00
Department of Health,East Sussex Hospitals NHS Trust,15/05/2013,PROSTHESES-HIP,Planned Care,STRYKER UK,0002114716,1985.26
Department of Health,East Sussex Hospitals NHS Trust,15/05/2013,NATIONAL JOINT REGISTRY LEVY,Planned Care,STRYKER UK,0002114716,20.00
Department of Health,East Sussex Hospitals NHS Trust,15/05/2013,INTERVENTIONAL DISPOSABLES,Integrated Care,PYRAMED,0002114899,660.00
Department of Health,East Sussex Hospitals NHS Trust,15/05/2013,OESOPHAGEAL (UPPER GI) STENTS,Integrated Care,PYRAMED,0002114899,1440.00
Department of Health,East Sussex Hospitals NHS Trust,15/05/2013,BILIARY STENTS,Integrated Care,PYRAMED,0002114899,720.00
Department of Health,East Sussex Hospitals NHS Trust,15/05/2013,OESOPHAGEAL (UPPER GI) STENTS,Integrated Care,PYRAMED,0002114899,24.00
Department of Health,East Sussex Hospitals NHS Trust,15/05/2013,M&S EQUIPMENT - OTHER,Planned Care,DELTEX MEDICAL,0002114994,890.40
Department of Health,East Sussex Hospitals NHS Trust,15/05/2013,LAB MATERIALS - SIEMENS HEALTH,Integrated Care,SIEMENS HEALTHCARE DIAGNOSTICS LTD,0002115049,960.34
Department of Health,East Sussex Hospitals NHS Trust,15/05/2013,GENERAL LABORATORY EQUIPMENT,Integrated Care,SIEMENS HEALTHCARE DIAGNOSTICS LTD,0002115050,2460.00
Department of Health,East Sussex Hospitals NHS Trust,15/05/2013,BILIARY STENTS,Planned Care,PYRAMED,0002115225,840.00
Department of Health,East Sussex Hospitals NHS Trust,15/05/2013,SURGICAL INSTRUMENTS,Planned Care,B BRAUN MEDICAL LTD,0002115291,2100.00
Department of Health,East Sussex Hospitals NHS Trust,15/05/2013,COMPUTER CONSUMABLES,Integrated Care,IMAGE STORE,0002115301,1188.00
Department of Health,East Sussex Hospitals NHS Trust,15/05/2013,SURGICAL INSTRUMENTS,Integrated Care,PYRAMED,0002115390,624.00
Department of Health,East Sussex Hospitals NHS Trust,15/05/2013,M&S EQUIPMENT - OTHER,Planned Care,CARLETON LTD,0002115406,500.40
Department of Health,East Sussex Hospitals NHS Trust,15/05/2013,M&S GENERAL SUPPLIES-OTHER,Planned Care,SMITHS MEDICAL INTERNATIONAL,0002115472,614.33
Department of Health,East Sussex Hospitals NHS Trust,15/05/2013,LAB MATERIALS - IMMULITE,Integrated Care,SIEMENS HEALTHCARE DIAGNOSTICS LTD,0002115559,6142.36
Department of Health,East Sussex Hospitals NHS Trust,15/05/2013,LAB MATERIALS - IMMULITE,Integrated Care,SIEMENS HEALTHCARE DIAGNOSTICS LTD,0002115563,6664.16
Department of Health,East Sussex Hospitals NHS Trust,15/05/2013,GENERAL LAB. CONSUMABLES,Integrated Care,SIEMENS HEALTHCARE DIAGNOSTICS LTD,0002115573,57.77
Department of Health,East Sussex Hospitals NHS Trust,15/05/2013,LAB MATERIALS - IMMULITE,Integrated Care,SIEMENS HEALTHCARE DIAGNOSTICS LTD,0002115573,796.82
Department of Health,East Sussex Hospitals NHS Trust,15/05/2013,SURGICAL INSTRUMENTS,Planned Care,B BRAUN MEDICAL LTD,0002115611,2100.00
Department of Health,East Sussex Hospitals NHS Trust,15/05/2013,LAB MATERIALS - IMMULITE,Integrated Care,SIEMENS HEALTHCARE DIAGNOSTICS LTD,0002115649,717.86
Department of Health,East Sussex Hospitals NHS Trust,15/05/2013,CARDIOLOGY CATHETERS,Urgent Care,PYRAMED,0002115709,864.00
Department of Health,East Sussex Hospitals NHS Trust,15/05/2013,CONTRACT-VEHICLE LEASING,Commercial,LEX AUTOLEASE LTD,0002115712,6550.56
Department of Health,East Sussex Hospitals NHS Trust,15/05/2013,M&S GENERAL SUPPLIES-OTHER,Planned Care,STRYKER UK,0002115830,777.60
Department of Health,East Sussex Hospitals NHS Trust,15/05/2013,SURGICAL INSTRUMENTS,Planned Care,STRYKER UK,0002115830,606.48
Department of Health,East Sussex Hospitals NHS Trust,15/05/2013,PROSTHESES-HIP,Planned Care,STRYKER UK,0002115831,4557.17
Department of Health,East Sussex Hospitals NHS Trust,15/05/2013,NATIONAL JOINT REGISTRY LEVY,Planned Care,STRYKER UK,0002115831,80.00
Department of Health,East Sussex Hospitals NHS Trust,15/05/2013,LAB MATERIALS - G & N,Integrated Care,G & N LABORATORY LTD,0002115837,2110.32
Department of Health,East Sussex Hospitals NHS Trust,15/05/2013,LAB MATERIALS - BIOMERIEUX,Integrated Care,BIOMERIEUX UK LTD,0002115897,1175.82
Department of Health,East Sussex Hospitals NHS Trust,15/05/2013,SURGICAL INSTRUMENTS,Planned Care,B BRAUN MEDICAL LTD,0002115940,2100.00
Department of Health,East Sussex Hospitals NHS Trust,15/05/2013,M & S EQUIP REPAIR MATERIALS,Urgent Care,BAXTER HEALTHCARE (BERKSHIRE)LTD,0002115946,916.42
Department of Health,East Sussex Hospitals NHS Trust,15/05/2013,ENDOSCOPY CONSUMABLES,Planned Care,DIAGMED HEALTHCARE LTD,0002116030,972.00
Department of Health,East Sussex Hospitals NHS Trust,15/05/2013,M&S GENERAL SUPPLIES-OTHER,Planned Care,STRYKER UK,0002116048,777.60
Department of Health,East Sussex Hospitals NHS Trust,15/05/2013,SURGICAL INSTRUMENTS,Planned Care,STRYKER UK,0002116048,606.48
Department of Health,East Sussex Hospitals NHS Trust,15/05/2013,M&S EQUIPMENT - OTHER,Planned Care,INTERSURGICAL LTD,0002116085,540.00
Department of Health,East Sussex Hospitals NHS Trust,15/05/2013,COMPUTER HARDWARE,Corporate Services,NOVATECH DIRECT LTD,0002116093,556.93
Department of Health,East Sussex Hospitals NHS Trust,15/05/2013,PROSTHESES-HIP,Planned Care,STRYKER UK,0002116108,1512.00
Department of Health,East Sussex Hospitals NHS Trust,15/05/2013,LEASE CARS,Cross Site,AUTOMOTIVE LEASING LTD,0002116205,1883.25
Department of Health,East Sussex Hospitals NHS Trust,15/05/2013,M&S EQUIPMENT - OTHER,Planned Care,KEELER LIMITED,0002116206,648.00
Department of Health,East Sussex Hospitals NHS Trust,15/05/2013,M&S GENERAL SUPPLIES-OTHER,Planned Care,FEMCARE-NIKOMED LIMITED,0002116212,850.51
Department of Health,East Sussex Hospitals NHS Trust,15/05/2013,M&S GENERAL SUPPLIES-OTHER,Planned Care,FEMCARE-NIKOMED LIMITED,0002116213,521.71
Department of Health,East Sussex Hospitals NHS Trust,15/05/2013,LEASE CARS,Cross Site,INCHCAPE FLEET SOLUTIONS,0002116234,3132.09
Department of Health,East Sussex Hospitals NHS Trust,15/05/2013,IMMUNE STOCKS,Integrated Care,LEICA MICROSYSTEMS (UK) LTD,0002116288,3243.30
Department of Health,East Sussex Hospitals NHS Trust,15/05/2013,PROSTHESIS - SPINAL,Planned Care,ZIMMER LTD,0002116387,3805.92
Department of Health,East Sussex Hospitals NHS Trust,15/05/2013,BILIARY STENTS,Planned Care,PYRAMED,0002116392,864.00
Department of Health,East Sussex Hospitals NHS Trust,15/05/2013,CATARACT CONSUMABLES,Planned Care,ALCON EYE CARE UK LTD,0002116409,2501.52
Department of Health,East Sussex Hospitals NHS Trust,15/05/2013,CARDIOLOGY CATHETERS,Urgent Care,PYRAMED,0002116420,1242.00
Department of Health,East Sussex Hospitals NHS Trust,15/05/2013,GENERAL CHEMICALS,Integrated Care,ROCHE DIAGNOSTICS LTD,0002116440,3703.96
Department of Health,East Sussex Hospitals NHS Trust,15/05/2013,LAB.REAGENTS-MISCELLANEOUS,Integrated Care,ROCHE DIAGNOSTICS LTD,0002116440,136.90
Department of Health,East Sussex Hospitals NHS Trust,15/05/2013,ROCHE 2010 REAGENTS,Integrated Care,ROCHE DIAGNOSTICS LTD,0002116440,10118.58
Department of Health,East Sussex Hospitals NHS Trust,15/05/2013,CAPITAL EXPENDITURE,Other Central,MAINTEL EUROPE LIMITED,0002116473,4119.00
Department of Health,East Sussex Hospitals NHS Trust,15/05/2013,COLONIC STENTS,Planned Care,PYRAMED,0002116477,950.40
Department of Health,East Sussex Hospitals NHS Trust,15/05/2013,PROSTHESIS - SPINAL,Planned Care,ZIMMER LTD,0002116493,669.60
Department of Health,East Sussex Hospitals NHS Trust,15/05/2013,OESOPHAGEAL (UPPER GI) STENTS,Planned Care,PYRAMED,0002116508,744.00
Department of Health,East Sussex Hospitals NHS Trust,15/05/2013,GENERAL LAB. CONSUMABLES,Integrated Care,THERMO FISHER SCIENTIFIC,0002116521,2270.76
Department of Health,East Sussex Hospitals NHS Trust,15/05/2013,X-RAY - EQUIPMENT,Integrated Care,MAQUET LIMITED,0002116589,1249.20
Department of Health,East Sussex Hospitals NHS Trust,15/05/2013,PROSTHESES-OTHER,Planned Care,ZIMMER LTD,0002116613,3460.32
Department of Health,East Sussex Hospitals NHS Trust,15/05/2013,CLEANING MATERIALS,Commercial,GV HEALTH LTD,0002116683,505.20
Department of Health,East Sussex Hospitals NHS Trust,15/05/2013,LAB MATERIALS - BIOMERIEUX,Integrated Care,BIOMERIEUX UK LTD,0002116699,2002.63
Department of Health,East Sussex Hospitals NHS Trust,15/05/2013,ENDOSCOPY CONSUMABLES,Planned Care,PARTNERS FOR ENDOSCOPY MEDICAL,0002116710,631.20
Department of Health,East Sussex Hospitals NHS Trust,15/05/2013,M&S EQUIPMENT - OTHER,Planned Care,INTERSURGICAL LTD,0002116794,540.00
Department of Health,East Sussex Hospitals NHS Trust,15/05/2013,CAPITAL EXPENDITURE,Other Central,KHIPU NETWORKS LTD,0002116860,2491.92
Department of Health,East Sussex Hospitals NHS Trust,15/05/2013,CLEANING MATERIALS,Planned Care,MEDISAFE LTD,0002116880,687.60
Department of Health,East Sussex Hospitals NHS Trust,15/05/2013,IMMUNE STOCKS,Integrated Care,LEICA MICROSYSTEMS (UK) LTD,0002116963,1537.32
Department of Health,East Sussex Hospitals NHS Trust,15/05/2013,LAB-CONTAINERS/BOTTLES & CAPS,Integrated Care,G & N LABORATORY LTD,0002116985,652.79
Department of Health,East Sussex Hospitals NHS Trust,15/05/2013,CLEANING MATERIALS,Commercial,GV HEALTH LTD,0002117004,2348.28
Department of Health,East Sussex Hospitals NHS Trust,15/05/2013,LEASE CARS,Cross Site,ALPHABET (UK) FLEET MANAGEMENT LIMITED,0002117090,4594.62
Department of Health,East Sussex Hospitals NHS Trust,15/05/2013,CAPITAL EXPENDITURE,Other Central,CISILION LTD,0002117091,6548.40
Department of Health,East Sussex Hospitals NHS Trust,15/05/2013,PRINTING/PRINTED MATERIALS,Corporate Services,COLLECTOR SET PRINTERS,0002117125,423.52
Department of Health,East Sussex Hospitals NHS Trust,15/05/2013,LEASE CARS,Cross Site,ALPHABET (UK) FLEET MANAGEMENT LIMITED,0002117137,1940.56
Department of Health,East Sussex Hospitals NHS Trust,15/05/2013,M&S GENERAL SUPPLIES-OTHER,Integrated Care,ROCKET MEDICAL PLC,0002117332,1109.38
Department of Health,East Sussex Hospitals NHS Trust,15/05/2013,PROSTHESES-KNEES,Planned Care,ORTHODYNAMICS LTD,0002117373,1234.20
Department of Health,East Sussex Hospitals NHS Trust,15/05/2013,COLONIC STENTS,Planned Care,PYRAMED,0002117421,-984.00
Department of Health,East Sussex Hospitals NHS Trust,15/05/2013,BILIARY STENTS,Integrated Care,PYRAMED,0002117422,-960.00
Department of Health,East Sussex Hospitals NHS Trust,15/05/2013,BILIARY STENTS,Integrated Care,PYRAMED,0002117423,-984.00
Department of Health,East Sussex Hospitals NHS Trust,15/05/2013,CONTRACT-VEHICLE LEASING,Commercial,EURO SELF DRIVE LTD,0002117649,583.33
Department of Health,East Sussex Hospitals NHS Trust,15/05/2013,OESOPHAGEAL (UPPER GI) STENTS,Integrated Care,PYRAMED,0002212978,720.00
Department of Health,East Sussex Hospitals NHS Trust,15/05/2013,INTERVASCULAR STENTS,Integrated Care,PYRAMED,0002212978,744.00
Department of Health,East Sussex Hospitals NHS Trust,15/05/2013,LAB MATERIALS - G & N,Integrated Care,G & N LABORATORY LTD,0002213017,1582.74
Department of Health,East Sussex Hospitals NHS Trust,15/05/2013,CONT.MAIN-MED & SURG EQUIP,Commercial,STRYKER UK,0002213380,3710.00
Department of Health,East Sussex Hospitals NHS Trust,15/05/2013,CARDIOLOGY CATHETERS,Urgent Care,PYRAMED,0002213385,528.00
Department of Health,East Sussex Hospitals NHS Trust,15/05/2013,OESOPHAGEAL (UPPER GI) STENTS,Integrated Care,PYRAMED,0002213386,2904.00
Department of Health,East Sussex Hospitals NHS Trust,15/05/2013,OESOPHAGEAL (UPPER GI) STENTS,Integrated Care,PYRAMED,0002213387,744.00
Department of Health,East Sussex Hospitals NHS Trust,15/05/2013,OESOPHAGEAL (UPPER GI) STENTS,Integrated Care,PYRAMED,0002213397,1296.00
Department of Health,East Sussex Hospitals NHS Trust,15/05/2013,LAB MATERIALS - SIEMENS HEALTH,Integrated Care,SIEMENS HEALTHCARE DIAGNOSTICS LTD,0002213525,505.44
Department of Health,East Sussex Hospitals NHS Trust,15/05/2013,BILIARY STENTS,Integrated Care,PYRAMED,0002213577,909.60
Department of Health,East Sussex Hospitals NHS Trust,15/05/2013,LAB MATERIALS - ABBOTT,Integrated Care,ABBOTT LABORATORIES LTD,0002213645,1686.20
Department of Health,East Sussex Hospitals NHS Trust,15/05/2013,TSSU INSTRUMENTATION,Commercial,STRYKER UK,0002213649,504.00
Department of Health,East Sussex Hospitals NHS Trust,15/05/2013,LOANER KITS - HIRE CHARGE,Planned Care,STRYKER UK,0002213658,802.32
Department of Health,East Sussex Hospitals NHS Trust,15/05/2013,PROSTHESES-OTHER,Planned Care,STRYKER UK,0002213658,8899.20
Department of Health,East Sussex Hospitals NHS Trust,15/05/2013,COMPUTER CONSUMABLES,Commercial,CROWN LABELS MFG CO LTD,0002213691,285.84
Department of Health,East Sussex Hospitals NHS Trust,15/05/2013,OTHER STATIONERY,Commercial,CROWN LABELS MFG CO LTD,0002213691,333.60
Department of Health,East Sussex Hospitals NHS Trust,15/05/2013,M & S EQUIP REPAIR MATERIALS,Planned Care,B BRAUN MEDICAL LTD,0002213713,538.52
Department of Health,East Sussex Hospitals NHS Trust,15/05/2013,BILIARY STENTS,Integrated Care,PYRAMED,0002213755,1795.20
Department of Health,East Sussex Hospitals NHS Trust,15/05/2013,LAB MATERIALS - ABBOTT,Integrated Care,ABBOTT LABORATORIES LTD,0002213768,4465.39
Department of Health,East Sussex Hospitals NHS Trust,15/05/2013,M&S EQUIPMENT - OTHER,Planned Care,PULSION MEDICAL UK LTD,0002213841,24.00
Department of Health,East Sussex Hospitals NHS Trust,15/05/2013,M&S GENERAL SUPPLIES-OTHER,Planned Care,PULSION MEDICAL UK LTD,0002213841,3775.68
Department of Health,East Sussex Hospitals NHS Trust,15/05/2013,M&S GENERAL SUPPLIES-OTHER,Commercial,CROWN LABELS MFG CO LTD,0002213857,1293.12
Department of Health,East Sussex Hospitals NHS Trust,15/05/2013,TSSU INSTRUMENTATION,Commercial,STRYKER UK,0002213871,682.08
Department of Health,East Sussex Hospitals NHS Trust,15/05/2013,LAB MATERIALS - G & N,Integrated Care,G & N LABORATORY LTD,0002213930,949.64
Department of Health,East Sussex Hospitals NHS Trust,15/05/2013,CARDIOLOGY CATHETERS,Urgent Care,PYRAMED,0002213939,1032.00
Department of Health,East Sussex Hospitals NHS Trust,15/05/2013,PRE-STERILE COMMERCIAL PACKS,Commercial,ROCIALLE INHEALTH,0002214030,873.72
Department of Health,East Sussex Hospitals NHS Trust,15/05/2013,LAB MATERIALS - ABBOTT,Integrated Care,ABBOTT LABORATORIES LTD,0002214051,5297.02
Department of Health,East Sussex Hospitals NHS Trust,15/05/2013,LAB MATERIALS - ABBOTT,Integrated Care,ABBOTT LABORATORIES LTD,0002214083,2094.94
Department of Health,East Sussex Hospitals NHS Trust,15/05/2013,OESOPHAGEAL (UPPER GI) STENTS,Integrated Care,PYRAMED,0002214125,744.00
Department of Health,East Sussex Hospitals NHS Trust,15/05/2013,CONT.MAIN-MED & SURG EQUIP,Commercial,B BRAUN MEDICAL LTD,0002214358,990.00
Department of Health,East Sussex Hospitals NHS Trust,15/05/2013,CARDIOLOGY CATHETERS,Urgent Care,BARD LTD,0002214450,1800.00
Department of Health,East Sussex Hospitals NHS Trust,15/05/2013,CARDIOLOGY CATHETERS,Urgent Care,BARD LTD,0002214451,1200.00
Department of Health,East Sussex Hospitals NHS Trust,15/05/2013,CARDIOLOGY CATHETERS,Urgent Care,BARD LTD,0002214453,1800.00
Department of Health,East Sussex Hospitals NHS Trust,15/05/2013,GENERAL LABORATORY EQUIPMENT,Integrated Care,G & N LABORATORY LTD,0002214486,678.60
Department of Health,East Sussex Hospitals NHS Trust,15/05/2013,GENERAL LAB. CONSUMABLES,Integrated Care,G & N LABORATORY LTD,0002214486,1155.00
Department of Health,East Sussex Hospitals NHS Trust,15/05/2013,LAB MATERIALS - G & N,Integrated Care,G & N LABORATORY LTD,0002214486,633.10
Department of Health,East Sussex Hospitals NHS Trust,15/05/2013,LAB MATERIALS - ABBOTT,Integrated Care,ABBOTT LABORATORIES LTD,0002214516,1901.23
Department of Health,East Sussex Hospitals NHS Trust,15/05/2013,SURGICAL INSTRUMENTS,Planned Care,BARD LTD,0002214521,546.90
Department of Health,East Sussex Hospitals NHS Trust,15/05/2013,CARDIOLOGY CATHETERS,Urgent Care,BARD LTD,0002214536,3600.00
Department of Health,East Sussex Hospitals NHS Trust,15/05/2013,PACEMAKERS,Urgent Care,BIOTRONIK UK LTD,0002214539,10063.20
Department of Health,East Sussex Hospitals NHS Trust,15/05/2013,SENSITIVITY DISKS,Integrated Care,BIOMERIEUX UK LTD,0002214547,97.58
Department of Health,East Sussex Hospitals NHS Trust,15/05/2013,LAB MATERIALS - BIOMERIEUX,Integrated Care,BIOMERIEUX UK LTD,0002214547,516.81
Department of Health,East Sussex Hospitals NHS Trust,15/05/2013,STAPLING DEVICES,Planned Care,EXACTECH (UK) LTD,0002214555,558.00
Department of Health,East Sussex Hospitals NHS Trust,15/05/2013,LOANER KITS - HIRE CHARGE,Planned Care,EXACTECH (UK) LTD,0002214555,354.00
Department of Health,East Sussex Hospitals NHS Trust,15/05/2013,PROCEDURE PACKS,Commercial,ROCIALLE INHEALTH,0002214568,244.19
Department of Health,East Sussex Hospitals NHS Trust,15/05/2013,PRE-STERILE COMMERCIAL PACKS,Commercial,ROCIALLE INHEALTH,0002214568,1042.11
Department of Health,East Sussex Hospitals NHS Trust,15/05/2013,INTERVASCULAR STENTS,Integrated Care,PYRAMED,0002214608,1187.52
Department of Health,East Sussex Hospitals NHS Trust,15/05/2013,STAPLING DEVICES,Planned Care,FEMCARE-NIKOMED LIMITED,0002214656,1060.51
Department of Health,East Sussex Hospitals NHS Trust,15/05/2013,M&S EQUIPMENT - OTHER,Planned Care,PHILIPS ELECTRONICS UK LIMITED,0002214726,329.28
Department of Health,East Sussex Hospitals NHS Trust,15/05/2013,ELECTRO MEDICAL EQUIPMENT,Planned Care,PHILIPS ELECTRONICS UK LIMITED,0002214726,332.64
Department of Health,East Sussex Hospitals NHS Trust,15/05/2013,OESOPHAGEAL (UPPER GI) STENTS,Integrated Care,PYRAMED,0002214739,-1464.00
Department of Health,East Sussex Hospitals NHS Trust,15/05/2013,PACEMAKERS,Urgent Care,BIOTRONIK UK LTD,0002214745,6156.00
Department of Health,East Sussex Hospitals NHS Trust,15/05/2013,M&S GENERAL SUPPLIES-OTHER,Integrated Care,ROCKET MEDICAL PLC,0002214755,554.69
Department of Health,East Sussex Hospitals NHS Trust,15/05/2013,GENERAL CHEMICALS,Integrated Care,ROCHE DIAGNOSTICS LTD,0002214771,1389.79
Department of Health,East Sussex Hospitals NHS Trust,15/05/2013,ROCHE 2010 REAGENTS,Integrated Care,ROCHE DIAGNOSTICS LTD,0002214771,355.78
Department of Health,East Sussex Hospitals NHS Trust,15/05/2013,TSSU INSTRUMENTATION,Commercial,ZIMMER LTD,0002214774,2552.40
Department of Health,East Sussex Hospitals NHS Trust,15/05/2013,M&S GENERAL SUPPLIES-OTHER,Integrated Care,PYRAMED,0002214793,636.00
